Body_Code,Body_Name,Service_Area,Responsible_Unit,Expense_Type,Expense_Code,Narrative,Date,Transaction_Number,Amount,Supplier_Name
http://statistics.data.gov.uk/id/local-authority/38,Oxfordshire County Council,SCS Other Cost Centres,Control Account Trojan Residential Care,Balance Sheet General,B2040,ABACUS Accounts Payable Control A/c,13/06/2011,3100035402,-1541.11,Closereach
http://statistics.data.gov.uk/id/local-authority/38,Oxfordshire County Council,SCS Other Cost Centres,Control Account Trojan Residential Care,Balance Sheet General,B2040,ABACUS Accounts Payable Control A/c,13/06/2011,3100035403,-1571.14,OSJ - Cornish House
http://statistics.data.gov.uk/id/local-authority/38,Oxfordshire County Council,Education & Early Intervention,Oxford Nth SEN Trans,Contract Hire/Leasing,33101,Home to School Trans,06/06/2011,3100036071,-2449.39,Ash Taxis
http://statistics.data.gov.uk/id/local-authority/38,Oxfordshire County Council,SCS Other Cost Centres,Control Account Trojan Residential Care,Balance Sheet General,B2040,ABACUS Accounts Payable Control A/c,13/06/2011,3100036266,-2256.33,Fewcott Healthcare Ltd.
http://statistics.data.gov.uk/id/local-authority/38,Oxfordshire County Council,SCS Pooled Budgets,Direct Payments City Team,Other Agency and Contracted Services,57401,Direct Payments,14/06/2011,3100036325,-11967,A4e Management Ltd Week 4
http://statistics.data.gov.uk/id/local-authority/38,Oxfordshire County Council,SCS Other Cost Centres,Home Support trading account for PBs,Other Agency and Contracted Services,57300,Home Support (Ext) OS&HCD,15/06/2011,3100036342,-624.24,Allied Healthcare Group Ltd
http://statistics.data.gov.uk/id/local-authority/38,Oxfordshire County Council,SCS Other Cost Centres,Home Support trading account for PBs,Other Agency and Contracted Services,57300,Home Support (Ext) OS&HCD,15/06/2011,3100036353,-514.25,Oxford Private Care
http://statistics.data.gov.uk/id/local-authority/38,Oxfordshire County Council,SCS Other Cost Centres,Home Support trading account for PBs,Other Agency and Contracted Services,57300,Home Support (Ext) OS&HCD,15/06/2011,3100036359,-606.32,Sevacare (UK) Ltd
http://statistics.data.gov.uk/id/local-authority/38,Oxfordshire County Council,SCS Other Cost Centres,Home Support trading account for PBs,Other Agency and Contracted Services,57300,Home Support (Ext) OS&HCD,15/06/2011,3100036362,-2565.71,Sevacare (UK) Ltd
http://statistics.data.gov.uk/id/local-authority/38,Oxfordshire County Council,SCS Other Cost Centres,Home Support trading account for PBs,Other Agency and Contracted Services,57300,Home Support (Ext) OS&HCD,15/06/2011,3100036366,-2460.91,Leonard Cheshire FOR PAYMENTS ONLY
http://statistics.data.gov.uk/id/local-authority/38,Oxfordshire County Council,SCS Other Cost Centres,Home Support trading account for PBs,Other Agency and Contracted Services,57300,Home Support (Ext) OS&HCD,15/06/2011,3100036372,-1455.79,Risborough Carers Ltd
http://statistics.data.gov.uk/id/local-authority/38,Oxfordshire County Council,SCS Other Cost Centres,Home Support trading account for PBs,Other Agency and Contracted Services,57300,Home Support (Ext) OS&HCD,15/06/2011,3100036375,-533.76,Bright Yellow Group Plc
http://statistics.data.gov.uk/id/local-authority/38,Oxfordshire County Council,Social & Community Services,Older People  Service Agreements (Base),Contract Hire/Leasing,33103,Transport to Centres,17/06/2011,3100036436,-10315.16,British Red Cross Society
http://statistics.data.gov.uk/id/local-authority/38,Oxfordshire County Council,SCS Pooled Budgets,PD Comm Supp Budget - Banbury,Other Agency and Contracted Services,57401,Direct Payments,22/06/2011,3100036602,-826,A4e Management Ltd Week 2
http://statistics.data.gov.uk/id/local-authority/38,Oxfordshire County Council,SCS Pooled Budgets,Community Support Budget - Chipping Nort,Other Agency and Contracted Services,57401,Direct Payments,28/06/2011,3100036756,-1181.71,A4e Management Ltd Week 3
http://statistics.data.gov.uk/id/local-authority/38,Oxfordshire County Council,SCS Other Cost Centres,Control Account Trojan Residential Care,Balance Sheet General,B2040,ABACUS Accounts Payable Control A/c,13/06/2011,3150004286,-14692.23,OSJ -  Westgate House
http://statistics.data.gov.uk/id/local-authority/38,Oxfordshire County Council,SCS Other Cost Centres,Control Account Trojan Residential Care,Balance Sheet General,B2040,ABACUS Accounts Payable Control A/c,13/06/2011,3150004287,-19226.61,Richmond Letcombe Regis
http://statistics.data.gov.uk/id/local-authority/38,Oxfordshire County Council,SCS Other Cost Centres,Control Account Trojan Residential Care,Balance Sheet General,B2040,ABACUS Accounts Payable Control A/c,13/06/2011,3150004288,-12608.14,GCH (St Katherine's) Ltd
http://statistics.data.gov.uk/id/local-authority/38,Oxfordshire County Council,SCS Other Cost Centres,Control Account Trojan Residential Care,Balance Sheet General,B2040,ABACUS Accounts Payable Control A/c,13/06/2011,3150004290,-672.18,REDACTED PERSONAL DATA
http://statistics.data.gov.uk/id/local-authority/38,Oxfordshire County Council,SCS Other Cost Centres,Control Account Trojan Residential Care,Balance Sheet General,B2040,ABACUS Accounts Payable Control A/c,13/06/2011,3150004294,-27615.22,Wardington House Nursing Home
http://statistics.data.gov.uk/id/local-authority/38,Oxfordshire County Council,SCS Other Cost Centres,Control Account Trojan Residential Care,Balance Sheet General,B2040,ABACUS Accounts Payable Control A/c,13/06/2011,3150004295,-53857.14,CastleBeck Care (Teesdale) Ltd
http://statistics.data.gov.uk/id/local-authority/38,Oxfordshire County Council,SCS Other Cost Centres,Control Account Trojan Residential Care,Balance Sheet General,B2040,ABACUS Accounts Payable Control A/c,13/06/2011,3150004297,-6038.39,The Old Vicarage
http://statistics.data.gov.uk/id/local-authority/38,Oxfordshire County Council,SCS Other Cost Centres,Control Account Trojan Residential Care,Balance Sheet General,B2040,ABACUS Accounts Payable Control A/c,13/06/2011,3150004298,-5292.86,Respond Care Ltd
http://statistics.data.gov.uk/id/local-authority/38,Oxfordshire County Council,SCS Other Cost Centres,Control Account Trojan Residential Care,Balance Sheet General,B2040,ABACUS Accounts Payable Control A/c,13/06/2011,3150004299,-1560,Crispin Homes Ltd t/a Newland House
http://statistics.data.gov.uk/id/local-authority/38,Oxfordshire County Council,SCS Other Cost Centres,Control Account Trojan Residential Care,Balance Sheet General,B2040,ABACUS Accounts Payable Control A/c,13/06/2011,3150004300,-13964.48,The Langston
http://statistics.data.gov.uk/id/local-authority/38,Oxfordshire County Council,Highways & Transport,Highways General Operational,Energy Costs,23100,Electricity,10/06/2011,3150004303,-1561.1,British Gas Business
http://statistics.data.gov.uk/id/local-authority/38,Oxfordshire County Council,Highways & Transport,Highways General Operational,Energy Costs,23100,Electricity,10/06/2011,3150004303,-3627.76,British Gas Business
http://statistics.data.gov.uk/id/local-authority/38,Oxfordshire County Council,Highways & Transport,Highways General Operational,Energy Costs,23100,Electricity,10/06/2011,3150004303,720.65,British Gas Business
http://statistics.data.gov.uk/id/local-authority/38,Oxfordshire County Council,Highways & Transport,Highways General Operational,Energy Costs,23100,Electricity,10/06/2011,3150004303,-5649.38,British Gas Business
http://statistics.data.gov.uk/id/local-authority/38,Oxfordshire County Council,Law & Governance Services,Legal Services,"Printing,Stationery and Gen Office Exp",43700,Stationery,21/06/2011,3150004306,-3535.43,Canon (UK) Ltd
http://statistics.data.gov.uk/id/local-authority/38,Oxfordshire County Council,Law & Governance Services,Legal Services,"Printing,Stationery and Gen Office Exp",43700,Stationery,21/06/2011,3150004306,-4785.92,Canon (UK) Ltd
http://statistics.data.gov.uk/id/local-authority/38,Oxfordshire County Council,Education & Early Intervention,The Leys CC,"Printing,Stationery and Gen Office Exp",43500,Printing & Duplicating,22/06/2011,3150004307,-1353.2,Canon (UK) Ltd
http://statistics.data.gov.uk/id/local-authority/38,Oxfordshire County Council,SCS Pooled Budgets,PD Service  Agreements,Voluntary Associations,55400,Service Agreements-A,23/06/2011,3150004311,-74130,A4e Ltd
http://statistics.data.gov.uk/id/local-authority/38,Oxfordshire County Council,STD Insurance,Motor Fleet,Motor Insurance Fund Rev AC,Z5151,Motor IF Own Damage,24/06/2011,3150004313,-527,Trifords Ltd T/A Auto Windscreens
http://statistics.data.gov.uk/id/local-authority/38,Oxfordshire County Council,Admitted Bodies,Cherwell Housing Trust,Contributions Leaving the Fund,PR401,Transfers out,15/06/2011,3300000203,7649.27,Berkshire Pension Fund
http://statistics.data.gov.uk/id/local-authority/38,Oxfordshire County Council,Scheduled Bodies,Oxfordshire County Council,Contributions Leaving the Fund,PR401,Transfers out,03/06/2011,3300000279,11572.8,West Midlands Pension Fund
http://statistics.data.gov.uk/id/local-authority/38,Oxfordshire County Council,Scheduled Bodies,Oxfordshire County Council,Contributions Leaving the Fund,PR401,Transfers out,03/06/2011,3300000280,29896.22,BATH & NORTH EAST SOMERSET COUNCIL
http://statistics.data.gov.uk/id/local-authority/38,Oxfordshire County Council,Admitted Bodies,Oxfordshire Youth Arts Partnership,Contributions Leaving the Fund,PR401,Transfers out,03/06/2011,3300000281,1060.79,Berkshire Pension Fund
http://statistics.data.gov.uk/id/local-authority/38,Oxfordshire County Council,Scheduled Bodies,Oxfordshire County Council,Contributions Leaving the Fund,PR401,Transfers out,03/06/2011,3300000282,10303.58,Staffordshire Pension Fund
http://statistics.data.gov.uk/id/local-authority/38,Oxfordshire County Council,Scheduled Bodies,Oxfordshire County Council,Contributions Leaving the Fund,PR401,Transfers out,03/06/2011,3300000283,12868.66,Univs Superann Scheme Ltd Trust Fun
http://statistics.data.gov.uk/id/local-authority/38,Oxfordshire County Council,Scheduled Bodies,Oxfordshire County Council,Contributions Leaving the Fund,PR401,Transfers out,03/06/2011,3300000287,60549.57,Derbyshire County Council
http://statistics.data.gov.uk/id/local-authority/38,Oxfordshire County Council,Scheduled Bodies,Oxford Brookes Univeristy,Contributions Leaving the Fund,PR401,Transfers out,07/06/2011,3300000288,3268.39,London Borough of Barking & Dagenha
http://statistics.data.gov.uk/id/local-authority/38,Oxfordshire County Council,Scheduled Bodies,Oxfordshire County Council,Contributions Leaving the Fund,PR401,Transfers out,03/06/2011,3300000294,24960.73,Essex County Council
http://statistics.data.gov.uk/id/local-authority/38,Oxfordshire County Council,Scheduled Bodies,Cherwell District Council,Contributions Leaving the Fund,PR401,Transfers out,08/06/2011,3300000296,196758.53,Tameside MBC - GMPF
http://statistics.data.gov.uk/id/local-authority/38,Oxfordshire County Council,In-House,Miscellaneous,Pension Fund Balance Sheet,PB810,Give As You Earn,13/06/2011,3300000322,634,Charities Aid Foundation
http://statistics.data.gov.uk/id/local-authority/38,Oxfordshire County Council,Scheduled Bodies,Oxfordshire County Council,Contributions Leaving the Fund,PR401,Transfers out,15/06/2011,3300000323,1908,BUCKINGHAMSHIRE COUNTY COUNCIL
http://statistics.data.gov.uk/id/local-authority/38,Oxfordshire County Council,Scheduled Bodies,Oxfordshire County Council,Contributions Leaving the Fund,PR401,Transfers out,15/06/2011,3300000324,35023.09,Cabinet Office : Civil Superann
http://statistics.data.gov.uk/id/local-authority/38,Oxfordshire County Council,Scheduled Bodies,Oxfordshire County Council,Pensions,PR507,Combined Benefits Basic Pension,15/06/2011,3300000327,6336.99,West Midlands Pension Fund
http://statistics.data.gov.uk/id/local-authority/38,Oxfordshire County Council,Scheduled Bodies,Oxfordshire County Council,Contributions Leaving the Fund,PR401,Transfers out,15/06/2011,3300000347,19931.86,West Yorkshire Pension Fund
http://statistics.data.gov.uk/id/local-authority/38,Oxfordshire County Council,Scheduled Bodies,Abingdon & Witney College,Contributions Leaving the Fund,PR401,Transfers out,20/06/2011,3300000352,897.35,Wiltshire Pension Fund
http://statistics.data.gov.uk/id/local-authority/38,Oxfordshire County Council,Scheduled Bodies,Ox & Bucks Probation Committee,Contributions Leaving the Fund,PR401,Transfers out,20/06/2011,3300000354,3337.57,BUCKINGHAMSHIRE COUNTY COUNCIL
http://statistics.data.gov.uk/id/local-authority/38,Oxfordshire County Council,In-House,Miscellaneous,Pension Fund Balance Sheet,PB802,Payroll payments by cheque (net pay),28/06/2011,3300000402,695.29,ONE OFF SUPPLIER
http://statistics.data.gov.uk/id/local-authority/38,Oxfordshire County Council,Scheduled Bodies,Oxford Brookes Univeristy,Contributions Leaving the Fund,PR401,Transfers out,29/06/2011,3300000408,73447.2,Berkshire Pension Fund
http://statistics.data.gov.uk/id/local-authority/38,Oxfordshire County Council,Education & Early Intervention,Zone 4 - Vale,Contract Hire/Leasing,33101,Home to School Trans,01/06/2011,3301283986,555,Abingdon Taxis
http://statistics.data.gov.uk/id/local-authority/38,Oxfordshire County Council,Education & Early Intervention,Meadowbrook Transprt,Contract Hire/Leasing,33101,Home to School Trans,01/06/2011,3301283988,856,Oxon Transport Services Limited t/a
http://statistics.data.gov.uk/id/local-authority/38,Oxfordshire County Council,Education & Early Intervention,Meadowbrook Transprt,Contract Hire/Leasing,33101,Home to School Trans,01/06/2011,3301283989,1057,Oxon Transport Services Limited t/a
http://statistics.data.gov.uk/id/local-authority/38,Oxfordshire County Council,Education & Early Intervention,Zone 3 - West,Contract Hire/Leasing,33101,Home to School Trans,01/06/2011,3301283992,2603,Aldermore Invoice Finance
http://statistics.data.gov.uk/id/local-authority/38,Oxfordshire County Council,Education & Early Intervention,Zone 3 - West,Contract Hire/Leasing,33101,Home to School Trans,01/06/2011,3301283993,2603,Aldermore Invoice Finance
http://statistics.data.gov.uk/id/local-authority/38,Oxfordshire County Council,Education & Early Intervention,Zone 3 - West,Contract Hire/Leasing,33101,Home to School Trans,01/06/2011,3301283994,2603,Aldermore Invoice Finance
http://statistics.data.gov.uk/id/local-authority/38,Oxfordshire County Council,Education & Early Intervention,Zone 3 - West,Contract Hire/Leasing,33101,Home to School Trans,01/06/2011,3301283995,2603,Aldermore Invoice Finance
http://statistics.data.gov.uk/id/local-authority/38,Oxfordshire County Council,Education & Early Intervention,Zone 3 - West,Contract Hire/Leasing,33101,Home to School Trans,01/06/2011,3301283996,2603,Aldermore Invoice Finance
http://statistics.data.gov.uk/id/local-authority/38,Oxfordshire County Council,Education & Early Intervention,Zone 3 - West,Contract Hire/Leasing,33101,Home to School Trans,01/06/2011,3301283997,2603,Aldermore Invoice Finance
http://statistics.data.gov.uk/id/local-authority/38,Oxfordshire County Council,Education & Early Intervention,Zone 3 - West,Contract Hire/Leasing,33101,Home to School Trans,01/06/2011,3301283998,2603,Aldermore Invoice Finance
http://statistics.data.gov.uk/id/local-authority/38,Oxfordshire County Council,Education & Early Intervention,Zone 3 - West,Contract Hire/Leasing,33101,Home to School Trans,01/06/2011,3301283999,2603,Aldermore Invoice Finance
http://statistics.data.gov.uk/id/local-authority/38,Oxfordshire County Council,Education & Early Intervention,Zone 3 - West,Contract Hire/Leasing,33101,Home to School Trans,01/06/2011,3301284000,2603,Aldermore Invoice Finance
http://statistics.data.gov.uk/id/local-authority/38,Oxfordshire County Council,Education & Early Intervention,Zone 3 - West,Contract Hire/Leasing,33101,Home to School Trans,01/06/2011,3301284001,2603,Aldermore Invoice Finance
http://statistics.data.gov.uk/id/local-authority/38,Oxfordshire County Council,Education & Early Intervention,Zone 3 - West,Contract Hire/Leasing,33101,Home to School Trans,01/06/2011,3301284002,2603,Aldermore Invoice Finance
http://statistics.data.gov.uk/id/local-authority/38,Oxfordshire County Council,Education & Early Intervention,Zone 3 - West,Contract Hire/Leasing,33101,Home to School Trans,01/06/2011,3301284003,2603,Aldermore Invoice Finance
http://statistics.data.gov.uk/id/local-authority/38,Oxfordshire County Council,Education & Early Intervention,Zone 3 - West,Contract Hire/Leasing,33101,Home to School Trans,01/06/2011,3301284004,2603,Aldermore Invoice Finance
http://statistics.data.gov.uk/id/local-authority/38,Oxfordshire County Council,Education & Early Intervention,Zone 3 - West,Contract Hire/Leasing,33101,Home to School Trans,01/06/2011,3301284005,2603,Aldermore Invoice Finance
http://statistics.data.gov.uk/id/local-authority/38,Oxfordshire County Council,Education & Early Intervention,Zone 3 - West,Contract Hire/Leasing,33101,Home to School Trans,01/06/2011,3301284006,2603,Aldermore Invoice Finance
http://statistics.data.gov.uk/id/local-authority/38,Oxfordshire County Council,Education & Early Intervention,Zone 3 - West,Contract Hire/Leasing,33101,Home to School Trans,01/06/2011,3301284007,2603,Aldermore Invoice Finance
http://statistics.data.gov.uk/id/local-authority/38,Oxfordshire County Council,Education & Early Intervention,Zone 3 - West,Contract Hire/Leasing,33101,Home to School Trans,01/06/2011,3301284008,2603,Aldermore Invoice Finance
http://statistics.data.gov.uk/id/local-authority/38,Oxfordshire County Council,Education & Early Intervention,Zone 3 - West,Contract Hire/Leasing,33101,Home to School Trans,01/06/2011,3301284009,2603,Aldermore Invoice Finance
http://statistics.data.gov.uk/id/local-authority/38,Oxfordshire County Council,Education & Early Intervention,Zone 3 - West,Contract Hire/Leasing,33101,Home to School Trans,01/06/2011,3301284010,2850,Aldermore Invoice Finance
http://statistics.data.gov.uk/id/local-authority/38,Oxfordshire County Council,Education & Early Intervention,Zone 3 - West,Contract Hire/Leasing,33101,Home to School Trans,01/06/2011,3301284011,2850,Aldermore Invoice Finance
http://statistics.data.gov.uk/id/local-authority/38,Oxfordshire County Council,Education & Early Intervention,Meadowbrook Transprt,Contract Hire/Leasing,33101,Home to School Trans,01/06/2011,3301284013,1822,SJB Cars
http://statistics.data.gov.uk/id/local-authority/38,Oxfordshire County Council,Education & Early Intervention,Meadowbrook Transprt,Contract Hire/Leasing,33101,Home to School Trans,01/06/2011,3301284014,1132,SJB Cars
http://statistics.data.gov.uk/id/local-authority/38,Oxfordshire County Council,Education & Early Intervention,Meadowbrook Transprt,Contract Hire/Leasing,33101,Home to School Trans,01/06/2011,3301284015,580,SJB Cars
http://statistics.data.gov.uk/id/local-authority/38,Oxfordshire County Council,Education & Early Intervention,Meadowbrook Transprt,Contract Hire/Leasing,33101,Home to School Trans,01/06/2011,3301284017,1300,SJB Cars
http://statistics.data.gov.uk/id/local-authority/38,Oxfordshire County Council,Education & Early Intervention,Zone 3 - West,Contract Hire/Leasing,33101,Home to School Trans,01/06/2011,3301284019,560.12,Evenlode Taxis
http://statistics.data.gov.uk/id/local-authority/38,Oxfordshire County Council,Education & Early Intervention,Zone 3 - West,Contract Hire/Leasing,33101,Home to School Trans,01/06/2011,3301284020,852.72,Evenlode Taxis
http://statistics.data.gov.uk/id/local-authority/38,Oxfordshire County Council,Education & Early Intervention,Zone 3 - West,Contract Hire/Leasing,33101,Home to School Trans,01/06/2011,3301284021,837.9,Evenlode Taxis
http://statistics.data.gov.uk/id/local-authority/38,Oxfordshire County Council,Education & Early Intervention,Zone 4 - Vale,Contract Hire/Leasing,33101,Home to School Trans,01/06/2011,3301284022,1343.49,Evenlode Taxis
http://statistics.data.gov.uk/id/local-authority/38,Oxfordshire County Council,Education & Early Intervention,Temporary Transport,Contract Hire/Leasing,33101,Home to School Trans,01/06/2011,3301284023,1169.26,Evenlode Taxis
http://statistics.data.gov.uk/id/local-authority/38,Oxfordshire County Council,SCS Pooled Budgets,LD CMPB - South Transport,Public Transport,34200,Client Journeys,01/06/2011,3301284024,459,Chiltern Taxis
http://statistics.data.gov.uk/id/local-authority/38,Oxfordshire County Council,SCS Pooled Budgets,LD CMPB - South Transport,Public Transport,34200,Client Journeys,01/06/2011,3301284025,640,Chiltern Taxis
http://statistics.data.gov.uk/id/local-authority/38,Oxfordshire County Council,Education & Early Intervention,Banbury SEN Trans,Contract Hire/Leasing,33101,Home to School Trans,01/06/2011,3301284026,3385.8,Cheney Coaches Limited
http://statistics.data.gov.uk/id/local-authority/38,Oxfordshire County Council,Education & Early Intervention,Banbury SEN Trans,Contract Hire/Leasing,33300,Transport (General),01/06/2011,3301284027,1037.02,Cheney Coaches Limited
http://statistics.data.gov.uk/id/local-authority/38,Oxfordshire County Council,Education & Early Intervention,Banbury SEN Trans,Contract Hire/Leasing,33101,Home to School Trans,01/06/2011,3301284028,3210.05,Cheney Coaches Limited
http://statistics.data.gov.uk/id/local-authority/38,Oxfordshire County Council,Education & Early Intervention,Banbury SEN Trans,Contract Hire/Leasing,33300,Transport (General),01/06/2011,3301284029,791.92,Cheney Coaches Limited
http://statistics.data.gov.uk/id/local-authority/38,Oxfordshire County Council,Education & Early Intervention,Zone 4 - Vale,Contract Hire/Leasing,33101,Home to School Trans,01/06/2011,3301284030,3515,Tappins Coaches
http://statistics.data.gov.uk/id/local-authority/38,Oxfordshire County Council,Education & Early Intervention,Zone 4 - Vale,Contract Hire/Leasing,33101,Home to School Trans,01/06/2011,3301284031,3515,Tappins Coaches
http://statistics.data.gov.uk/id/local-authority/38,Oxfordshire County Council,Education & Early Intervention,Zone 4 - Vale,Contract Hire/Leasing,33101,Home to School Trans,01/06/2011,3301284032,3515,Tappins Coaches
http://statistics.data.gov.uk/id/local-authority/38,Oxfordshire County Council,Education & Early Intervention,Zone 4 - Vale,Contract Hire/Leasing,33101,Home to School Trans,01/06/2011,3301284033,3515,Tappins Coaches
http://statistics.data.gov.uk/id/local-authority/38,Oxfordshire County Council,Education & Early Intervention,Zone 4 - Vale,Contract Hire/Leasing,33101,Home to School Trans,01/06/2011,3301284034,3515,Tappins Coaches
http://statistics.data.gov.uk/id/local-authority/38,Oxfordshire County Council,Education & Early Intervention,Zone 4 - Vale,Contract Hire/Leasing,33101,Home to School Trans,01/06/2011,3301284035,3515,Tappins Coaches
http://statistics.data.gov.uk/id/local-authority/38,Oxfordshire County Council,Education & Early Intervention,Zone 4 - Vale,Contract Hire/Leasing,33101,Home to School Trans,01/06/2011,3301284036,3515,Tappins Coaches
http://statistics.data.gov.uk/id/local-authority/38,Oxfordshire County Council,Education & Early Intervention,Zone 4 - Vale,Contract Hire/Leasing,33101,Home to School Trans,01/06/2011,3301284037,3515,Tappins Coaches
http://statistics.data.gov.uk/id/local-authority/38,Oxfordshire County Council,Education & Early Intervention,Zone 4 - Vale,Contract Hire/Leasing,33101,Home to School Trans,01/06/2011,3301284038,3515,Tappins Coaches
http://statistics.data.gov.uk/id/local-authority/38,Oxfordshire County Council,Education & Early Intervention,Zone 5 - South,Contract Hire/Leasing,33101,Home to School Trans,01/06/2011,3301284039,3618.36,Tappins Coaches
http://statistics.data.gov.uk/id/local-authority/38,Oxfordshire County Council,Education & Early Intervention,Zone 5 - South,Contract Hire/Leasing,33101,Home to School Trans,01/06/2011,3301284040,3721.72,Tappins Coaches
http://statistics.data.gov.uk/id/local-authority/38,Oxfordshire County Council,Education & Early Intervention,Zone 5 - South,Contract Hire/Leasing,33101,Home to School Trans,01/06/2011,3301284041,3825.08,Tappins Coaches
http://statistics.data.gov.uk/id/local-authority/38,Oxfordshire County Council,Education & Early Intervention,Zone 5 - South,Contract Hire/Leasing,33101,Home to School Trans,01/06/2011,3301284042,3825.08,Tappins Coaches
http://statistics.data.gov.uk/id/local-authority/38,Oxfordshire County Council,Education & Early Intervention,Zone 5 - South,Contract Hire/Leasing,33101,Home to School Trans,01/06/2011,3301284043,3825.08,Tappins Coaches
http://statistics.data.gov.uk/id/local-authority/38,Oxfordshire County Council,Education & Early Intervention,Out of County,Public Transport,34102,Pupil Fares Reclaima,01/06/2011,3301284044,793.6,REDACTED PERSONAL DATA
http://statistics.data.gov.uk/id/local-authority/38,Oxfordshire County Council,Education & Early Intervention,FE Special Trans,Contract Hire/Leasing,33101,Home to School Trans,01/06/2011,3301284045,2394,Excel Cars
http://statistics.data.gov.uk/id/local-authority/38,Oxfordshire County Council,Education & Early Intervention,FE Special Trans,Contract Hire/Leasing,33300,Transport (General),01/06/2011,3301284046,475,Excel Cars
http://statistics.data.gov.uk/id/local-authority/38,Oxfordshire County Council,Education & Early Intervention,FE Special Trans,Contract Hire/Leasing,33101,Home to School Trans,01/06/2011,3301284047,2260.81,Excel Cars
http://statistics.data.gov.uk/id/local-authority/38,Oxfordshire County Council,Education & Early Intervention,Oxford Nth SEN Trans,Contract Hire/Leasing,33101,Home to School Trans,01/06/2011,3301284050,3362.05,Excel Cars
http://statistics.data.gov.uk/id/local-authority/38,Oxfordshire County Council,Education & Early Intervention,Oxford Nth SEN Trans,Contract Hire/Leasing,33300,Transport (General),01/06/2011,3301284051,737.96,Excel Cars
http://statistics.data.gov.uk/id/local-authority/38,Oxfordshire County Council,Education & Early Intervention,Witney SEN Trans,Contract Hire/Leasing,33101,Home to School Trans,01/06/2011,3301284052,1387.38,Excel Cars
http://statistics.data.gov.uk/id/local-authority/38,Oxfordshire County Council,Education & Early Intervention,Witney SEN Trans,Contract Hire/Leasing,33300,Transport (General),01/06/2011,3301284053,445.93,Excel Cars
http://statistics.data.gov.uk/id/local-authority/38,Oxfordshire County Council,Education & Early Intervention,Witney SEN Trans,Contract Hire/Leasing,33101,Home to School Trans,01/06/2011,3301284054,1189.21,Excel Cars
http://statistics.data.gov.uk/id/local-authority/38,Oxfordshire County Council,Education & Early Intervention,Witney SEN Trans,Contract Hire/Leasing,33300,Transport (General),01/06/2011,3301284055,445.93,Excel Cars
http://statistics.data.gov.uk/id/local-authority/38,Oxfordshire County Council,Education & Early Intervention,Witney SEN Trans,Contract Hire/Leasing,33101,Home to School Trans,01/06/2011,3301284056,1288.39,Excel Cars
http://statistics.data.gov.uk/id/local-authority/38,Oxfordshire County Council,Education & Early Intervention,Witney SEN Trans,Contract Hire/Leasing,33300,Transport (General),01/06/2011,3301284057,445.93,Excel Cars
http://statistics.data.gov.uk/id/local-authority/38,Oxfordshire County Council,Education & Early Intervention,Witney SEN Trans,Contract Hire/Leasing,33101,Home to School Trans,01/06/2011,3301284058,1863.14,Excel Cars
http://statistics.data.gov.uk/id/local-authority/38,Oxfordshire County Council,Education & Early Intervention,Witney SEN Trans,Contract Hire/Leasing,33101,Home to School Trans,01/06/2011,3301284060,1347.86,Excel Cars
http://statistics.data.gov.uk/id/local-authority/38,Oxfordshire County Council,Education & Early Intervention,Witney SEN Trans,Contract Hire/Leasing,33300,Transport (General),01/06/2011,3301284061,445.93,Excel Cars
http://statistics.data.gov.uk/id/local-authority/38,Oxfordshire County Council,Education & Early Intervention,Witney SEN Trans,Contract Hire/Leasing,33101,Home to School Trans,01/06/2011,3301284062,1486.56,Excel Cars
http://statistics.data.gov.uk/id/local-authority/38,Oxfordshire County Council,Education & Early Intervention,Witney SEN Trans,Contract Hire/Leasing,33300,Transport (General),01/06/2011,3301284063,445.93,Excel Cars
http://statistics.data.gov.uk/id/local-authority/38,Oxfordshire County Council,Education & Early Intervention,Witney SEN Trans,Contract Hire/Leasing,33101,Home to School Trans,01/06/2011,3301284064,673.93,Excel Cars
http://statistics.data.gov.uk/id/local-authority/38,Oxfordshire County Council,Education & Early Intervention,Zone 2 - East,Contract Hire/Leasing,33101,Home to School Trans,01/06/2011,3301284067,1502.28,Excel Cars
http://statistics.data.gov.uk/id/local-authority/38,Oxfordshire County Council,Education & Early Intervention,Respite Care,Contract Hire/Leasing,33101,Home to School Trans,01/06/2011,3301284068,761.98,Excel Cars
http://statistics.data.gov.uk/id/local-authority/38,Oxfordshire County Council,Education & Early Intervention,Respite Care,Contract Hire/Leasing,33101,Home to School Trans,01/06/2011,3301284069,1098.5,Excel Cars
http://statistics.data.gov.uk/id/local-authority/38,Oxfordshire County Council,SCS Pooled Budgets,Community Support Budget - City,Other Agency and Contracted Services,57401,Direct Payments,01/06/2011,3301284071,2211.52,REDACTED PERSONAL DATA
http://statistics.data.gov.uk/id/local-authority/38,Oxfordshire County Council,SCS Pooled Budgets,Community Support Budget - Banbury,Other Agency and Contracted Services,57401,Direct Payments,01/06/2011,3301284075,1273.4,REDACTED PERSONAL DATA
http://statistics.data.gov.uk/id/local-authority/38,Oxfordshire County Council,SCS Pooled Budgets,Community Support Budget - Abingdon,Other Agency and Contracted Services,57401,Direct Payments,01/06/2011,3301284076,730.68,REDACTED PERSONAL DATA
http://statistics.data.gov.uk/id/local-authority/38,Oxfordshire County Council,SCS Pooled Budgets,Direct Payments South Team,Other Agency and Contracted Services,57401,Direct Payments,01/06/2011,3301284078,954.68,REDACTED PERSONAL DATA
http://statistics.data.gov.uk/id/local-authority/38,Oxfordshire County Council,SCS Pooled Budgets,Direct Payments South Team,Other Agency and Contracted Services,57401,Direct Payments,01/06/2011,3301284079,5684.16,REDACTED PERSONAL DATA
http://statistics.data.gov.uk/id/local-authority/38,Oxfordshire County Council,SCS Pooled Budgets,Direct Payments South Team,Other Agency and Contracted Services,57401,Direct Payments,01/06/2011,3301284080,2307.68,REDACTED PERSONAL DATA
http://statistics.data.gov.uk/id/local-authority/38,Oxfordshire County Council,SCS Pooled Budgets,Community Support Budget - City,Other Agency and Contracted Services,57401,Direct Payments,01/06/2011,3301284081,2535.4,REDACTED PERSONAL DATA
http://statistics.data.gov.uk/id/local-authority/38,Oxfordshire County Council,SCS Pooled Budgets,Community Support Budget - Chipping Nort,Other Agency and Contracted Services,57401,Direct Payments,01/06/2011,3301284082,1520,REDACTED PERSONAL DATA
http://statistics.data.gov.uk/id/local-authority/38,Oxfordshire County Council,SCS Pooled Budgets,Community Support Budget - Banbury,Other Agency and Contracted Services,57401,Direct Payments,01/06/2011,3301284083,1253.48,REDACTED PERSONAL DATA
http://statistics.data.gov.uk/id/local-authority/38,Oxfordshire County Council,SCS Pooled Budgets,Community Support Budget - Thame,Other Agency and Contracted Services,57401,Direct Payments,01/06/2011,3301284084,1902.76,REDACTED PERSONAL DATA
http://statistics.data.gov.uk/id/local-authority/38,Oxfordshire County Council,SCS Pooled Budgets,PD Comm Supp Purchasg Budget - Thame,Other Agency and Contracted Services,57401,Direct Payments,01/06/2011,3301284085,844.76,REDACTED PERSONAL DATA
http://statistics.data.gov.uk/id/local-authority/38,Oxfordshire County Council,SCS Pooled Budgets,Community Support Budget - Banbury,Other Agency and Contracted Services,57401,Direct Payments,01/06/2011,3301284088,2680.28,REDACTED PERSONAL DATA
http://statistics.data.gov.uk/id/local-authority/38,Oxfordshire County Council,SCS Pooled Budgets,PD Comm Supp Purchasg Budget - Chip. N.,Other Agency and Contracted Services,57401,Direct Payments,01/06/2011,3301284089,640,REDACTED PERSONAL DATA
http://statistics.data.gov.uk/id/local-authority/38,Oxfordshire County Council,SCS Pooled Budgets,PD Comm Supp Purchasg Budget - Abingdon,Other Agency and Contracted Services,57401,Direct Payments,01/06/2011,3301284090,1457.04,REDACTED PERSONAL DATA
http://statistics.data.gov.uk/id/local-authority/38,Oxfordshire County Council,SCS Pooled Budgets,Community Support Budget - Didcot,Other Agency and Contracted Services,57401,Direct Payments,01/06/2011,3301284091,633.84,REDACTED PERSONAL DATA
http://statistics.data.gov.uk/id/local-authority/38,Oxfordshire County Council,SCS Pooled Budgets,PD CS Purch Budget - Health S28a JC,Other Agency and Contracted Services,57401,Direct Payments,01/06/2011,3301284092,673.06,REDACTED PERSONAL DATA
http://statistics.data.gov.uk/id/local-authority/38,Oxfordshire County Council,SCS Pooled Budgets,PD Comm Supp Purchasg Budget - City,Other Agency and Contracted Services,57401,Direct Payments,01/06/2011,3301284092,1146.02,REDACTED PERSONAL DATA
http://statistics.data.gov.uk/id/local-authority/38,Oxfordshire County Council,SCS Pooled Budgets,Direct Payments North Team,Other Agency and Contracted Services,57401,Direct Payments,01/06/2011,3301284093,1980,REDACTED PERSONAL DATA
http://statistics.data.gov.uk/id/local-authority/38,Oxfordshire County Council,SCS Pooled Budgets,PD Comm Supp Budgt - Bicester/Kidlington,Other Agency and Contracted Services,57401,Direct Payments,01/06/2011,3301284094,1082.85,REDACTED PERSONAL DATA
http://statistics.data.gov.uk/id/local-authority/38,Oxfordshire County Council,SCS Pooled Budgets,PD CS Purch Budget - Health S28a JC,Other Agency and Contracted Services,57401,Direct Payments,01/06/2011,3301284094,960.27,REDACTED PERSONAL DATA
http://statistics.data.gov.uk/id/local-authority/38,Oxfordshire County Council,SCS Pooled Budgets,Direct Payments City Team,Other Agency and Contracted Services,57401,Direct Payments,01/06/2011,3301284095,560,REDACTED PERSONAL DATA
http://statistics.data.gov.uk/id/local-authority/38,Oxfordshire County Council,SCS Pooled Budgets,PD Comm Supp Budget - Banbury,Other Agency and Contracted Services,57401,Direct Payments,01/06/2011,3301284097,1637.04,REDACTED PERSONAL DATA
http://statistics.data.gov.uk/id/local-authority/38,Oxfordshire County Council,SCS Pooled Budgets,PD Comm Supp Budgt - Bicester/Kidlington,Other Agency and Contracted Services,57401,Direct Payments,01/06/2011,3301284098,2994.6,REDACTED PERSONAL DATA
http://statistics.data.gov.uk/id/local-authority/38,Oxfordshire County Council,SCS Pooled Budgets,Community Support Budget - City,Other Agency and Contracted Services,57401,Direct Payments,01/06/2011,3301284099,1079.36,REDACTED PERSONAL DATA
http://statistics.data.gov.uk/id/local-authority/38,Oxfordshire County Council,SCS Pooled Budgets,PD Community Support Budget - Kidlington,Other Agency and Contracted Services,57401,Direct Payments,01/06/2011,3301284100,1903.72,REDACTED PERSONAL DATA
http://statistics.data.gov.uk/id/local-authority/38,Oxfordshire County Council,SCS Pooled Budgets,PD CS Purch Budget - Health S28a JC,Other Agency and Contracted Services,57401,Direct Payments,01/06/2011,3301284100,815.88,REDACTED PERSONAL DATA
http://statistics.data.gov.uk/id/local-authority/38,Oxfordshire County Council,SCS Pooled Budgets,PD Comm Supp Purchasg Budget - Abingdon,Other Agency and Contracted Services,57401,Direct Payments,01/06/2011,3301284101,1077.6,REDACTED PERSONAL DATA
http://statistics.data.gov.uk/id/local-authority/38,Oxfordshire County Council,SCS Pooled Budgets,PD Comm Supp Purchasg Budget - Witney,Other Agency and Contracted Services,57401,Direct Payments,01/06/2011,3301284102,1846.44,REDACTED PERSONAL DATA
http://statistics.data.gov.uk/id/local-authority/38,Oxfordshire County Council,SCS Pooled Budgets,Community Support Budget - Banbury,Other Agency and Contracted Services,57401,Direct Payments,01/06/2011,3301284103,912,REDACTED PERSONAL DATA
http://statistics.data.gov.uk/id/local-authority/38,Oxfordshire County Council,SCS Pooled Budgets,Direct Payments South Team,Other Agency and Contracted Services,57401,Direct Payments,01/06/2011,3301284104,954.68,REDACTED PERSONAL DATA
http://statistics.data.gov.uk/id/local-authority/38,Oxfordshire County Council,SCS Pooled Budgets,PD Comm Supp Purchasg Budget - City,Other Agency and Contracted Services,57401,Direct Payments,01/06/2011,3301284105,993.56,REDACTED PERSONAL DATA
http://statistics.data.gov.uk/id/local-authority/38,Oxfordshire County Council,SCS Pooled Budgets,Community Support Budget - Kidlington,Other Agency and Contracted Services,57401,Direct Payments,01/06/2011,3301284106,1231.48,REDACTED PERSONAL DATA
http://statistics.data.gov.uk/id/local-authority/38,Oxfordshire County Council,SCS Pooled Budgets,Direct Payments North Team,Other Agency and Contracted Services,57401,Direct Payments,01/06/2011,3301284108,933.6,REDACTED PERSONAL DATA
http://statistics.data.gov.uk/id/local-authority/38,Oxfordshire County Council,SCS Pooled Budgets,Direct Payments North Team,Other Agency and Contracted Services,57401,Direct Payments,01/06/2011,3301284110,5379.46,REDACTED PERSONAL DATA
http://statistics.data.gov.uk/id/local-authority/38,Oxfordshire County Council,Social & Community Services,"LD Day Services, Service Managers",Other Agency and Contracted Services,57401,Direct Payments,01/06/2011,3301284110,1227.75,REDACTED PERSONAL DATA
http://statistics.data.gov.uk/id/local-authority/38,Oxfordshire County Council,SCS Pooled Budgets,Community Support Budget - Banbury,Other Agency and Contracted Services,57401,Direct Payments,01/06/2011,3301284111,651.96,REDACTED PERSONAL DATA
http://statistics.data.gov.uk/id/local-authority/38,Oxfordshire County Council,SCS Pooled Budgets,Direct Payments City Team,Other Agency and Contracted Services,57401,Direct Payments,01/06/2011,3301284112,1302,REDACTED PERSONAL DATA
http://statistics.data.gov.uk/id/local-authority/38,Oxfordshire County Council,SCS Pooled Budgets,PD Comm Supp Budget - Banbury,Other Agency and Contracted Services,57401,Direct Payments,01/06/2011,3301284113,2291.84,REDACTED PERSONAL DATA
http://statistics.data.gov.uk/id/local-authority/38,Oxfordshire County Council,SCS Pooled Budgets,PD Comm Supp Purchasg Budget - Didcot,Other Agency and Contracted Services,57401,Direct Payments,01/06/2011,3301284115,1240,REDACTED PERSONAL DATA
http://statistics.data.gov.uk/id/local-authority/38,Oxfordshire County Council,SCS Pooled Budgets,Direct Payments North Team,Other Agency and Contracted Services,57401,Direct Payments,01/06/2011,3301284117,1822.8,REDACTED PERSONAL DATA
http://statistics.data.gov.uk/id/local-authority/38,Oxfordshire County Council,SCS Pooled Budgets,Direct Payments South Team,Other Agency and Contracted Services,57401,Direct Payments,01/06/2011,3301284118,3842.2,REDACTED PERSONAL DATA
http://statistics.data.gov.uk/id/local-authority/38,Oxfordshire County Council,SCS Pooled Budgets,Direct Payments City Team,Other Agency and Contracted Services,57401,Direct Payments,01/06/2011,3301284121,3379.28,REDACTED PERSONAL DATA
http://statistics.data.gov.uk/id/local-authority/38,Oxfordshire County Council,SCS Pooled Budgets,PD Comm Supp Purchasg Budget - Witney,Other Agency and Contracted Services,57401,Direct Payments,01/06/2011,3301284122,700,REDACTED PERSONAL DATA
http://statistics.data.gov.uk/id/local-authority/38,Oxfordshire County Council,SCS Pooled Budgets,Community Support Budget - Banbury,Other Agency and Contracted Services,57401,Direct Payments,01/06/2011,3301284124,1445.84,REDACTED PERSONAL DATA
http://statistics.data.gov.uk/id/local-authority/38,Oxfordshire County Council,SCS Pooled Budgets,Community Support Budget - Thame,Other Agency and Contracted Services,57401,Direct Payments,01/06/2011,3301284125,1189.32,REDACTED PERSONAL DATA
http://statistics.data.gov.uk/id/local-authority/38,Oxfordshire County Council,SCS Pooled Budgets,PD Comm Supp Purchasg Budget - City,Other Agency and Contracted Services,57401,Direct Payments,01/06/2011,3301284126,1520.52,REDACTED PERSONAL DATA
http://statistics.data.gov.uk/id/local-authority/38,Oxfordshire County Council,SCS Pooled Budgets,Direct Payments North Team,Other Agency and Contracted Services,57401,Direct Payments,01/06/2011,3301284127,4860,REDACTED PERSONAL DATA
http://statistics.data.gov.uk/id/local-authority/38,Oxfordshire County Council,SCS Pooled Budgets,Direct Payments South Team,Other Agency and Contracted Services,57401,Direct Payments,01/06/2011,3301284128,15370.2,REDACTED PERSONAL DATA
http://statistics.data.gov.uk/id/local-authority/38,Oxfordshire County Council,SCS Pooled Budgets,Community Support Budget - Witney,Other Agency and Contracted Services,57401,Direct Payments,01/06/2011,3301284130,1520,REDACTED PERSONAL DATA
http://statistics.data.gov.uk/id/local-authority/38,Oxfordshire County Council,SCS Pooled Budgets,Direct Payments City Team,Other Agency and Contracted Services,57401,Direct Payments,01/06/2011,3301284131,720.16,REDACTED PERSONAL DATA
http://statistics.data.gov.uk/id/local-authority/38,Oxfordshire County Council,SCS Pooled Budgets,Community Support Budget - Bicester,Other Agency and Contracted Services,57401,Direct Payments,01/06/2011,3301284132,1603,REDACTED PERSONAL DATA
http://statistics.data.gov.uk/id/local-authority/38,Oxfordshire County Council,SCS Pooled Budgets,Community Support Budget - Witney,Other Agency and Contracted Services,57401,Direct Payments,01/06/2011,3301284133,784,REDACTED PERSONAL DATA
http://statistics.data.gov.uk/id/local-authority/38,Oxfordshire County Council,Social & Community Services,Community Support Budget - City East,Other Agency and Contracted Services,57401,Direct Payments,01/06/2011,3301284134,640,REDACTED PERSONAL DATA
http://statistics.data.gov.uk/id/local-authority/38,Oxfordshire County Council,SCS Pooled Budgets,Direct Payments South Team,Other Agency and Contracted Services,57401,Direct Payments,01/06/2011,3301284135,3600,REDACTED PERSONAL DATA
http://statistics.data.gov.uk/id/local-authority/38,Oxfordshire County Council,SCS Pooled Budgets,PD Comm Supp Purchasg Budget - Witney,Other Agency and Contracted Services,57401,Direct Payments,01/06/2011,3301284136,2789.28,REDACTED PERSONAL DATA
http://statistics.data.gov.uk/id/local-authority/38,Oxfordshire County Council,SCS Pooled Budgets,PD CS Purch Budget - Health S28a JC,Other Agency and Contracted Services,57401,Direct Payments,01/06/2011,3301284137,1313.52,REDACTED PERSONAL DATA
http://statistics.data.gov.uk/id/local-authority/38,Oxfordshire County Council,SCS Pooled Budgets,PD Comm Supp Purchasg Budget - Didcot,Other Agency and Contracted Services,57401,Direct Payments,01/06/2011,3301284137,1313.52,REDACTED PERSONAL DATA
http://statistics.data.gov.uk/id/local-authority/38,Oxfordshire County Council,SCS Pooled Budgets,Community Support Budget - Didcot,Other Agency and Contracted Services,57401,Direct Payments,01/06/2011,3301284138,887.39,REDACTED PERSONAL DATA
http://statistics.data.gov.uk/id/local-authority/38,Oxfordshire County Council,SCS Pooled Budgets,Community Support Budget - Kidlington,Other Agency and Contracted Services,57401,Direct Payments,01/06/2011,3301284141,2028.32,REDACTED PERSONAL DATA
http://statistics.data.gov.uk/id/local-authority/38,Oxfordshire County Council,SCS Pooled Budgets,Community Support Budget - Abingdon,Other Agency and Contracted Services,57401,Direct Payments,01/06/2011,3301284143,1634.12,REDACTED PERSONAL DATA
http://statistics.data.gov.uk/id/local-authority/38,Oxfordshire County Council,SCS Pooled Budgets,PD Comm Supp Purchasg Budget - Abingdon,Other Agency and Contracted Services,57401,Direct Payments,01/06/2011,3301284144,879.78,REDACTED PERSONAL DATA
http://statistics.data.gov.uk/id/local-authority/38,Oxfordshire County Council,SCS Pooled Budgets,OP Pool Continuing Care Delegated Health,Other Agency and Contracted Services,57401,Direct Payments,01/06/2011,3301284146,1800,REDACTED PERSONAL DATA
http://statistics.data.gov.uk/id/local-authority/38,Oxfordshire County Council,SCS Pooled Budgets,Community Support Budget - Henley,Other Agency and Contracted Services,57401,Direct Payments,01/06/2011,3301284146,3292,REDACTED PERSONAL DATA
http://statistics.data.gov.uk/id/local-authority/38,Oxfordshire County Council,SCS Pooled Budgets,Community Support Budget - Didcot,Other Agency and Contracted Services,57401,Direct Payments,01/06/2011,3301284148,1600,REDACTED PERSONAL DATA
http://statistics.data.gov.uk/id/local-authority/38,Oxfordshire County Council,SCS Pooled Budgets,Community Support Budget - Didcot,Other Agency and Contracted Services,57401,Direct Payments,01/06/2011,3301284149,727.48,REDACTED PERSONAL DATA
http://statistics.data.gov.uk/id/local-authority/38,Oxfordshire County Council,SCS Pooled Budgets,Community Support Budget - Banbury,Other Agency and Contracted Services,57401,Direct Payments,01/06/2011,3301284150,2200,REDACTED PERSONAL DATA
http://statistics.data.gov.uk/id/local-authority/38,Oxfordshire County Council,SCS Pooled Budgets,Community Support Budget - Banbury,Other Agency and Contracted Services,57401,Direct Payments,01/06/2011,3301284151,745.14,REDACTED PERSONAL DATA
http://statistics.data.gov.uk/id/local-authority/38,Oxfordshire County Council,SCS Pooled Budgets,Community Support Budget - Banbury,Other Agency and Contracted Services,57401,Direct Payments,01/06/2011,3301284151,652,REDACTED PERSONAL DATA
http://statistics.data.gov.uk/id/local-authority/38,Oxfordshire County Council,SCS Pooled Budgets,PD CS Purch Budget - Health S28a JC,Other Agency and Contracted Services,57401,Direct Payments,01/06/2011,3301284155,2051.68,REDACTED PERSONAL DATA
http://statistics.data.gov.uk/id/local-authority/38,Oxfordshire County Council,SCS Pooled Budgets,PD Comm Supp Budget - Banbury,Other Agency and Contracted Services,57401,Direct Payments,01/06/2011,3301284155,1547.76,REDACTED PERSONAL DATA
http://statistics.data.gov.uk/id/local-authority/38,Oxfordshire County Council,SCS Pooled Budgets,Direct Payments South Team,Other Agency and Contracted Services,57401,Direct Payments,01/06/2011,3301284156,1230.44,REDACTED PERSONAL DATA
http://statistics.data.gov.uk/id/local-authority/38,Oxfordshire County Council,SCS Pooled Budgets,PD Comm Supp Purchasg Budget - City,Other Agency and Contracted Services,57401,Direct Payments,01/06/2011,3301284157,1302,REDACTED PERSONAL DATA
http://statistics.data.gov.uk/id/local-authority/38,Oxfordshire County Council,SCS Pooled Budgets,Community Support Budget - City,Other Agency and Contracted Services,57401,Direct Payments,01/06/2011,3301284158,2064.8,REDACTED PERSONAL DATA
http://statistics.data.gov.uk/id/local-authority/38,Oxfordshire County Council,SCS Pooled Budgets,PD Comm Supp Purchasg Budget - Henley,Other Agency and Contracted Services,57401,Direct Payments,01/06/2011,3301284159,1280,REDACTED PERSONAL DATA
http://statistics.data.gov.uk/id/local-authority/38,Oxfordshire County Council,SCS Pooled Budgets,Community Support Budget - Didcot,Other Agency and Contracted Services,57401,Direct Payments,01/06/2011,3301284160,555,A4e Management Ltd Week 3
http://statistics.data.gov.uk/id/local-authority/38,Oxfordshire County Council,SCS Pooled Budgets,Direct Payments South Team,Other Agency and Contracted Services,57401,Direct Payments,01/06/2011,3301284161,795,A4e Management Ltd Week 3
http://statistics.data.gov.uk/id/local-authority/38,Oxfordshire County Council,SCS Pooled Budgets,Direct Payments South Team,Other Agency and Contracted Services,57401,Direct Payments,01/06/2011,3301284162,517.38,A4e Management Ltd Week 3
http://statistics.data.gov.uk/id/local-authority/38,Oxfordshire County Council,SCS Pooled Budgets,PD Comm Supp Purchasg Budget - Abingdon,Other Agency and Contracted Services,57401,Direct Payments,01/06/2011,3301284168,591.3,A4e Management Ltd Week 3
http://statistics.data.gov.uk/id/local-authority/38,Oxfordshire County Council,SCS Pooled Budgets,PD Comm Supp Purchasg Budget - Didcot,Other Agency and Contracted Services,57401,Direct Payments,01/06/2011,3301284174,1139.25,A4e Management Ltd Week 3
http://statistics.data.gov.uk/id/local-authority/38,Oxfordshire County Council,SCS Pooled Budgets,PD Comm Supp Purchasg Budget - Thame,Other Agency and Contracted Services,57401,Direct Payments,01/06/2011,3301284175,921.18,A4e Management Ltd Week 3
http://statistics.data.gov.uk/id/local-authority/38,Oxfordshire County Council,SCS Pooled Budgets,Direct Payments South Team,Other Agency and Contracted Services,57401,Direct Payments,01/06/2011,3301284178,719.52,A4e Management Ltd Week 3
http://statistics.data.gov.uk/id/local-authority/38,Oxfordshire County Council,SCS Pooled Budgets,Community Support Budget - City,Other Agency and Contracted Services,57401,Direct Payments,01/06/2011,3301284180,1481.79,A4e Management Ltd Week 3
http://statistics.data.gov.uk/id/local-authority/38,Oxfordshire County Council,SCS Pooled Budgets,PD Community Support Budget - Kidlington,Other Agency and Contracted Services,57401,Direct Payments,01/06/2011,3301284187,663.57,A4e Management Ltd Week 3
http://statistics.data.gov.uk/id/local-authority/38,Oxfordshire County Council,SCS Pooled Budgets,PD Comm Supp Purchasg Budget - Abingdon,Other Agency and Contracted Services,57401,Direct Payments,01/06/2011,3301284188,694.8,A4e Management Ltd Week 3
http://statistics.data.gov.uk/id/local-authority/38,Oxfordshire County Council,SCS Pooled Budgets,Direct Payments North Team,Other Agency and Contracted Services,57401,Direct Payments,01/06/2011,3301284191,1219.56,A4e Management Ltd Week 3
http://statistics.data.gov.uk/id/local-authority/38,Oxfordshire County Council,SCS Pooled Budgets,Community Support Budget - Witney,Other Agency and Contracted Services,57401,Direct Payments,01/06/2011,3301284192,552.12,A4e Management Ltd Week 3
http://statistics.data.gov.uk/id/local-authority/38,Oxfordshire County Council,SCS Pooled Budgets,Community Support Budget - Bicester,Other Agency and Contracted Services,57401,Direct Payments,01/06/2011,3301284194,510,A4e Management Ltd Week 3
http://statistics.data.gov.uk/id/local-authority/38,Oxfordshire County Council,SCS Pooled Budgets,Direct Payments North Team,Other Agency and Contracted Services,57401,Direct Payments,01/06/2011,3301284196,625.04,A4e Management Ltd Week 3
http://statistics.data.gov.uk/id/local-authority/38,Oxfordshire County Council,SCS Pooled Budgets,PD Comm Supp Purchasg Budget - City,Other Agency and Contracted Services,57401,Direct Payments,01/06/2011,3301284199,553.35,A4e Management Ltd Week 3
http://statistics.data.gov.uk/id/local-authority/38,Oxfordshire County Council,SCS Pooled Budgets,Community Support Budget - City,Other Agency and Contracted Services,57401,Direct Payments,01/06/2011,3301284201,760.62,A4e Management Ltd Week 3
http://statistics.data.gov.uk/id/local-authority/38,Oxfordshire County Council,Social & Community Services,Community Support Budget - City East,Other Agency and Contracted Services,57401,Direct Payments,01/06/2011,3301284207,511.5,A4e Management Ltd Week 3
http://statistics.data.gov.uk/id/local-authority/38,Oxfordshire County Council,SCS Pooled Budgets,Community Support Budget - Banbury,Other Agency and Contracted Services,57401,Direct Payments,01/06/2011,3301284208,1500,A4e Management Ltd Week 3
http://statistics.data.gov.uk/id/local-authority/38,Oxfordshire County Council,SCS Pooled Budgets,Direct Payments City Team,Other Agency and Contracted Services,57401,Direct Payments,01/06/2011,3301284217,546.6,A4e Management Ltd Week 3
http://statistics.data.gov.uk/id/local-authority/38,Oxfordshire County Council,SCS Pooled Budgets,PD Comm Supp Purchasg Budget - Thame,Other Agency and Contracted Services,57401,Direct Payments,01/06/2011,3301284219,882.03,A4e Management Ltd Week 3
http://statistics.data.gov.uk/id/local-authority/38,Oxfordshire County Council,SCS Pooled Budgets,Direct Payments South Team,Other Agency and Contracted Services,57401,Direct Payments,01/06/2011,3301284222,500.4,A4e Management Ltd Week 3
http://statistics.data.gov.uk/id/local-authority/38,Oxfordshire County Council,SCS Pooled Budgets,Community Support Budget - Chipping Nort,Other Agency and Contracted Services,57401,Direct Payments,01/06/2011,3301284223,2123,A4e Management Ltd Week 3
http://statistics.data.gov.uk/id/local-authority/38,Oxfordshire County Council,SCS Pooled Budgets,Community Support Budget - Kidlington,Other Agency and Contracted Services,57401,Direct Payments,01/06/2011,3301284226,950.78,A4e Management Ltd Week 3
http://statistics.data.gov.uk/id/local-authority/38,Oxfordshire County Council,SCS Pooled Budgets,Community Support Budget - Henley,Other Agency and Contracted Services,57401,Direct Payments,01/06/2011,3301284230,637.89,A4e Management Ltd Week 3
http://statistics.data.gov.uk/id/local-authority/38,Oxfordshire County Council,SCS Pooled Budgets,Community Support Budget - Banbury,Other Agency and Contracted Services,57401,Direct Payments,01/06/2011,3301284231,840,A4e Management Ltd Week 3
http://statistics.data.gov.uk/id/local-authority/38,Oxfordshire County Council,SCS Pooled Budgets,PD Comm Supp Purchasg Budget - City,Other Agency and Contracted Services,57401,Direct Payments,01/06/2011,3301284234,524.36,A4e Management Ltd Week 3
http://statistics.data.gov.uk/id/local-authority/38,Oxfordshire County Council,SCS Pooled Budgets,PD CS Purch Budget - Health S28a JC,Other Agency and Contracted Services,57401,Direct Payments,01/06/2011,3301284234,1167.13,A4e Management Ltd Week 3
http://statistics.data.gov.uk/id/local-authority/38,Oxfordshire County Council,SCS Pooled Budgets,PD Comm Supp Purchasg Budget - Witney,Other Agency and Contracted Services,57401,Direct Payments,01/06/2011,3301284235,1080,A4e Management Ltd Week 3
http://statistics.data.gov.uk/id/local-authority/38,Oxfordshire County Council,SCS Pooled Budgets,Direct Payments City Team,Other Agency and Contracted Services,57401,Direct Payments,01/06/2011,3301284245,1105.2,A4e Management Ltd Week 3
http://statistics.data.gov.uk/id/local-authority/38,Oxfordshire County Council,SCS Pooled Budgets,Community Support Budget - Banbury,Other Agency and Contracted Services,57401,Direct Payments,01/06/2011,3301284255,545.4,A4e Management Ltd Week 3
http://statistics.data.gov.uk/id/local-authority/38,Oxfordshire County Council,SCS Pooled Budgets,Community Support Budget - Bicester,Other Agency and Contracted Services,57401,Direct Payments,01/06/2011,3301284260,719.88,A4e Management Ltd Week 3
http://statistics.data.gov.uk/id/local-authority/38,Oxfordshire County Council,SCS Pooled Budgets,Community Support Budget - City,Other Agency and Contracted Services,57401,Direct Payments,01/06/2011,3301284261,813.75,A4e Management Ltd Week 3
http://statistics.data.gov.uk/id/local-authority/38,Oxfordshire County Council,SCS Pooled Budgets,Community Support Budget - Witney,Other Agency and Contracted Services,57401,Direct Payments,01/06/2011,3301284263,696,A4e Management Ltd Week 3
http://statistics.data.gov.uk/id/local-authority/38,Oxfordshire County Council,SCS Pooled Budgets,PD Comm Supp Purchasg Budget - Didcot,Other Agency and Contracted Services,57401,Direct Payments,01/06/2011,3301284264,823.92,A4e Management Ltd Week 3
http://statistics.data.gov.uk/id/local-authority/38,Oxfordshire County Council,SCS Pooled Budgets,Community Support Budget - Banbury,Other Agency and Contracted Services,57401,Direct Payments,01/06/2011,3301284266,500,A4e Management Ltd Week 3
http://statistics.data.gov.uk/id/local-authority/38,Oxfordshire County Council,SCS Pooled Budgets,Direct Payments North Team,Other Agency and Contracted Services,57401,Direct Payments,01/06/2011,3301284267,1065.08,A4e Management Ltd Week 3
http://statistics.data.gov.uk/id/local-authority/38,Oxfordshire County Council,SCS Pooled Budgets,Community Support Budget - Banbury,Other Agency and Contracted Services,57401,Direct Payments,01/06/2011,3301284268,951,A4e Management Ltd Week 3
http://statistics.data.gov.uk/id/local-authority/38,Oxfordshire County Council,SCS Pooled Budgets,Community Support Budget - Kidlington,Other Agency and Contracted Services,57401,Direct Payments,01/06/2011,3301284274,719.88,A4e Management Ltd Week 3
http://statistics.data.gov.uk/id/local-authority/38,Oxfordshire County Council,SCS Pooled Budgets,Direct Payments North Team,Other Agency and Contracted Services,57401,Direct Payments,01/06/2011,3301284277,3195.24,A4e Management Ltd Week 3
http://statistics.data.gov.uk/id/local-authority/38,Oxfordshire County Council,SCS Pooled Budgets,Community Support Budget - Witney,Other Agency and Contracted Services,57401,Direct Payments,01/06/2011,3301284278,915,A4e Management Ltd Week 3
http://statistics.data.gov.uk/id/local-authority/38,Oxfordshire County Council,Social & Community Services,Community Support Budget - City East,Other Agency and Contracted Services,57401,Direct Payments,01/06/2011,3301284280,648.3,A4e Management Ltd Week 3
http://statistics.data.gov.uk/id/local-authority/38,Oxfordshire County Council,SCS Pooled Budgets,Community Support Budget - Didcot,Other Agency and Contracted Services,57401,Direct Payments,01/06/2011,3301284281,874.87,A4e Management Ltd Week 3
http://statistics.data.gov.uk/id/local-authority/38,Oxfordshire County Council,SCS Pooled Budgets,PD Comm Supp Budget - Banbury,Other Agency and Contracted Services,57401,Direct Payments,01/06/2011,3301284290,515.52,A4e Management Ltd Week 3
http://statistics.data.gov.uk/id/local-authority/38,Oxfordshire County Council,SCS Pooled Budgets,Direct Payments City Team,Other Agency and Contracted Services,57401,Direct Payments,01/06/2011,3301284291,762.3,A4e Management Ltd Week 3
http://statistics.data.gov.uk/id/local-authority/38,Oxfordshire County Council,SCS Pooled Budgets,PD Community Support Budget - Kidlington,Other Agency and Contracted Services,57401,Direct Payments,01/06/2011,3301284292,1990.71,A4e Management Ltd Week 3
http://statistics.data.gov.uk/id/local-authority/38,Oxfordshire County Council,SCS Pooled Budgets,Community Support Budget - Chipping Nort,Other Agency and Contracted Services,57401,Direct Payments,01/06/2011,3301284297,579,A4e Management Ltd Week 3
http://statistics.data.gov.uk/id/local-authority/38,Oxfordshire County Council,SCS Pooled Budgets,Direct Payments South Team,Other Agency and Contracted Services,57401,Direct Payments,01/06/2011,3301284301,1135.6,HOLD Ltd
http://statistics.data.gov.uk/id/local-authority/38,Oxfordshire County Council,SCS Pooled Budgets,Direct Payments South Team,Other Agency and Contracted Services,57401,Direct Payments,01/06/2011,3301284303,935.2,HOLD Ltd
http://statistics.data.gov.uk/id/local-authority/38,Oxfordshire County Council,SCS Pooled Budgets,Direct Payments South Team,Other Agency and Contracted Services,57401,Direct Payments,01/06/2011,3301284304,935.2,HOLD Ltd
http://statistics.data.gov.uk/id/local-authority/38,Oxfordshire County Council,SCS Pooled Budgets,Direct Payments South Team,Other Agency and Contracted Services,57401,Direct Payments,01/06/2011,3301284305,601.2,HOLD Ltd
http://statistics.data.gov.uk/id/local-authority/38,Oxfordshire County Council,SCS Pooled Budgets,Direct Payments South Team,Other Agency and Contracted Services,57401,Direct Payments,01/06/2011,3301284306,935.2,HOLD Ltd
http://statistics.data.gov.uk/id/local-authority/38,Oxfordshire County Council,SCS Pooled Budgets,Direct Payments South Team,Other Agency and Contracted Services,57401,Direct Payments,01/06/2011,3301284308,935.2,HOLD Ltd
http://statistics.data.gov.uk/id/local-authority/38,Oxfordshire County Council,SCS Pooled Budgets,Direct Payments South Team,Other Agency and Contracted Services,57401,Direct Payments,01/06/2011,3301284309,935.2,HOLD Ltd
http://statistics.data.gov.uk/id/local-authority/38,Oxfordshire County Council,SCS Pooled Budgets,Direct Payments South Team,Other Agency and Contracted Services,57401,Direct Payments,01/06/2011,3301284310,801.6,HOLD Ltd
http://statistics.data.gov.uk/id/local-authority/38,Oxfordshire County Council,SCS Pooled Budgets,Direct Payments South Team,Other Agency and Contracted Services,57401,Direct Payments,01/06/2011,3301284312,935.2,HOLD Ltd
http://statistics.data.gov.uk/id/local-authority/38,Oxfordshire County Council,SCS Pooled Budgets,PD Comm Supp Purchasg Budget - City,Other Agency and Contracted Services,57401,Direct Payments,01/06/2011,3301284314,1115.88,HOLD Ltd
http://statistics.data.gov.uk/id/local-authority/38,Oxfordshire County Council,SCS Pooled Budgets,Direct Payments South Team,Other Agency and Contracted Services,57401,Direct Payments,01/06/2011,3301284317,804.96,HOLD Ltd
http://statistics.data.gov.uk/id/local-authority/38,Oxfordshire County Council,SCS Pooled Budgets,Direct Payments South Team,Other Agency and Contracted Services,57401,Direct Payments,01/06/2011,3301284318,1006.2,HOLD Ltd
http://statistics.data.gov.uk/id/local-authority/38,Oxfordshire County Council,SCS Pooled Budgets,Direct Payments South Team,Other Agency and Contracted Services,57401,Direct Payments,01/06/2011,3301284320,935.2,HOLD Ltd
http://statistics.data.gov.uk/id/local-authority/38,Oxfordshire County Council,SCS Pooled Budgets,Direct Payments South Team,Other Agency and Contracted Services,57401,Direct Payments,01/06/2011,3301284322,804.96,HOLD Ltd
http://statistics.data.gov.uk/id/local-authority/38,Oxfordshire County Council,SCS Pooled Budgets,Direct Payments South Team,Other Agency and Contracted Services,57401,Direct Payments,01/06/2011,3301284323,935.2,HOLD Ltd
http://statistics.data.gov.uk/id/local-authority/38,Oxfordshire County Council,SCS Pooled Budgets,Direct Payments South Team,Other Agency and Contracted Services,57401,Direct Payments,01/06/2011,3301284324,935.2,HOLD Ltd
http://statistics.data.gov.uk/id/local-authority/38,Oxfordshire County Council,SCS Other Cost Centres,Home Support trading account for PBs,Other Agency and Contracted Services,57300,Home Support (Ext) OS&HCD,01/06/2011,3301284328,11082.5,1 to 1 Care
http://statistics.data.gov.uk/id/local-authority/38,Oxfordshire County Council,SCS Other Cost Centres,Home Support trading account for PBs,Other Agency and Contracted Services,57300,Home Support (Ext) OS&HCD,01/06/2011,3301284329,12517.51,Nestor Primecare Services Ltd.
http://statistics.data.gov.uk/id/local-authority/38,Oxfordshire County Council,SCS Other Cost Centres,Home Support trading account for PBs,Other Agency and Contracted Services,57300,Home Support (Ext) OS&HCD,01/06/2011,3301284330,20307.84,Allied Healthcare Group Ltd
http://statistics.data.gov.uk/id/local-authority/38,Oxfordshire County Council,SCS Other Cost Centres,Home Support trading account for PBs,Other Agency and Contracted Services,57300,Home Support (Ext) OS&HCD,01/06/2011,3301284331,19385.21,Amber Healthcare Personnel Ltd
http://statistics.data.gov.uk/id/local-authority/38,Oxfordshire County Council,SCS Other Cost Centres,Home Support trading account for PBs,Other Agency and Contracted Services,57300,Home Support (Ext) OS&HCD,01/06/2011,3301284332,26362.55,Home Choice Care
http://statistics.data.gov.uk/id/local-authority/38,Oxfordshire County Council,SCS Other Cost Centres,Home Support trading account for PBs,Other Agency and Contracted Services,57300,Home Support (Ext) OS&HCD,01/06/2011,3301284333,68968.89,Bright Yellow Group Plc
http://statistics.data.gov.uk/id/local-authority/38,Oxfordshire County Council,SCS Other Cost Centres,Home Support trading account for PBs,Other Agency and Contracted Services,57300,Home Support (Ext) OS&HCD,01/06/2011,3301284334,18216.68,Charterville Care At Home
http://statistics.data.gov.uk/id/local-authority/38,Oxfordshire County Council,SCS Other Cost Centres,Home Support trading account for PBs,Other Agency and Contracted Services,57300,Home Support (Ext) OS&HCD,01/06/2011,3301284335,21674.68,Cherwell Care Services
http://statistics.data.gov.uk/id/local-authority/38,Oxfordshire County Council,SCS Other Cost Centres,Home Support trading account for PBs,Other Agency and Contracted Services,57300,Home Support (Ext) OS&HCD,01/06/2011,3301284336,25466.53,Oxfordshire Crossroads
http://statistics.data.gov.uk/id/local-authority/38,Oxfordshire County Council,SCS Other Cost Centres,Home Support trading account for PBs,Other Agency and Contracted Services,57300,Home Support (Ext) OS&HCD,01/06/2011,3301284337,41443.62,Day & Night Care Assistance
http://statistics.data.gov.uk/id/local-authority/38,Oxfordshire County Council,SCS Other Cost Centres,Home Support trading account for PBs,Other Agency and Contracted Services,57300,Home Support (Ext) OS&HCD,01/06/2011,3301284338,4469.99,Elite Care Agency
http://statistics.data.gov.uk/id/local-authority/38,Oxfordshire County Council,SCS Other Cost Centres,Home Support trading account for PBs,Other Agency and Contracted Services,57300,Home Support (Ext) OS&HCD,01/06/2011,3301284339,25790.32,Greigcare Home Service
http://statistics.data.gov.uk/id/local-authority/38,Oxfordshire County Council,SCS Other Cost Centres,Home Support trading account for PBs,Other Agency and Contracted Services,57300,Home Support (Ext) OS&HCD,01/06/2011,3301284340,34577.95,Heart to Heart Care Ltd
http://statistics.data.gov.uk/id/local-authority/38,Oxfordshire County Council,SCS Other Cost Centres,Home Support trading account for PBs,Other Agency and Contracted Services,57300,Home Support (Ext) OS&HCD,01/06/2011,3301284341,20399.04,HOME HELPERS CARE LTD
http://statistics.data.gov.uk/id/local-authority/38,Oxfordshire County Council,SCS Other Cost Centres,Home Support trading account for PBs,Other Agency and Contracted Services,57300,Home Support (Ext) OS&HCD,01/06/2011,3301284342,16428.77,Leonard Cheshire FOR PAYMENTS ONLY
http://statistics.data.gov.uk/id/local-authority/38,Oxfordshire County Council,SCS Other Cost Centres,Home Support trading account for PBs,Other Agency and Contracted Services,57300,Home Support (Ext) OS&HCD,01/06/2011,3301284343,26572.31,Mears
http://statistics.data.gov.uk/id/local-authority/38,Oxfordshire County Council,SCS Other Cost Centres,Home Support trading account for PBs,Other Agency and Contracted Services,57300,Home Support (Ext) OS&HCD,01/06/2011,3301284344,99854.71,Oxford Private Care
http://statistics.data.gov.uk/id/local-authority/38,Oxfordshire County Council,SCS Other Cost Centres,Home Support trading account for PBs,Other Agency and Contracted Services,57300,Home Support (Ext) OS&HCD,01/06/2011,3301284345,39815.8,PLL CARE
http://statistics.data.gov.uk/id/local-authority/38,Oxfordshire County Council,SCS Other Cost Centres,Home Support trading account for PBs,Other Agency and Contracted Services,57300,Home Support (Ext) OS&HCD,01/06/2011,3301284346,17894.9,Premier Personal Care
http://statistics.data.gov.uk/id/local-authority/38,Oxfordshire County Council,SCS Other Cost Centres,Home Support trading account for PBs,Other Agency and Contracted Services,57300,Home Support (Ext) OS&HCD,01/06/2011,3301284347,33677.95,Primary Healthcare
http://statistics.data.gov.uk/id/local-authority/38,Oxfordshire County Council,SCS Other Cost Centres,Home Support trading account for PBs,Other Agency and Contracted Services,57300,Home Support (Ext) OS&HCD,01/06/2011,3301284348,14753.7,Radis Community Care
http://statistics.data.gov.uk/id/local-authority/38,Oxfordshire County Council,SCS Other Cost Centres,Home Support trading account for PBs,Other Agency and Contracted Services,57300,Home Support (Ext) OS&HCD,01/06/2011,3301284349,17203.46,Risborough Carers Ltd
http://statistics.data.gov.uk/id/local-authority/38,Oxfordshire County Council,SCS Other Cost Centres,Home Support trading account for PBs,Other Agency and Contracted Services,57300,Home Support (Ext) OS&HCD,01/06/2011,3301284350,24609.35,Secure Care (Oxford) Ltd
http://statistics.data.gov.uk/id/local-authority/38,Oxfordshire County Council,SCS Other Cost Centres,Home Support trading account for PBs,Other Agency and Contracted Services,57300,Home Support (Ext) OS&HCD,01/06/2011,3301284351,37935.87,Sevacare (UK) Ltd
http://statistics.data.gov.uk/id/local-authority/38,Oxfordshire County Council,SCS Other Cost Centres,Home Support trading account for PBs,Other Agency and Contracted Services,57300,Home Support (Ext) OS&HCD,01/06/2011,3301284352,21922.44,Sevacare (UK) Ltd
http://statistics.data.gov.uk/id/local-authority/38,Oxfordshire County Council,SCS Other Cost Centres,Home Support trading account for PBs,Other Agency and Contracted Services,57300,Home Support (Ext) OS&HCD,01/06/2011,3301284353,10468.17,Total Homecare Solutions Ltd
http://statistics.data.gov.uk/id/local-authority/38,Oxfordshire County Council,SCS Pooled Budgets,Community Support Budget - Bicester,Other Agency and Contracted Services,57401,Direct Payments,01/06/2011,3301284370,2724,REDACTED PERSONAL DATA
http://statistics.data.gov.uk/id/local-authority/38,Oxfordshire County Council,SCS Pooled Budgets,Community Support Budget - Bicester,Other Agency and Contracted Services,57401,Direct Payments,01/06/2011,3301284371,3012,REDACTED PERSONAL DATA
http://statistics.data.gov.uk/id/local-authority/38,Oxfordshire County Council,Education & Early Intervention,Zone 2 - East,Contract Hire/Leasing,33101,Home to School Trans,02/06/2011,3301284375,1999.1,Heyfordian Travel Ltd
http://statistics.data.gov.uk/id/local-authority/38,Oxfordshire County Council,Education & Early Intervention,Zone 2 - East,Contract Hire/Leasing,33101,Home to School Trans,02/06/2011,3301284376,2180.25,Heyfordian Travel Ltd
http://statistics.data.gov.uk/id/local-authority/38,Oxfordshire County Council,Education & Early Intervention,Zone 5 - South,Contract Hire/Leasing,33101,Home to School Trans,02/06/2011,3301284377,3929.39,Heyfordian Travel Ltd
http://statistics.data.gov.uk/id/local-authority/38,Oxfordshire County Council,Education & Early Intervention,Zone 5 - South,Contract Hire/Leasing,33101,Home to School Trans,02/06/2011,3301284378,3929.39,Heyfordian Travel Ltd
http://statistics.data.gov.uk/id/local-authority/38,Oxfordshire County Council,Education & Early Intervention,Zone 5 - South,Contract Hire/Leasing,33101,Home to School Trans,02/06/2011,3301284379,3929.39,Heyfordian Travel Ltd
http://statistics.data.gov.uk/id/local-authority/38,Oxfordshire County Council,Education & Early Intervention,Zone 5 - South,Contract Hire/Leasing,33101,Home to School Trans,02/06/2011,3301284380,3929.39,Heyfordian Travel Ltd
http://statistics.data.gov.uk/id/local-authority/38,Oxfordshire County Council,Education & Early Intervention,Zone 5 - South,Contract Hire/Leasing,33101,Home to School Trans,02/06/2011,3301284381,3515,Heyfordian Travel Ltd
http://statistics.data.gov.uk/id/local-authority/38,Oxfordshire County Council,Education & Early Intervention,Zone 5 - South,Contract Hire/Leasing,33101,Home to School Trans,02/06/2011,3301284382,3715.26,Heyfordian Travel Ltd
http://statistics.data.gov.uk/id/local-authority/38,Oxfordshire County Council,Education & Early Intervention,Zone 5 - South,Contract Hire/Leasing,33101,Home to School Trans,02/06/2011,3301284383,4802.44,Heyfordian Travel Ltd
http://statistics.data.gov.uk/id/local-authority/38,Oxfordshire County Council,Education & Early Intervention,Zone 2 - East,Contract Hire/Leasing,33101,Home to School Trans,02/06/2011,3301284384,2477.6,Heyfordian Travel Ltd
http://statistics.data.gov.uk/id/local-authority/38,Oxfordshire County Council,Education & Early Intervention,Zone 5 - South,Contract Hire/Leasing,33101,Home to School Trans,02/06/2011,3301284385,3101.56,Heyfordian Travel Ltd
http://statistics.data.gov.uk/id/local-authority/38,Oxfordshire County Council,Education & Early Intervention,Zone 5 - South,Contract Hire/Leasing,33101,Home to School Trans,02/06/2011,3301284386,3818.62,Heyfordian Travel Ltd
http://statistics.data.gov.uk/id/local-authority/38,Oxfordshire County Council,Education & Early Intervention,Zone 1 - North,Contract Hire/Leasing,33101,Home to School Trans,02/06/2011,3301284387,2604.9,Heyfordian Travel Ltd
http://statistics.data.gov.uk/id/local-authority/38,Oxfordshire County Council,Education & Early Intervention,Zone 1 - North,Contract Hire/Leasing,33101,Home to School Trans,02/06/2011,3301284388,2354.29,Heyfordian Travel Ltd
http://statistics.data.gov.uk/id/local-authority/38,Oxfordshire County Council,Education & Early Intervention,Zone 1 - North,Contract Hire/Leasing,33101,Home to School Trans,02/06/2011,3301284389,2354.29,Heyfordian Travel Ltd
http://statistics.data.gov.uk/id/local-authority/38,Oxfordshire County Council,Education & Early Intervention,Zone 1 - North,Contract Hire/Leasing,33101,Home to School Trans,02/06/2011,3301284390,2230.38,Heyfordian Travel Ltd
http://statistics.data.gov.uk/id/local-authority/38,Oxfordshire County Council,Education & Early Intervention,Zone 1 - North,Contract Hire/Leasing,33101,Home to School Trans,02/06/2011,3301284391,2354.29,Heyfordian Travel Ltd
http://statistics.data.gov.uk/id/local-authority/38,Oxfordshire County Council,Education & Early Intervention,Zone 1 - North,Contract Hire/Leasing,33101,Home to School Trans,02/06/2011,3301284392,2354.29,Heyfordian Travel Ltd
http://statistics.data.gov.uk/id/local-authority/38,Oxfordshire County Council,Education & Early Intervention,Zone 1 - North,Contract Hire/Leasing,33101,Home to School Trans,02/06/2011,3301284393,2554.74,Heyfordian Travel Ltd
http://statistics.data.gov.uk/id/local-authority/38,Oxfordshire County Council,Education & Early Intervention,Zone 1 - North,Contract Hire/Leasing,33101,Home to School Trans,02/06/2011,3301284394,2554.74,Heyfordian Travel Ltd
http://statistics.data.gov.uk/id/local-authority/38,Oxfordshire County Council,Education & Early Intervention,Zone 1 - North,Contract Hire/Leasing,33101,Home to School Trans,02/06/2011,3301284395,2354.29,Heyfordian Travel Ltd
http://statistics.data.gov.uk/id/local-authority/38,Oxfordshire County Council,Education & Early Intervention,Zone 1 - North,Contract Hire/Leasing,33101,Home to School Trans,02/06/2011,3301284396,4608.45,Heyfordian Travel Ltd
http://statistics.data.gov.uk/id/local-authority/38,Oxfordshire County Council,Education & Early Intervention,Zone 1 - North,Contract Hire/Leasing,33101,Home to School Trans,02/06/2011,3301284397,2554.74,Heyfordian Travel Ltd
http://statistics.data.gov.uk/id/local-authority/38,Oxfordshire County Council,Education & Early Intervention,Zone 1 - North,Contract Hire/Leasing,33101,Home to School Trans,02/06/2011,3301284398,2554.74,Heyfordian Travel Ltd
http://statistics.data.gov.uk/id/local-authority/38,Oxfordshire County Council,Education & Early Intervention,Zone 1 - North,Contract Hire/Leasing,33101,Home to School Trans,02/06/2011,3301284399,4708.58,Heyfordian Travel Ltd
http://statistics.data.gov.uk/id/local-authority/38,Oxfordshire County Council,Education & Early Intervention,Zone 1 - North,Contract Hire/Leasing,33101,Home to School Trans,02/06/2011,3301284400,3967.39,Heyfordian Travel Ltd
http://statistics.data.gov.uk/id/local-authority/38,Oxfordshire County Council,Education & Early Intervention,Zone 1 - North,Contract Hire/Leasing,33101,Home to School Trans,02/06/2011,3301284401,3766.94,Heyfordian Travel Ltd
http://statistics.data.gov.uk/id/local-authority/38,Oxfordshire County Council,Education & Early Intervention,Zone 1 - North,Contract Hire/Leasing,33101,Home to School Trans,02/06/2011,3301284402,4708.58,Heyfordian Travel Ltd
http://statistics.data.gov.uk/id/local-authority/38,Oxfordshire County Council,Education & Early Intervention,Zone 1 - North,Contract Hire/Leasing,33101,Home to School Trans,02/06/2011,3301284403,5049.44,Heyfordian Travel Ltd
http://statistics.data.gov.uk/id/local-authority/38,Oxfordshire County Council,Education & Early Intervention,Zone 1 - North,Contract Hire/Leasing,33101,Home to School Trans,02/06/2011,3301284404,3566.49,Heyfordian Travel Ltd
http://statistics.data.gov.uk/id/local-authority/38,Oxfordshire County Council,Education & Early Intervention,Zone 1 - North,Contract Hire/Leasing,33101,Home to School Trans,02/06/2011,3301284405,4206.98,Heyfordian Travel Ltd
http://statistics.data.gov.uk/id/local-authority/38,Oxfordshire County Council,Education & Early Intervention,Zone 2 - East,Contract Hire/Leasing,33101,Home to School Trans,02/06/2011,3301284406,1982.08,Heyfordian Travel Ltd
http://statistics.data.gov.uk/id/local-authority/38,Oxfordshire County Council,Education & Early Intervention,Zone 4 - Vale,Contract Hire/Leasing,33101,Home to School Trans,02/06/2011,3301284407,3325,Heyfordian Travel Ltd
http://statistics.data.gov.uk/id/local-authority/38,Oxfordshire County Council,Education & Early Intervention,Zone 5 - South,Contract Hire/Leasing,33101,Home to School Trans,02/06/2011,3301284408,3420,Heyfordian Travel Ltd
http://statistics.data.gov.uk/id/local-authority/38,Oxfordshire County Council,Education & Early Intervention,Zone 1 - North,Contract Hire/Leasing,33101,Home to School Trans,02/06/2011,3301284409,1942.37,Premier Cars
http://statistics.data.gov.uk/id/local-authority/38,Oxfordshire County Council,Education & Early Intervention,Zone 2 - East,Contract Hire/Leasing,33101,Home to School Trans,02/06/2011,3301284410,1022.4,Premier Cars
http://statistics.data.gov.uk/id/local-authority/38,Oxfordshire County Council,Education & Early Intervention,Zone 2 - East,Contract Hire/Leasing,33101,Home to School Trans,02/06/2011,3301284411,920.16,Premier Cars
http://statistics.data.gov.uk/id/local-authority/38,Oxfordshire County Council,Education & Early Intervention,Zone 2 - East,Contract Hire/Leasing,33101,Home to School Trans,02/06/2011,3301284412,832.39,Premier Cars
http://statistics.data.gov.uk/id/local-authority/38,Oxfordshire County Council,Education & Early Intervention,Zone 3 - West,Contract Hire/Leasing,33101,Home to School Trans,02/06/2011,3301284413,760,Topcars Witney
http://statistics.data.gov.uk/id/local-authority/38,Oxfordshire County Council,Education & Early Intervention,Zone 5 - South,Contract Hire/Leasing,33101,Home to School Trans,02/06/2011,3301284414,3075.72,Destinations Luxury Travel
http://statistics.data.gov.uk/id/local-authority/38,Oxfordshire County Council,SCS Pooled Budgets,Life Of Your Own Grant City,Other Agency and Contracted Services,57401,Direct Payments,02/06/2011,3301284442,600,REDACTED PERSONAL DATA
http://statistics.data.gov.uk/id/local-authority/38,Oxfordshire County Council,SCS Pooled Budgets,Life Of Your Own Grant City,Other Agency and Contracted Services,57401,Direct Payments,02/06/2011,3301284443,600,REDACTED PERSONAL DATA
http://statistics.data.gov.uk/id/local-authority/38,Oxfordshire County Council,SCS Pooled Budgets,Community Support Budget - City,Other Agency and Contracted Services,57401,Direct Payments,02/06/2011,3301284444,1604,REDACTED PERSONAL DATA
http://statistics.data.gov.uk/id/local-authority/38,Oxfordshire County Council,Social & Community Services,PD Comm Supp Purchasg County Carers Grt,Other Agency and Contracted Services,57401,Direct Payments,02/06/2011,3301284445,600,REDACTED PERSONAL DATA
http://statistics.data.gov.uk/id/local-authority/38,Oxfordshire County Council,Social & Community Services,Residential Purchasing Carers Grant,Other Agency and Contracted Services,57401,Direct Payments,02/06/2011,3301284446,600,REDACTED PERSONAL DATA
http://statistics.data.gov.uk/id/local-authority/38,Oxfordshire County Council,SCS Pooled Budgets,Community Support Budget - Bicester,Other Agency and Contracted Services,57401,Direct Payments,02/06/2011,3301284447,2500,REDACTED PERSONAL DATA
http://statistics.data.gov.uk/id/local-authority/38,Oxfordshire County Council,Social & Community Services,PD Comm Supp Purchasg County Carers Grt,Other Agency and Contracted Services,57401,Direct Payments,02/06/2011,3301284448,600,REDACTED PERSONAL DATA
http://statistics.data.gov.uk/id/local-authority/38,Oxfordshire County Council,SCS Pooled Budgets,Community Support Budget - Wantage,Other Agency and Contracted Services,57401,Direct Payments,02/06/2011,3301284449,968.17,REDACTED PERSONAL DATA
http://statistics.data.gov.uk/id/local-authority/38,Oxfordshire County Council,SCS Pooled Budgets,Life Of Your Own Grant City,Other Agency and Contracted Services,57401,Direct Payments,02/06/2011,3301284450,600,REDACTED PERSONAL DATA
http://statistics.data.gov.uk/id/local-authority/38,Oxfordshire County Council,Education & Early Intervention,Wantage SEN Trans,Contract Hire/Leasing,33101,Home to School Trans,02/06/2011,3301284464,1126.62,Grove Cabs
http://statistics.data.gov.uk/id/local-authority/38,Oxfordshire County Council,Education & Early Intervention,Wantage SEN Trans,Contract Hire/Leasing,33101,Home to School Trans,02/06/2011,3301284466,1502.1,Grove Cabs
http://statistics.data.gov.uk/id/local-authority/38,Oxfordshire County Council,SCS Pooled Budgets,LD CMPB - South Transport,Public Transport,34200,Client Journeys,02/06/2011,3301284468,1440,Grove Cabs
http://statistics.data.gov.uk/id/local-authority/38,Oxfordshire County Council,Education & Early Intervention,Wantage SEN Trans,Contract Hire/Leasing,33101,Home to School Trans,02/06/2011,3301284474,900,Grove Cabs
http://statistics.data.gov.uk/id/local-authority/38,Oxfordshire County Council,Education & Early Intervention,S'Common SEN Trans,Contract Hire/Leasing,33101,Home to School Trans,02/06/2011,3301284476,1880.05,Transpiration Limited
http://statistics.data.gov.uk/id/local-authority/38,Oxfordshire County Council,Education & Early Intervention,S'Common SEN Trans,Contract Hire/Leasing,33300,Transport (General),02/06/2011,3301284477,600.78,Transpiration Limited
http://statistics.data.gov.uk/id/local-authority/38,Oxfordshire County Council,Education & Early Intervention,Oxford Sth SEN Trans,Contract Hire/Leasing,33101,Home to School Trans,02/06/2011,3301284479,2246.75,Transpiration Limited
http://statistics.data.gov.uk/id/local-authority/38,Oxfordshire County Council,Education & Early Intervention,Oxford Sth SEN Trans,Contract Hire/Leasing,33300,Transport (General),02/06/2011,3301284480,721.24,Transpiration Limited
http://statistics.data.gov.uk/id/local-authority/38,Oxfordshire County Council,Education & Early Intervention,FE Special Trans,Contract Hire/Leasing,33101,Home to School Trans,02/06/2011,3301284482,2439,Transpiration Limited
http://statistics.data.gov.uk/id/local-authority/38,Oxfordshire County Council,Education & Early Intervention,FE Special Trans,Contract Hire/Leasing,33101,Home to School Trans,02/06/2011,3301284483,612,Transpiration Limited
http://statistics.data.gov.uk/id/local-authority/38,Oxfordshire County Council,Education & Early Intervention,FE Special Trans,Contract Hire/Leasing,33101,Home to School Trans,02/06/2011,3301284484,2076.84,Transpiration Limited
http://statistics.data.gov.uk/id/local-authority/38,Oxfordshire County Council,Education & Early Intervention,FE Special Trans,Contract Hire/Leasing,33300,Transport (General),02/06/2011,3301284485,702,Transpiration Limited
http://statistics.data.gov.uk/id/local-authority/38,Oxfordshire County Council,SCS Pooled Budgets,LD CMPB - South Transport,Public Transport,34200,Client Journeys,02/06/2011,3301284486,569.16,Transpiration Limited
http://statistics.data.gov.uk/id/local-authority/38,Oxfordshire County Council,Education & Early Intervention,Oxford Sth SEN Trans,Contract Hire/Leasing,33101,Home to School Trans,02/06/2011,3301284487,2014.83,Transpiration Limited
http://statistics.data.gov.uk/id/local-authority/38,Oxfordshire County Council,Education & Early Intervention,Oxford Sth SEN Trans,Contract Hire/Leasing,33101,Home to School Trans,02/06/2011,3301284488,2160,Transpiration Limited
http://statistics.data.gov.uk/id/local-authority/38,Oxfordshire County Council,Education & Early Intervention,Oxford Sth SEN Trans,Contract Hire/Leasing,33300,Transport (General),02/06/2011,3301284489,709.74,Transpiration Limited
http://statistics.data.gov.uk/id/local-authority/38,Oxfordshire County Council,Education & Early Intervention,S'Common SEN Trans,Contract Hire/Leasing,33101,Home to School Trans,02/06/2011,3301284490,2069.29,Transpiration Limited
http://statistics.data.gov.uk/id/local-authority/38,Oxfordshire County Council,Education & Early Intervention,FE Special Trans,Contract Hire/Leasing,33101,Home to School Trans,02/06/2011,3301284491,1363.87,Transpiration Limited
http://statistics.data.gov.uk/id/local-authority/38,Oxfordshire County Council,Education & Early Intervention,FE Special Trans,Contract Hire/Leasing,33300,Transport (General),02/06/2011,3301284492,439.49,Transpiration Limited
http://statistics.data.gov.uk/id/local-authority/38,Oxfordshire County Council,Education & Early Intervention,Oxford Sth SEN Trans,Contract Hire/Leasing,33101,Home to School Trans,02/06/2011,3301284493,2775.9,Transpiration Limited
http://statistics.data.gov.uk/id/local-authority/38,Oxfordshire County Council,Education & Early Intervention,Oxford Sth SEN Trans,Contract Hire/Leasing,33300,Transport (General),02/06/2011,3301284494,758.67,Transpiration Limited
http://statistics.data.gov.uk/id/local-authority/38,Oxfordshire County Council,Education & Early Intervention,FE Special Trans,Contract Hire/Leasing,33101,Home to School Trans,02/06/2011,3301284495,2603.88,Transpiration Limited
http://statistics.data.gov.uk/id/local-authority/38,Oxfordshire County Council,Education & Early Intervention,FE Special Trans,Contract Hire/Leasing,33300,Transport (General),02/06/2011,3301284496,660.24,Transpiration Limited
http://statistics.data.gov.uk/id/local-authority/38,Oxfordshire County Council,Education & Early Intervention,Oxford Sth SEN Trans,Contract Hire/Leasing,33101,Home to School Trans,02/06/2011,3301284498,1408.32,C A Pittaway Transport
http://statistics.data.gov.uk/id/local-authority/38,Oxfordshire County Council,Education & Early Intervention,Oxford Nth SEN Trans,Contract Hire/Leasing,33101,Home to School Trans,02/06/2011,3301284500,1546.03,C A Pittaway Transport
http://statistics.data.gov.uk/id/local-authority/38,Oxfordshire County Council,Education & Early Intervention,Oxford Nth SEN Trans,Contract Hire/Leasing,33101,Home to School Trans,02/06/2011,3301284503,1546.03,Findlay Chauffeur Service
http://statistics.data.gov.uk/id/local-authority/38,Oxfordshire County Council,Education & Early Intervention,Oxford Nth SEN Trans,Contract Hire/Leasing,33300,Transport (General),02/06/2011,3301284504,634.22,Findlay Chauffeur Service
http://statistics.data.gov.uk/id/local-authority/38,Oxfordshire County Council,Education & Early Intervention,Oxford Sth SEN Trans,Contract Hire/Leasing,33101,Home to School Trans,02/06/2011,3301284505,1934.58,Findlay Chauffeur Service
http://statistics.data.gov.uk/id/local-authority/38,Oxfordshire County Council,Education & Early Intervention,Oxford Sth SEN Trans,Contract Hire/Leasing,33300,Transport (General),02/06/2011,3301284506,493.81,Findlay Chauffeur Service
http://statistics.data.gov.uk/id/local-authority/38,Oxfordshire County Council,Education & Early Intervention,Abingdon SEN Trans,Contract Hire/Leasing,33101,Home to School Trans,02/06/2011,3301284507,1347.67,Findlay Chauffeur Service
http://statistics.data.gov.uk/id/local-authority/38,Oxfordshire County Council,Education & Early Intervention,Abingdon SEN Trans,Contract Hire/Leasing,33300,Transport (General),02/06/2011,3301284508,594.7,Findlay Chauffeur Service
http://statistics.data.gov.uk/id/local-authority/38,Oxfordshire County Council,Education & Early Intervention,LDD After School Acc,Contract Hire/Leasing,33101,Home to School Trans,02/06/2011,3301284509,646,Findlay Chauffeur Service
http://statistics.data.gov.uk/id/local-authority/38,Oxfordshire County Council,SCS Pooled Budgets,Community Support Budget - City,Other Agency and Contracted Services,57401,Direct Payments,02/06/2011,3301284514,1146,A4e Management Ltd Week 3
http://statistics.data.gov.uk/id/local-authority/38,Oxfordshire County Council,STD Corporate & Democratic Core,MIS Payroll Workflow,Balance Sheet General,B7102,Local Government AVC,03/06/2011,3301284528,92972.86,Prudential Assurance Co. Ltd
http://statistics.data.gov.uk/id/local-authority/38,Oxfordshire County Council,STD Corporate & Democratic Core,MIS Payroll Workflow,Balance Sheet General,B7103,Teachers AVC,03/06/2011,3301284529,57164.42,Prudential Assurance
http://statistics.data.gov.uk/id/local-authority/38,Oxfordshire County Council,Education & Early Intervention,Zone 2 - East,Contract Hire/Leasing,33101,Home to School Trans,06/06/2011,3301284565,2944.81,Grayline Coaches
http://statistics.data.gov.uk/id/local-authority/38,Oxfordshire County Council,Education & Early Intervention,Zone 2 - East,Contract Hire/Leasing,33101,Home to School Trans,06/06/2011,3301284566,2746.64,Grayline Coaches
http://statistics.data.gov.uk/id/local-authority/38,Oxfordshire County Council,Education & Early Intervention,Zone 2 - East,Contract Hire/Leasing,33101,Home to School Trans,06/06/2011,3301284567,2746.64,Grayline Coaches
http://statistics.data.gov.uk/id/local-authority/38,Oxfordshire County Council,Education & Early Intervention,Zone 2 - East,Contract Hire/Leasing,33101,Home to School Trans,06/06/2011,3301284568,2562.15,Grayline Coaches
http://statistics.data.gov.uk/id/local-authority/38,Oxfordshire County Council,Education & Early Intervention,Zone 2 - East,Contract Hire/Leasing,33101,Home to School Trans,06/06/2011,3301284569,2746.64,Grayline Coaches
http://statistics.data.gov.uk/id/local-authority/38,Oxfordshire County Council,Education & Early Intervention,Zone 2 - East,Contract Hire/Leasing,33101,Home to School Trans,06/06/2011,3301284570,2488.43,Grayline Coaches
http://statistics.data.gov.uk/id/local-authority/38,Oxfordshire County Council,Education & Early Intervention,Zone 2 - East,Contract Hire/Leasing,33101,Home to School Trans,06/06/2011,3301284571,2746.64,Grayline Coaches
http://statistics.data.gov.uk/id/local-authority/38,Oxfordshire County Council,Education & Early Intervention,Zone 2 - East,Contract Hire/Leasing,33101,Home to School Trans,06/06/2011,3301284572,2562.15,Grayline Coaches
http://statistics.data.gov.uk/id/local-authority/38,Oxfordshire County Council,Education & Early Intervention,Zone 2 - East,Contract Hire/Leasing,33101,Home to School Trans,06/06/2011,3301284573,2859.5,Grayline Coaches
http://statistics.data.gov.uk/id/local-authority/38,Oxfordshire County Council,Education & Early Intervention,Zone 2 - East,Contract Hire/Leasing,33101,Home to School Trans,06/06/2011,3301284574,2746.64,Grayline Coaches
http://statistics.data.gov.uk/id/local-authority/38,Oxfordshire County Council,Education & Early Intervention,Zone 2 - East,Contract Hire/Leasing,33101,Home to School Trans,06/06/2011,3301284575,2953.36,Grayline Coaches
http://statistics.data.gov.uk/id/local-authority/38,Oxfordshire County Council,Education & Early Intervention,Oxford Sth SEN Trans,Contract Hire/Leasing,33101,Home to School Trans,06/06/2011,3301284576,2143.28,M J Cars
http://statistics.data.gov.uk/id/local-authority/38,Oxfordshire County Council,Education & Early Intervention,Zone 1 - North,Contract Hire/Leasing,33101,Home to School Trans,06/06/2011,3301284578,3394.35,Worths Motor Services Ltd.
http://statistics.data.gov.uk/id/local-authority/38,Oxfordshire County Council,Education & Early Intervention,Zone 1 - North,Contract Hire/Leasing,33101,Home to School Trans,06/06/2011,3301284579,3900.7,Worths Motor Services Ltd.
http://statistics.data.gov.uk/id/local-authority/38,Oxfordshire County Council,Education & Early Intervention,Zone 1 - North,Contract Hire/Leasing,33101,Home to School Trans,06/06/2011,3301284580,2702.94,Worths Motor Services Ltd.
http://statistics.data.gov.uk/id/local-authority/38,Oxfordshire County Council,Education & Early Intervention,Zone 2 - East,Contract Hire/Leasing,33101,Home to School Trans,06/06/2011,3301284581,2527,Worths Motor Services Ltd.
http://statistics.data.gov.uk/id/local-authority/38,Oxfordshire County Council,Education & Early Intervention,Zone 2 - East,Contract Hire/Leasing,33101,Home to School Trans,06/06/2011,3301284582,2622,Worths Motor Services Ltd.
http://statistics.data.gov.uk/id/local-authority/38,Oxfordshire County Council,Education & Early Intervention,Zone 2 - East,Contract Hire/Leasing,33101,Home to School Trans,06/06/2011,3301284583,2812,Worths Motor Services Ltd.
http://statistics.data.gov.uk/id/local-authority/38,Oxfordshire County Council,Education & Early Intervention,Zone 4 - Vale,Contract Hire/Leasing,33101,Home to School Trans,06/06/2011,3301284584,3534,Barnes Coaches Ltd
http://statistics.data.gov.uk/id/local-authority/38,Oxfordshire County Council,Education & Early Intervention,Zone 3 - West,Contract Hire/Leasing,33101,Home to School Trans,06/06/2011,3301284585,3002,Barnes Coaches Ltd
http://statistics.data.gov.uk/id/local-authority/38,Oxfordshire County Council,Education & Early Intervention,Zone 3 - West,Contract Hire/Leasing,33101,Home to School Trans,06/06/2011,3301284586,3002,Barnes Coaches Ltd
http://statistics.data.gov.uk/id/local-authority/38,Oxfordshire County Council,Education & Early Intervention,Out of County,Contract Hire/Leasing,33101,Home to School Trans,06/06/2011,3301284588,1850,Farhad Fakhraee
http://statistics.data.gov.uk/id/local-authority/38,Oxfordshire County Council,Education & Early Intervention,Oxford Nth SEN Trans,Contract Hire/Leasing,33101,Home to School Trans,06/06/2011,3301284589,3748.13,Ancil Services
http://statistics.data.gov.uk/id/local-authority/38,Oxfordshire County Council,Education & Early Intervention,Oxford Nth SEN Trans,Contract Hire/Leasing,33300,Transport (General),06/06/2011,3301284590,822.89,Ancil Services
http://statistics.data.gov.uk/id/local-authority/38,Oxfordshire County Council,Education & Early Intervention,Oxford Sth SEN Trans,Contract Hire/Leasing,33101,Home to School Trans,06/06/2011,3301284591,1900,Ancil Services
http://statistics.data.gov.uk/id/local-authority/38,Oxfordshire County Council,Education & Early Intervention,Oxford Sth SEN Trans,Contract Hire/Leasing,33101,Home to School Trans,06/06/2011,3301284592,1045,John Cleaton Airport Cars Oxford
http://statistics.data.gov.uk/id/local-authority/38,Oxfordshire County Council,Education & Early Intervention,Wantage SEN Trans,Contract Hire/Leasing,33101,Home to School Trans,06/06/2011,3301284594,1924.56,Grove Taxis
http://statistics.data.gov.uk/id/local-authority/38,Oxfordshire County Council,Education & Early Intervention,Out of County,Contract Hire/Leasing,33101,Home to School Trans,06/06/2011,3301284595,1240.32,School Travel
http://statistics.data.gov.uk/id/local-authority/38,Oxfordshire County Council,Education & Early Intervention,Oxford Nth SEN Trans,Contract Hire/Leasing,33101,Home to School Trans,06/06/2011,3301284597,2124,School Travel
http://statistics.data.gov.uk/id/local-authority/38,Oxfordshire County Council,Education & Early Intervention,Oxford Nth SEN Trans,Contract Hire/Leasing,33300,Transport (General),06/06/2011,3301284598,570,School Travel
http://statistics.data.gov.uk/id/local-authority/38,Oxfordshire County Council,Education & Early Intervention,S'Common SEN Trans,Contract Hire/Leasing,33101,Home to School Trans,06/06/2011,3301284601,1526.46,School Travel
http://statistics.data.gov.uk/id/local-authority/38,Oxfordshire County Council,Education & Early Intervention,FE Special Trans,Contract Hire/Leasing,33101,Home to School Trans,06/06/2011,3301284603,817,School Travel
http://statistics.data.gov.uk/id/local-authority/38,Oxfordshire County Council,Education & Early Intervention,Zone 1 - North,Contract Hire/Leasing,33101,Home to School Trans,06/06/2011,3301284605,3005.42,Bakers Commercial Services Ltd
http://statistics.data.gov.uk/id/local-authority/38,Oxfordshire County Council,Education & Early Intervention,Zone 2 - East,Contract Hire/Leasing,33101,Home to School Trans,06/06/2011,3301284606,907.5,L. Sarbatta
http://statistics.data.gov.uk/id/local-authority/38,Oxfordshire County Council,Education & Early Intervention,Oxford Sth SEN Trans,Contract Hire/Leasing,33101,Home to School Trans,06/06/2011,3301284607,1330,S S Taxi
http://statistics.data.gov.uk/id/local-authority/38,Oxfordshire County Council,Education & Early Intervention,Oxford Sth SEN Trans,Contract Hire/Leasing,33300,Transport (General),06/06/2011,3301284608,570,S S Taxi
http://statistics.data.gov.uk/id/local-authority/38,Oxfordshire County Council,Education & Early Intervention,Oxford Sth SEN Trans,Contract Hire/Leasing,33101,Home to School Trans,06/06/2011,3301284609,1710,S S Taxi
http://statistics.data.gov.uk/id/local-authority/38,Oxfordshire County Council,Education & Early Intervention,Abingdon SEN Trans,Contract Hire/Leasing,33101,Home to School Trans,06/06/2011,3301284610,1140,S S Taxi
http://statistics.data.gov.uk/id/local-authority/38,Oxfordshire County Council,Education & Early Intervention,Oxford Sth SEN Trans,Contract Hire/Leasing,33101,Home to School Trans,06/06/2011,3301284612,950,S S Taxi
http://statistics.data.gov.uk/id/local-authority/38,Oxfordshire County Council,Education & Early Intervention,Oxford Sth SEN Trans,Contract Hire/Leasing,33101,Home to School Trans,06/06/2011,3301284614,950,S S Taxi
http://statistics.data.gov.uk/id/local-authority/38,Oxfordshire County Council,Education & Early Intervention,Oxford Nth SEN Trans,Contract Hire/Leasing,33101,Home to School Trans,06/06/2011,3301284616,1235,S S Taxi
http://statistics.data.gov.uk/id/local-authority/38,Oxfordshire County Council,Education & Early Intervention,Oxford Sth SEN Trans,Contract Hire/Leasing,33101,Home to School Trans,06/06/2011,3301284617,760,S S Taxi
http://statistics.data.gov.uk/id/local-authority/38,Oxfordshire County Council,Education & Early Intervention,FE Special Trans,Contract Hire/Leasing,33101,Home to School Trans,06/06/2011,3301284619,1140,S S Taxi
http://statistics.data.gov.uk/id/local-authority/38,Oxfordshire County Council,Education & Early Intervention,Temporary Transport,Contract Hire/Leasing,33101,Home to School Trans,06/06/2011,3301284620,950,S S Taxi
http://statistics.data.gov.uk/id/local-authority/38,Oxfordshire County Council,Education & Early Intervention,Oxford Sth SEN Trans,Contract Hire/Leasing,33101,Home to School Trans,06/06/2011,3301284621,760,S S Taxi
http://statistics.data.gov.uk/id/local-authority/38,Oxfordshire County Council,Education & Early Intervention,Meadowbrook Transprt,Contract Hire/Leasing,33101,Home to School Trans,06/06/2011,3301284624,848,S S Taxi
http://statistics.data.gov.uk/id/local-authority/38,Oxfordshire County Council,Education & Early Intervention,Zone 2 - East,Contract Hire/Leasing,33101,Home to School Trans,06/06/2011,3301284626,2478.55,BLOCKED Mobility Link
http://statistics.data.gov.uk/id/local-authority/38,Oxfordshire County Council,Education & Early Intervention,Zone 2 - East,Contract Hire/Leasing,33101,Home to School Trans,06/06/2011,3301284627,2478.55,BLOCKED Mobility Link
http://statistics.data.gov.uk/id/local-authority/38,Oxfordshire County Council,Education & Early Intervention,Abingdon SEN Trans,Contract Hire/Leasing,33101,Home to School Trans,06/06/2011,3301284628,1635.33,C V O'Sullivan
http://statistics.data.gov.uk/id/local-authority/38,Oxfordshire County Council,Education & Early Intervention,FE Special Trans,Contract Hire/Leasing,33101,Home to School Trans,06/06/2011,3301284629,1200,C V O'Sullivan
http://statistics.data.gov.uk/id/local-authority/38,Oxfordshire County Council,Education & Early Intervention,FE Special Trans,Contract Hire/Leasing,33300,Transport (General),06/06/2011,3301284630,450,C V O'Sullivan
http://statistics.data.gov.uk/id/local-authority/38,Oxfordshire County Council,Education & Early Intervention,Abingdon SEN Trans,Contract Hire/Leasing,33101,Home to School Trans,06/06/2011,3301284631,634.41,C V O'Sullivan
http://statistics.data.gov.uk/id/local-authority/38,Oxfordshire County Council,Education & Early Intervention,Abingdon SEN Trans,Contract Hire/Leasing,33101,Home to School Trans,06/06/2011,3301284633,1175.53,C V O'Sullivan
http://statistics.data.gov.uk/id/local-authority/38,Oxfordshire County Council,Education & Early Intervention,Abingdon SEN Trans,Contract Hire/Leasing,33101,Home to School Trans,06/06/2011,3301284635,520.98,C V O'Sullivan
http://statistics.data.gov.uk/id/local-authority/38,Oxfordshire County Council,Education & Early Intervention,FE Special Trans,Contract Hire/Leasing,33101,Home to School Trans,06/06/2011,3301284636,1117.2,C V O'Sullivan
http://statistics.data.gov.uk/id/local-authority/38,Oxfordshire County Council,SCS Pooled Budgets,LD CMPB - South Transport,Public Transport,34200,Client Journeys,06/06/2011,3301284637,744.8,C V O'Sullivan
http://statistics.data.gov.uk/id/local-authority/38,Oxfordshire County Council,Education & Early Intervention,Oxford Nth SEN Trans,Contract Hire/Leasing,33101,Home to School Trans,06/06/2011,3301284638,1109.98,C V O'Sullivan
http://statistics.data.gov.uk/id/local-authority/38,Oxfordshire County Council,Education & Early Intervention,Zone 5 - South,Contract Hire/Leasing,33101,Home to School Trans,06/06/2011,3301284639,4134.97,Kingfisher Mini Coaches
http://statistics.data.gov.uk/id/local-authority/38,Oxfordshire County Council,Education & Early Intervention,Zone 5 - South,Contract Hire/Leasing,33101,Home to School Trans,06/06/2011,3301284640,1653.95,Kingfisher Mini Coaches
http://statistics.data.gov.uk/id/local-authority/38,Oxfordshire County Council,Education & Early Intervention,Oxford Sth SEN Trans,Contract Hire/Leasing,33101,Home to School Trans,06/06/2011,3301284641,1520,Diverse Travel
http://statistics.data.gov.uk/id/local-authority/38,Oxfordshire County Council,Education & Early Intervention,Oxford Sth SEN Trans,Contract Hire/Leasing,33101,Home to School Trans,06/06/2011,3301284643,1244.12,Diverse Travel
http://statistics.data.gov.uk/id/local-authority/38,Oxfordshire County Council,Education & Early Intervention,Oxford Sth SEN Trans,Contract Hire/Leasing,33300,Transport (General),06/06/2011,3301284644,475,Diverse Travel
http://statistics.data.gov.uk/id/local-authority/38,Oxfordshire County Council,Education & Early Intervention,Meadowbrook Transprt,Contract Hire/Leasing,33101,Home to School Trans,06/06/2011,3301284645,729,SJB Cars
http://statistics.data.gov.uk/id/local-authority/38,Oxfordshire County Council,Education & Early Intervention,Meadowbrook Transprt,Contract Hire/Leasing,33101,Home to School Trans,06/06/2011,3301284646,596,SJB Cars
http://statistics.data.gov.uk/id/local-authority/38,Oxfordshire County Council,Education & Early Intervention,Oxford Sth SEN Trans,Contract Hire/Leasing,33101,Home to School Trans,06/06/2011,3301284649,2537.5,D and A Nichols
http://statistics.data.gov.uk/id/local-authority/38,Oxfordshire County Council,Education & Early Intervention,Meadowbrook Transprt,Contract Hire/Leasing,33101,Home to School Trans,06/06/2011,3301284650,1385,D and A Nichols
http://statistics.data.gov.uk/id/local-authority/38,Oxfordshire County Council,Education & Early Intervention,Oxford Sth SEN Trans,Contract Hire/Leasing,33101,Home to School Trans,06/06/2011,3301284651,1803.29,D and A Nichols
http://statistics.data.gov.uk/id/local-authority/38,Oxfordshire County Council,Education & Early Intervention,Oxford Sth SEN Trans,Contract Hire/Leasing,33101,Home to School Trans,06/06/2011,3301284652,2003.55,D and A Nichols
http://statistics.data.gov.uk/id/local-authority/38,Oxfordshire County Council,Education & Early Intervention,FE Special Trans,Contract Hire/Leasing,33101,Home to School Trans,06/06/2011,3301284653,906,D and A Nichols
http://statistics.data.gov.uk/id/local-authority/38,Oxfordshire County Council,SCS Pooled Budgets,LD CMPB - South Transport,Public Transport,34200,Client Journeys,06/06/2011,3301284655,810.73,D and A Nichols
http://statistics.data.gov.uk/id/local-authority/38,Oxfordshire County Council,Education & Early Intervention,Special Misc,Public Transport,34102,Pupil Fares Reclaima,06/06/2011,3301284656,1764,REDACTED PERSONAL DATA
http://statistics.data.gov.uk/id/local-authority/38,Oxfordshire County Council,Education & Early Intervention,Zone 1 - North,Contract Hire/Leasing,33101,Home to School Trans,06/06/2011,3301284657,2404.45,The Claydon Fox
http://statistics.data.gov.uk/id/local-authority/38,Oxfordshire County Council,Education & Early Intervention,Bicester SEN Trans,Contract Hire/Leasing,33101,Home to School Trans,06/06/2011,3301284658,2497.17,RBS Invoice Finance Limited
http://statistics.data.gov.uk/id/local-authority/38,Oxfordshire County Council,Education & Early Intervention,Bicester SEN Trans,Contract Hire/Leasing,33101,Home to School Trans,06/06/2011,3301284660,855,RBS Invoice Finance Limited
http://statistics.data.gov.uk/id/local-authority/38,Oxfordshire County Council,Education & Early Intervention,Oxford Nth SEN Trans,Contract Hire/Leasing,33101,Home to School Trans,06/06/2011,3301284661,1847.75,Ash Taxis
http://statistics.data.gov.uk/id/local-authority/38,Oxfordshire County Council,Education & Early Intervention,Oxford Nth SEN Trans,Contract Hire/Leasing,33300,Transport (General),06/06/2011,3301284662,601.16,Ash Taxis
http://statistics.data.gov.uk/id/local-authority/38,Oxfordshire County Council,Education & Early Intervention,Banbury SEN Trans,Contract Hire/Leasing,33101,Home to School Trans,06/06/2011,3301284663,1486.56,Ash Taxis
http://statistics.data.gov.uk/id/local-authority/38,Oxfordshire County Council,Education & Early Intervention,FE Special Trans,Contract Hire/Leasing,33101,Home to School Trans,06/06/2011,3301284665,1520,Ash Taxis
http://statistics.data.gov.uk/id/local-authority/38,Oxfordshire County Council,Education & Early Intervention,Oxford Sth SEN Trans,Contract Hire/Leasing,33101,Home to School Trans,06/06/2011,3301284666,3138.42,Ash Taxis
http://statistics.data.gov.uk/id/local-authority/38,Oxfordshire County Council,Education & Early Intervention,Banbury SEN Trans,Contract Hire/Leasing,33101,Home to School Trans,06/06/2011,3301284667,1713.99,Ash Taxis
http://statistics.data.gov.uk/id/local-authority/38,Oxfordshire County Council,Education & Early Intervention,Oxford Nth SEN Trans,Contract Hire/Leasing,33101,Home to School Trans,06/06/2011,3301284668,2477.6,Ash Taxis
http://statistics.data.gov.uk/id/local-authority/38,Oxfordshire County Council,Education & Early Intervention,Oxford Nth SEN Trans,Contract Hire/Leasing,33101,Home to School Trans,06/06/2011,3301284669,2470,Ash Taxis
http://statistics.data.gov.uk/id/local-authority/38,Oxfordshire County Council,Education & Early Intervention,Oxford Sth SEN Trans,Contract Hire/Leasing,33101,Home to School Trans,06/06/2011,3301284670,440,Ash Taxis
http://statistics.data.gov.uk/id/local-authority/38,Oxfordshire County Council,Education & Early Intervention,Oxford Nth SEN Trans,Contract Hire/Leasing,33101,Home to School Trans,06/06/2011,3301284671,1805,Ash Taxis
http://statistics.data.gov.uk/id/local-authority/38,Oxfordshire County Council,Education & Early Intervention,Zone 5 - South,Contract Hire/Leasing,33101,Home to School Trans,06/06/2011,3301284672,3911.34,Red Rose Travel
http://statistics.data.gov.uk/id/local-authority/38,Oxfordshire County Council,Education & Early Intervention,Zone 5 - South,Contract Hire/Leasing,33101,Home to School Trans,06/06/2011,3301284673,3804.37,Red Rose Travel
http://statistics.data.gov.uk/id/local-authority/38,Oxfordshire County Council,Education & Early Intervention,Zone 5 - South,Contract Hire/Leasing,33101,Home to School Trans,06/06/2011,3301284675,1008.14,Thame & Chinnor Taxis Ltd
http://statistics.data.gov.uk/id/local-authority/38,Oxfordshire County Council,Education & Early Intervention,Out of County,Contract Hire/Leasing,33101,Home to School Trans,06/06/2011,3301284677,826.72,Thame & Chinnor Taxis Ltd
http://statistics.data.gov.uk/id/local-authority/38,Oxfordshire County Council,Education & Early Intervention,Oxford Sth SEN Trans,Contract Hire/Leasing,33101,Home to School Trans,06/06/2011,3301284678,765.13,Thame & Chinnor Taxis Ltd
http://statistics.data.gov.uk/id/local-authority/38,Oxfordshire County Council,Education & Early Intervention,Oxford Sth SEN Trans,Contract Hire/Leasing,33101,Home to School Trans,06/06/2011,3301284679,1347.86,Thame & Chinnor Taxis Ltd
http://statistics.data.gov.uk/id/local-authority/38,Oxfordshire County Council,Education & Early Intervention,Zone 2 - East,Contract Hire/Leasing,33101,Home to School Trans,06/06/2011,3301284680,1724.44,Charlton-On-Otmoor Services
http://statistics.data.gov.uk/id/local-authority/38,Oxfordshire County Council,Education & Early Intervention,Zone 2 - East,Contract Hire/Leasing,33101,Home to School Trans,06/06/2011,3301284681,2432,Charlton-On-Otmoor Services
http://statistics.data.gov.uk/id/local-authority/38,Oxfordshire County Council,Education & Early Intervention,Zone 2 - East,Contract Hire/Leasing,33101,Home to School Trans,06/06/2011,3301284682,2755,Charlton-On-Otmoor Services
http://statistics.data.gov.uk/id/local-authority/38,Oxfordshire County Council,Education & Early Intervention,Zone 2 - East,Contract Hire/Leasing,33101,Home to School Trans,06/06/2011,3301284683,2508,Charlton-On-Otmoor Services
http://statistics.data.gov.uk/id/local-authority/38,Oxfordshire County Council,Education & Early Intervention,Zone 2 - East,Contract Hire/Leasing,33101,Home to School Trans,06/06/2011,3301284684,2432,Charlton-On-Otmoor Services
http://statistics.data.gov.uk/id/local-authority/38,Oxfordshire County Council,Education & Early Intervention,Zone 5 - South,Contract Hire/Leasing,33101,Home to School Trans,06/06/2011,3301284685,3056.15,Charlton-On-Otmoor Services
http://statistics.data.gov.uk/id/local-authority/38,Oxfordshire County Council,Education & Early Intervention,Zone 5 - South,Contract Hire/Leasing,33101,Home to School Trans,06/06/2011,3301284686,2563.86,Charlton-On-Otmoor Services
http://statistics.data.gov.uk/id/local-authority/38,Oxfordshire County Council,Education & Early Intervention,Zone 5 - South,Contract Hire/Leasing,33101,Home to School Trans,06/06/2011,3301284687,2563.86,Charlton-On-Otmoor Services
http://statistics.data.gov.uk/id/local-authority/38,Oxfordshire County Council,Education & Early Intervention,Zone 5 - South,Contract Hire/Leasing,33101,Home to School Trans,06/06/2011,3301284688,3056.15,Charlton-On-Otmoor Services
http://statistics.data.gov.uk/id/local-authority/38,Oxfordshire County Council,Education & Early Intervention,Zone 5 - South,Contract Hire/Leasing,33101,Home to School Trans,06/06/2011,3301284689,3165.21,Charlton-On-Otmoor Services
http://statistics.data.gov.uk/id/local-authority/38,Oxfordshire County Council,Education & Early Intervention,Zone 2 - East,Contract Hire/Leasing,33101,Home to School Trans,06/06/2011,3301284690,2457.84,Charlton-On-Otmoor Services
http://statistics.data.gov.uk/id/local-authority/38,Oxfordshire County Council,Education & Early Intervention,Zone 2 - East,Contract Hire/Leasing,33101,Home to School Trans,06/06/2011,3301284691,2457.84,Charlton-On-Otmoor Services
http://statistics.data.gov.uk/id/local-authority/38,Oxfordshire County Council,Education & Early Intervention,Zone 2 - East,Contract Hire/Leasing,33101,Home to School Trans,06/06/2011,3301284692,1690.02,Charlton-On-Otmoor Services
http://statistics.data.gov.uk/id/local-authority/38,Oxfordshire County Council,Education & Early Intervention,Abingdon SEN Trans,Contract Hire/Leasing,33101,Home to School Trans,06/06/2011,3301284694,891.04,Mark's Taxis
http://statistics.data.gov.uk/id/local-authority/38,Oxfordshire County Council,Education & Early Intervention,Zone 1 - North,Contract Hire/Leasing,33101,Home to School Trans,06/06/2011,3301284696,727.13,Ambassador Taxis Ltd
http://statistics.data.gov.uk/id/local-authority/38,Oxfordshire County Council,Education & Early Intervention,Zone 1 - North,Contract Hire/Leasing,33101,Home to School Trans,06/06/2011,3301284697,1140,Ambassador Taxis Ltd
http://statistics.data.gov.uk/id/local-authority/38,Oxfordshire County Council,Education & Early Intervention,Out of County,Contract Hire/Leasing,33101,Home to School Trans,06/06/2011,3301284698,2338.71,AD Taxi
http://statistics.data.gov.uk/id/local-authority/38,Oxfordshire County Council,Education & Early Intervention,Kilvrough Manor,Contract Hire/Leasing,33103,Transport to Centres,06/06/2011,3301284699,790,Tappins Coaches
http://statistics.data.gov.uk/id/local-authority/38,Oxfordshire County Council,Education & Early Intervention,Kilvrough Manor,Contract Hire/Leasing,33103,Transport to Centres,06/06/2011,3301284700,790,Tappins Coaches
http://statistics.data.gov.uk/id/local-authority/38,Oxfordshire County Council,Education & Early Intervention,Woodlands Centre,Contract Hire/Leasing,33103,Transport to Centres,06/06/2011,3301284701,600,Tappins Coaches
http://statistics.data.gov.uk/id/local-authority/38,Oxfordshire County Council,Education & Early Intervention,Woodlands Centre,Contract Hire/Leasing,33103,Transport to Centres,06/06/2011,3301284702,600,Tappins Coaches
http://statistics.data.gov.uk/id/local-authority/38,Oxfordshire County Council,Education & Early Intervention,Yenworthy Lodge,Contract Hire/Leasing,33103,Transport to Centres,06/06/2011,3301284703,550,Tappins Coaches
http://statistics.data.gov.uk/id/local-authority/38,Oxfordshire County Council,Education & Early Intervention,Zone 3 - West,Contract Hire/Leasing,33101,Home to School Trans,06/06/2011,3301284705,3030.5,Rebound Coaches Ltd
http://statistics.data.gov.uk/id/local-authority/38,Oxfordshire County Council,Education & Early Intervention,Zone 2 - East,Contract Hire/Leasing,33101,Home to School Trans,06/06/2011,3301284707,2052,Oxford Taxis Ltd
http://statistics.data.gov.uk/id/local-authority/38,Oxfordshire County Council,Education & Early Intervention,Zone 1 - North,Contract Hire/Leasing,33101,Home to School Trans,06/06/2011,3301284708,1382.44,Get-a-Cab
http://statistics.data.gov.uk/id/local-authority/38,Oxfordshire County Council,Education & Early Intervention,Zone 3 - West,Contract Hire/Leasing,33101,Home to School Trans,06/06/2011,3301284709,2346.5,Ridgeways Coaches Ltd
http://statistics.data.gov.uk/id/local-authority/38,Oxfordshire County Council,Education & Early Intervention,Zone 4 - Vale,Contract Hire/Leasing,33101,Home to School Trans,06/06/2011,3301284710,3349.44,Ridgeways Coaches Ltd
http://statistics.data.gov.uk/id/local-authority/38,Oxfordshire County Council,Education & Early Intervention,Zone 3 - West,Contract Hire/Leasing,33101,Home to School Trans,06/06/2011,3301284711,2878.5,Ridgeways Coaches Ltd
http://statistics.data.gov.uk/id/local-authority/38,Oxfordshire County Council,Education & Early Intervention,Zone 4 - Vale,Contract Hire/Leasing,33101,Home to School Trans,06/06/2011,3301284712,3131.77,Ridgeways Coaches Ltd
http://statistics.data.gov.uk/id/local-authority/38,Oxfordshire County Council,Education & Early Intervention,Zone 4 - Vale,Contract Hire/Leasing,33101,Home to School Trans,06/06/2011,3301284713,3059.95,Ridgeways Coaches Ltd
http://statistics.data.gov.uk/id/local-authority/38,Oxfordshire County Council,Education & Early Intervention,Zone 3 - West,Contract Hire/Leasing,33101,Home to School Trans,06/06/2011,3301284714,855,Chauffeurdriven.net
http://statistics.data.gov.uk/id/local-authority/38,Oxfordshire County Council,Education & Early Intervention,Out of County,Contract Hire/Leasing,33101,Home to School Trans,06/06/2011,3301284715,520,Chauffeurdriven.net
http://statistics.data.gov.uk/id/local-authority/38,Oxfordshire County Council,Education & Early Intervention,Out of County,Contract Hire/Leasing,33101,Home to School Trans,06/06/2011,3301284716,700,Chauffeurdriven.net
http://statistics.data.gov.uk/id/local-authority/38,Oxfordshire County Council,Education & Early Intervention,Witney SEN Trans,Contract Hire/Leasing,33101,Home to School Trans,06/06/2011,3301284717,456,Chauffeurdriven.net
http://statistics.data.gov.uk/id/local-authority/38,Oxfordshire County Council,Education & Early Intervention,FE Special Trans,Contract Hire/Leasing,33101,Home to School Trans,06/06/2011,3301284718,1330,Chauffeurdriven.net
http://statistics.data.gov.uk/id/local-authority/38,Oxfordshire County Council,Education & Early Intervention,Witney SEN Trans,Contract Hire/Leasing,33101,Home to School Trans,06/06/2011,3301284720,760,Chauffeurdriven.net
http://statistics.data.gov.uk/id/local-authority/38,Oxfordshire County Council,Education & Early Intervention,Zone 1 - North,Contract Hire/Leasing,33101,Home to School Trans,06/06/2011,3301284721,456,Chauffeurdriven.net
http://statistics.data.gov.uk/id/local-authority/38,Oxfordshire County Council,Education & Early Intervention,Oxford Nth SEN Trans,Contract Hire/Leasing,33101,Home to School Trans,06/06/2011,3301284722,1520,Chauffeurdriven.net
http://statistics.data.gov.uk/id/local-authority/38,Oxfordshire County Council,Education & Early Intervention,Witney SEN Trans,Contract Hire/Leasing,33101,Home to School Trans,06/06/2011,3301284728,548,Chauffeurdriven.net
http://statistics.data.gov.uk/id/local-authority/38,Oxfordshire County Council,Education & Early Intervention,Zone 3 - West,Contract Hire/Leasing,33101,Home to School Trans,06/06/2011,3301284731,570,Chauffeurdriven.net
http://statistics.data.gov.uk/id/local-authority/38,Oxfordshire County Council,Education & Early Intervention,Zone 3 - West,Contract Hire/Leasing,33101,Home to School Trans,06/06/2011,3301284733,760,Chauffeurdriven.net
http://statistics.data.gov.uk/id/local-authority/38,Oxfordshire County Council,Education & Early Intervention,Zone 3 - West,Contract Hire/Leasing,33101,Home to School Trans,06/06/2011,3301284734,988,Chauffeurdriven.net
http://statistics.data.gov.uk/id/local-authority/38,Oxfordshire County Council,Education & Early Intervention,Zone 3 - West,Contract Hire/Leasing,33101,Home to School Trans,06/06/2011,3301284735,608,Chauffeurdriven.net
http://statistics.data.gov.uk/id/local-authority/38,Oxfordshire County Council,Education & Early Intervention,Zone 3 - West,Contract Hire/Leasing,33101,Home to School Trans,06/06/2011,3301284736,494,Chauffeurdriven.net
http://statistics.data.gov.uk/id/local-authority/38,Oxfordshire County Council,Education & Early Intervention,Zone 3 - West,Contract Hire/Leasing,33101,Home to School Trans,06/06/2011,3301284737,1244.5,Chauffeurdriven.net
http://statistics.data.gov.uk/id/local-authority/38,Oxfordshire County Council,Education & Early Intervention,Zone 3 - West,Contract Hire/Leasing,33101,Home to School Trans,06/06/2011,3301284738,570,Chauffeurdriven.net
http://statistics.data.gov.uk/id/local-authority/38,Oxfordshire County Council,Education & Early Intervention,Zone 3 - West,Contract Hire/Leasing,33101,Home to School Trans,06/06/2011,3301284739,532,Chauffeurdriven.net
http://statistics.data.gov.uk/id/local-authority/38,Oxfordshire County Council,Education & Early Intervention,Zone 3 - West,Contract Hire/Leasing,33101,Home to School Trans,06/06/2011,3301284742,646,Chauffeurdriven.net
http://statistics.data.gov.uk/id/local-authority/38,Oxfordshire County Council,Education & Early Intervention,Out of County,Contract Hire/Leasing,33101,Home to School Trans,06/06/2011,3301284744,910,West Berkshire Council
http://statistics.data.gov.uk/id/local-authority/38,Oxfordshire County Council,SCS Pooled Budgets,PD Comm Supp Purchasg Budget - City,Other Agency and Contracted Services,57401,Direct Payments,07/06/2011,3301285882,3950,A4e Management Ltd
http://statistics.data.gov.uk/id/local-authority/38,Oxfordshire County Council,SCS Pooled Budgets,Community Support Budget - Bicester,Other Agency and Contracted Services,57401,Direct Payments,08/06/2011,3301286037,600,REDACTED PERSONAL DATA
http://statistics.data.gov.uk/id/local-authority/38,Oxfordshire County Council,SCS Pooled Budgets,Community Support Budget - Chipping Nort,Other Agency and Contracted Services,57401,Direct Payments,08/06/2011,3301286038,840,REDACTED PERSONAL DATA
http://statistics.data.gov.uk/id/local-authority/38,Oxfordshire County Council,SCS Pooled Budgets,Community Support Budget - Banbury,Other Agency and Contracted Services,57401,Direct Payments,08/06/2011,3301286039,860,REDACTED PERSONAL DATA
http://statistics.data.gov.uk/id/local-authority/38,Oxfordshire County Council,SCS Pooled Budgets,Community Support Budget - Thame,Other Agency and Contracted Services,57401,Direct Payments,08/06/2011,3301286040,1593.68,REDACTED PERSONAL DATA
http://statistics.data.gov.uk/id/local-authority/38,Oxfordshire County Council,SCS Pooled Budgets,Direct Payments South Team,Other Agency and Contracted Services,57401,Direct Payments,08/06/2011,3301286041,1735.84,REDACTED PERSONAL DATA
http://statistics.data.gov.uk/id/local-authority/38,Oxfordshire County Council,SCS Pooled Budgets,Direct Payments South Team,Other Agency and Contracted Services,57401,Direct Payments,08/06/2011,3301286042,600,REDACTED PERSONAL DATA
http://statistics.data.gov.uk/id/local-authority/38,Oxfordshire County Council,SCS Pooled Budgets,Community Support Budget - Bicester,Other Agency and Contracted Services,57401,Direct Payments,08/06/2011,3301286045,1014.28,REDACTED PERSONAL DATA
http://statistics.data.gov.uk/id/local-authority/38,Oxfordshire County Council,SCS Pooled Budgets,Direct Payments South Team,Other Agency and Contracted Services,57401,Direct Payments,08/06/2011,3301286046,1956,REDACTED PERSONAL DATA
http://statistics.data.gov.uk/id/local-authority/38,Oxfordshire County Council,SCS Pooled Budgets,Community Support Budget - City,Other Agency and Contracted Services,57401,Direct Payments,08/06/2011,3301286048,2372.16,REDACTED PERSONAL DATA
http://statistics.data.gov.uk/id/local-authority/38,Oxfordshire County Council,SCS Pooled Budgets,OP Pool Continuing Care Delegated Health,Other Agency and Contracted Services,57401,Direct Payments,08/06/2011,3301286048,822.48,REDACTED PERSONAL DATA
http://statistics.data.gov.uk/id/local-authority/38,Oxfordshire County Council,SCS Pooled Budgets,Direct Payments City Team,Other Agency and Contracted Services,57401,Direct Payments,08/06/2011,3301286049,611.24,REDACTED PERSONAL DATA
http://statistics.data.gov.uk/id/local-authority/38,Oxfordshire County Council,SCS Pooled Budgets,PD Community Support Budget - Faringdon,Other Agency and Contracted Services,57401,Direct Payments,08/06/2011,3301286053,1071.88,REDACTED PERSONAL DATA
http://statistics.data.gov.uk/id/local-authority/38,Oxfordshire County Council,SCS Pooled Budgets,PD Comm Supp Purchasg Budget - Thame,Other Agency and Contracted Services,57401,Direct Payments,08/06/2011,3301286054,1171.56,REDACTED PERSONAL DATA
http://statistics.data.gov.uk/id/local-authority/38,Oxfordshire County Council,SCS Pooled Budgets,PD Comm Supp Purchasg Budget - City,Other Agency and Contracted Services,57401,Direct Payments,08/06/2011,3301286056,1911.67,REDACTED PERSONAL DATA
http://statistics.data.gov.uk/id/local-authority/38,Oxfordshire County Council,SCS Pooled Budgets,PD CS Purch Budget - Health S28a JC,Other Agency and Contracted Services,57401,Direct Payments,08/06/2011,3301286056,1274.45,REDACTED PERSONAL DATA
http://statistics.data.gov.uk/id/local-authority/38,Oxfordshire County Council,SCS Pooled Budgets,PD Comm Supp Purchasg Budget - Witney,Other Agency and Contracted Services,57401,Direct Payments,08/06/2011,3301286057,2010.96,REDACTED PERSONAL DATA
http://statistics.data.gov.uk/id/local-authority/38,Oxfordshire County Council,SCS Pooled Budgets,PD CS Purch Budget - Health S28a JC,Other Agency and Contracted Services,57401,Direct Payments,08/06/2011,3301286057,567.2,REDACTED PERSONAL DATA
http://statistics.data.gov.uk/id/local-authority/38,Oxfordshire County Council,SCS Pooled Budgets,Community Support Budget - City,Other Agency and Contracted Services,57401,Direct Payments,08/06/2011,3301286058,1092,REDACTED PERSONAL DATA
http://statistics.data.gov.uk/id/local-authority/38,Oxfordshire County Council,SCS Pooled Budgets,Community Support Budget - Banbury,Other Agency and Contracted Services,57401,Direct Payments,08/06/2011,3301286059,781.2,REDACTED PERSONAL DATA
http://statistics.data.gov.uk/id/local-authority/38,Oxfordshire County Council,SCS Pooled Budgets,Community Support Budget - Kidlington,Other Agency and Contracted Services,57401,Direct Payments,08/06/2011,3301286060,680,REDACTED PERSONAL DATA
http://statistics.data.gov.uk/id/local-authority/38,Oxfordshire County Council,SCS Pooled Budgets,Direct Payments North Team,Other Agency and Contracted Services,57401,Direct Payments,08/06/2011,3301286061,1141.24,REDACTED PERSONAL DATA
http://statistics.data.gov.uk/id/local-authority/38,Oxfordshire County Council,SCS Pooled Budgets,Direct Payments North Team,Other Agency and Contracted Services,57401,Direct Payments,08/06/2011,3301286062,1614.16,REDACTED PERSONAL DATA
http://statistics.data.gov.uk/id/local-authority/38,Oxfordshire County Council,SCS Pooled Budgets,PD Comm Supp Purchasg Budget - Didcot,Other Agency and Contracted Services,57401,Direct Payments,08/06/2011,3301286063,1280,REDACTED PERSONAL DATA
http://statistics.data.gov.uk/id/local-authority/38,Oxfordshire County Council,SCS Pooled Budgets,PD CS Purch Budget - Health S28a JC,Other Agency and Contracted Services,57401,Direct Payments,08/06/2011,3301286063,547.84,REDACTED PERSONAL DATA
http://statistics.data.gov.uk/id/local-authority/38,Oxfordshire County Council,SCS Pooled Budgets,Direct Payments South Team,Other Agency and Contracted Services,57401,Direct Payments,08/06/2011,3301286064,1388.8,REDACTED PERSONAL DATA
http://statistics.data.gov.uk/id/local-authority/38,Oxfordshire County Council,SCS Pooled Budgets,Direct Payments South Team,Other Agency and Contracted Services,57401,Direct Payments,08/06/2011,3301286065,5777.2,REDACTED PERSONAL DATA
http://statistics.data.gov.uk/id/local-authority/38,Oxfordshire County Council,SCS Pooled Budgets,Direct Payments South Team,Other Agency and Contracted Services,57401,Direct Payments,08/06/2011,3301286066,1302,REDACTED PERSONAL DATA
http://statistics.data.gov.uk/id/local-authority/38,Oxfordshire County Council,SCS Pooled Budgets,Direct Payments North Team,Other Agency and Contracted Services,57401,Direct Payments,08/06/2011,3301286068,3426.16,REDACTED PERSONAL DATA
http://statistics.data.gov.uk/id/local-authority/38,Oxfordshire County Council,SCS Pooled Budgets,Community Support Budget - Banbury,Other Agency and Contracted Services,57401,Direct Payments,08/06/2011,3301286069,668,REDACTED PERSONAL DATA
http://statistics.data.gov.uk/id/local-authority/38,Oxfordshire County Council,SCS Pooled Budgets,PD Comm Supp Purchasg Budget - Thame,Other Agency and Contracted Services,57401,Direct Payments,08/06/2011,3301286071,1236,REDACTED PERSONAL DATA
http://statistics.data.gov.uk/id/local-authority/38,Oxfordshire County Council,SCS Pooled Budgets,Community Support Budget - Kidlington,Other Agency and Contracted Services,57401,Direct Payments,08/06/2011,3301286072,855.44,REDACTED PERSONAL DATA
http://statistics.data.gov.uk/id/local-authority/38,Oxfordshire County Council,SCS Pooled Budgets,Direct Payments South Team,Other Agency and Contracted Services,57401,Direct Payments,08/06/2011,3301286073,1074.56,REDACTED PERSONAL DATA
http://statistics.data.gov.uk/id/local-authority/38,Oxfordshire County Council,SCS Pooled Budgets,Direct Payments South Team,Other Agency and Contracted Services,57401,Direct Payments,08/06/2011,3301286074,6690.24,REDACTED PERSONAL DATA
http://statistics.data.gov.uk/id/local-authority/38,Oxfordshire County Council,SCS Pooled Budgets,PD Community Support Budget - Faringdon,Other Agency and Contracted Services,57401,Direct Payments,08/06/2011,3301286075,1280,REDACTED PERSONAL DATA
http://statistics.data.gov.uk/id/local-authority/38,Oxfordshire County Council,SCS Pooled Budgets,Home Support - Oxford City,Other Agency and Contracted Services,57401,Direct Payments,08/06/2011,3301286076,780,REDACTED PERSONAL DATA
http://statistics.data.gov.uk/id/local-authority/38,Oxfordshire County Council,SCS Pooled Budgets,PD CS Purch Budget - Health S28a JC,Other Agency and Contracted Services,57401,Direct Payments,08/06/2011,3301286076,520,REDACTED PERSONAL DATA
http://statistics.data.gov.uk/id/local-authority/38,Oxfordshire County Council,SCS Pooled Budgets,Direct Payments South Team,Other Agency and Contracted Services,57401,Direct Payments,08/06/2011,3301286077,720,REDACTED PERSONAL DATA
http://statistics.data.gov.uk/id/local-authority/38,Oxfordshire County Council,SCS Pooled Budgets,Direct Payments City Team,Other Agency and Contracted Services,57401,Direct Payments,08/06/2011,3301286078,2360.48,REDACTED PERSONAL DATA
http://statistics.data.gov.uk/id/local-authority/38,Oxfordshire County Council,SCS Pooled Budgets,Community Support Budget - Witney,Other Agency and Contracted Services,57401,Direct Payments,08/06/2011,3301286083,2159.48,REDACTED PERSONAL DATA
http://statistics.data.gov.uk/id/local-authority/38,Oxfordshire County Council,SCS Pooled Budgets,Direct Payments North Team,Other Agency and Contracted Services,57401,Direct Payments,08/06/2011,3301286084,1022.08,REDACTED PERSONAL DATA
http://statistics.data.gov.uk/id/local-authority/38,Oxfordshire County Council,SCS Pooled Budgets,Community Support Budget - Banbury,Other Agency and Contracted Services,57401,Direct Payments,08/06/2011,3301286085,1392,REDACTED PERSONAL DATA
http://statistics.data.gov.uk/id/local-authority/38,Oxfordshire County Council,SCS Pooled Budgets,PD Comm Supp Budgt - Bicester/Kidlington,Other Agency and Contracted Services,57401,Direct Payments,08/06/2011,3301286086,1079.28,REDACTED PERSONAL DATA
http://statistics.data.gov.uk/id/local-authority/38,Oxfordshire County Council,SCS Pooled Budgets,Community Support Budget - Abingdon,Other Agency and Contracted Services,57401,Direct Payments,08/06/2011,3301286089,782.88,REDACTED PERSONAL DATA
http://statistics.data.gov.uk/id/local-authority/38,Oxfordshire County Council,SCS Pooled Budgets,Community Support Budget - Abingdon,Other Agency and Contracted Services,57401,Direct Payments,08/06/2011,3301286089,4809.12,REDACTED PERSONAL DATA
http://statistics.data.gov.uk/id/local-authority/38,Oxfordshire County Council,SCS Pooled Budgets,OP Pool Continuing Care Delegated Health,Other Agency and Contracted Services,57401,Direct Payments,08/06/2011,3301286089,6282.91,REDACTED PERSONAL DATA
http://statistics.data.gov.uk/id/local-authority/38,Oxfordshire County Council,SCS Pooled Budgets,OP Pool Continuing Care Delegated Health,Other Agency and Contracted Services,57401,Direct Payments,08/06/2011,3301286089,1022.8,REDACTED PERSONAL DATA
http://statistics.data.gov.uk/id/local-authority/38,Oxfordshire County Council,SCS Pooled Budgets,Community Support Budget - Abingdon,Other Agency and Contracted Services,57401,Direct Payments,08/06/2011,3301286089,-11027.55,REDACTED PERSONAL DATA
http://statistics.data.gov.uk/id/local-authority/38,Oxfordshire County Council,SCS Pooled Budgets,Direct Payments City Team,Other Agency and Contracted Services,57401,Direct Payments,08/06/2011,3301286092,1360,REDACTED PERSONAL DATA
http://statistics.data.gov.uk/id/local-authority/38,Oxfordshire County Council,SCS Pooled Budgets,PD Comm Supp Purchasg Budget - Henley,Other Agency and Contracted Services,57401,Direct Payments,08/06/2011,3301286093,711.2,REDACTED PERSONAL DATA
http://statistics.data.gov.uk/id/local-authority/38,Oxfordshire County Council,SCS Pooled Budgets,Community Support Budget - Abingdon,Other Agency and Contracted Services,57401,Direct Payments,08/06/2011,3301286097,775.76,REDACTED PERSONAL DATA
http://statistics.data.gov.uk/id/local-authority/38,Oxfordshire County Council,SCS Pooled Budgets,Direct Payments South Team,Other Agency and Contracted Services,57401,Direct Payments,08/06/2011,3301286098,1787.12,REDACTED PERSONAL DATA
http://statistics.data.gov.uk/id/local-authority/38,Oxfordshire County Council,SCS Pooled Budgets,Direct Payments South Team,Other Agency and Contracted Services,57401,Direct Payments,08/06/2011,3301286099,552,REDACTED PERSONAL DATA
http://statistics.data.gov.uk/id/local-authority/38,Oxfordshire County Council,SCS Pooled Budgets,Community Support Budget - Bicester,Other Agency and Contracted Services,57401,Direct Payments,08/06/2011,3301286100,2181.16,REDACTED PERSONAL DATA
http://statistics.data.gov.uk/id/local-authority/38,Oxfordshire County Council,SCS Pooled Budgets,Direct Payments North Team,Other Agency and Contracted Services,57401,Direct Payments,08/06/2011,3301286101,12203.64,REDACTED PERSONAL DATA
http://statistics.data.gov.uk/id/local-authority/38,Oxfordshire County Council,SCS Pooled Budgets,Direct Payments North Team,Other Agency and Contracted Services,57401,Direct Payments,08/06/2011,3301286102,546.92,REDACTED PERSONAL DATA
http://statistics.data.gov.uk/id/local-authority/38,Oxfordshire County Council,SCS Pooled Budgets,Community Support Budget - Bicester,Other Agency and Contracted Services,57401,Direct Payments,08/06/2011,3301286104,531.52,REDACTED PERSONAL DATA
http://statistics.data.gov.uk/id/local-authority/38,Oxfordshire County Council,SCS Pooled Budgets,Community Support Budget - Bicester,Other Agency and Contracted Services,57401,Direct Payments,08/06/2011,3301286105,1521.24,REDACTED PERSONAL DATA
http://statistics.data.gov.uk/id/local-authority/38,Oxfordshire County Council,SCS Pooled Budgets,Direct Payments City Team,Other Agency and Contracted Services,57401,Direct Payments,08/06/2011,3301286106,1360,REDACTED PERSONAL DATA
http://statistics.data.gov.uk/id/local-authority/38,Oxfordshire County Council,SCS Pooled Budgets,PD Comm Supp Purchasg Budget - City,Other Agency and Contracted Services,57401,Direct Payments,08/06/2011,3301286107,1896.2,REDACTED PERSONAL DATA
http://statistics.data.gov.uk/id/local-authority/38,Oxfordshire County Council,SCS Pooled Budgets,PD Comm Supp Budget - Banbury,Other Agency and Contracted Services,57401,Direct Payments,08/06/2011,3301286108,1410.97,REDACTED PERSONAL DATA
http://statistics.data.gov.uk/id/local-authority/38,Oxfordshire County Council,SCS Pooled Budgets,PD CS Purch Budget - Health S28a JC,Other Agency and Contracted Services,57401,Direct Payments,08/06/2011,3301286108,1355.63,REDACTED PERSONAL DATA
http://statistics.data.gov.uk/id/local-authority/38,Oxfordshire County Council,SCS Pooled Budgets,Direct Payments South Team,Other Agency and Contracted Services,57401,Direct Payments,08/06/2011,3301286109,1008,REDACTED PERSONAL DATA
http://statistics.data.gov.uk/id/local-authority/38,Oxfordshire County Council,SCS Pooled Budgets,PD Comm Supp Purchasg Budget - Didcot,Other Agency and Contracted Services,57401,Direct Payments,08/06/2011,3301286110,1803.16,REDACTED PERSONAL DATA
http://statistics.data.gov.uk/id/local-authority/38,Oxfordshire County Council,SCS Pooled Budgets,PD CS Purch Budget - Health S28a JC,Other Agency and Contracted Services,57401,Direct Payments,08/06/2011,3301286110,1803.16,REDACTED PERSONAL DATA
http://statistics.data.gov.uk/id/local-authority/38,Oxfordshire County Council,SCS Pooled Budgets,Direct Payments North Team,Other Agency and Contracted Services,57401,Direct Payments,08/06/2011,3301286112,3881.52,REDACTED PERSONAL DATA
http://statistics.data.gov.uk/id/local-authority/38,Oxfordshire County Council,SCS Pooled Budgets,PD Comm Supp Purchasg Budget - City,Other Agency and Contracted Services,57401,Direct Payments,08/06/2011,3301286115,1655.96,REDACTED PERSONAL DATA
http://statistics.data.gov.uk/id/local-authority/38,Oxfordshire County Council,SCS Pooled Budgets,Community Support Budget - Bicester,Other Agency and Contracted Services,57401,Direct Payments,08/06/2011,3301286116,848.4,REDACTED PERSONAL DATA
http://statistics.data.gov.uk/id/local-authority/38,Oxfordshire County Council,SCS Pooled Budgets,Community Support Budget - City,Other Agency and Contracted Services,57401,Direct Payments,08/06/2011,3301286117,2114.8,REDACTED PERSONAL DATA
http://statistics.data.gov.uk/id/local-authority/38,Oxfordshire County Council,SCS Pooled Budgets,OP Pool Continuing Care Home Support,Other Agency and Contracted Services,57401,Direct Payments,08/06/2011,3301286119,4987.52,REDACTED PERSONAL DATA
http://statistics.data.gov.uk/id/local-authority/38,Oxfordshire County Council,SCS Pooled Budgets,Community Support Budget - City,Other Agency and Contracted Services,57401,Direct Payments,08/06/2011,3301286120,507.08,REDACTED PERSONAL DATA
http://statistics.data.gov.uk/id/local-authority/38,Oxfordshire County Council,SCS Pooled Budgets,Community Support Budget - Witney,Other Agency and Contracted Services,57401,Direct Payments,08/06/2011,3301286121,1260.84,REDACTED PERSONAL DATA
http://statistics.data.gov.uk/id/local-authority/38,Oxfordshire County Council,SCS Pooled Budgets,Direct Payments North Team,Other Agency and Contracted Services,57401,Direct Payments,08/06/2011,3301286122,600,REDACTED PERSONAL DATA
http://statistics.data.gov.uk/id/local-authority/38,Oxfordshire County Council,SCS Pooled Budgets,PD Comm Supp Purchasg Budget - Wantage,Other Agency and Contracted Services,57401,Direct Payments,08/06/2011,3301286126,981,REDACTED PERSONAL DATA
http://statistics.data.gov.uk/id/local-authority/38,Oxfordshire County Council,SCS Pooled Budgets,LD Carers Grants,Other Agency and Contracted Services,57401,Direct Payments,08/06/2011,3301286127,682.26,REDACTED PERSONAL DATA
http://statistics.data.gov.uk/id/local-authority/38,Oxfordshire County Council,SCS Pooled Budgets,Community Support Budget - Didcot,Other Agency and Contracted Services,57401,Direct Payments,08/06/2011,3301286128,523.48,REDACTED PERSONAL DATA
http://statistics.data.gov.uk/id/local-authority/38,Oxfordshire County Council,SCS Pooled Budgets,Direct Payments South Team,Other Agency and Contracted Services,57401,Direct Payments,08/06/2011,3301286129,6537.4,REDACTED PERSONAL DATA
http://statistics.data.gov.uk/id/local-authority/38,Oxfordshire County Council,SCS Pooled Budgets,PD Comm Supp Purchasg Budget - Didcot,Other Agency and Contracted Services,57401,Direct Payments,08/06/2011,3301286130,564.2,REDACTED PERSONAL DATA
http://statistics.data.gov.uk/id/local-authority/38,Oxfordshire County Council,SCS Pooled Budgets,Community Support Budget - Witney,Other Agency and Contracted Services,57401,Direct Payments,08/06/2011,3301286131,1244,REDACTED PERSONAL DATA
http://statistics.data.gov.uk/id/local-authority/38,Oxfordshire County Council,SCS Pooled Budgets,Direct Payments South Team,Other Agency and Contracted Services,57401,Direct Payments,08/06/2011,3301286132,579.6,REDACTED PERSONAL DATA
http://statistics.data.gov.uk/id/local-authority/38,Oxfordshire County Council,SCS Pooled Budgets,Community Support Budget - Wantage,Other Agency and Contracted Services,57401,Direct Payments,08/06/2011,3301286133,1166,REDACTED PERSONAL DATA
http://statistics.data.gov.uk/id/local-authority/38,Oxfordshire County Council,SCS Pooled Budgets,Community Support Budget - Kidlington,Other Agency and Contracted Services,57401,Direct Payments,08/06/2011,3301286134,887.39,REDACTED PERSONAL DATA
http://statistics.data.gov.uk/id/local-authority/38,Oxfordshire County Council,SCS Pooled Budgets,Community Support Budget - City,Other Agency and Contracted Services,57401,Direct Payments,08/06/2011,3301286135,1268.72,REDACTED PERSONAL DATA
http://statistics.data.gov.uk/id/local-authority/38,Oxfordshire County Council,SCS Pooled Budgets,Community Support Budget - Banbury,Other Agency and Contracted Services,57401,Direct Payments,08/06/2011,3301286136,720,REDACTED PERSONAL DATA
http://statistics.data.gov.uk/id/local-authority/38,Oxfordshire County Council,SCS Pooled Budgets,PD Comm Supp Purchasg Budget - Witney,Other Agency and Contracted Services,57401,Direct Payments,08/06/2011,3301286137,1280.3,REDACTED PERSONAL DATA
http://statistics.data.gov.uk/id/local-authority/38,Oxfordshire County Council,SCS Pooled Budgets,PD Comm Supp Purchasg Budget - City,Other Agency and Contracted Services,57401,Direct Payments,08/06/2011,3301286138,1320,REDACTED PERSONAL DATA
http://statistics.data.gov.uk/id/local-authority/38,Oxfordshire County Council,SCS Pooled Budgets,Direct Payments South Team,Other Agency and Contracted Services,57401,Direct Payments,08/06/2011,3301286140,1886.76,REDACTED PERSONAL DATA
http://statistics.data.gov.uk/id/local-authority/38,Oxfordshire County Council,SCS Pooled Budgets,Community Support Budget - Thame,Other Agency and Contracted Services,57401,Direct Payments,08/06/2011,3301286141,1293.6,REDACTED PERSONAL DATA
http://statistics.data.gov.uk/id/local-authority/38,Oxfordshire County Council,SCS Pooled Budgets,PD Comm Supp Purchasg Budget - City,Other Agency and Contracted Services,57401,Direct Payments,08/06/2011,3301286143,1035.35,REDACTED PERSONAL DATA
http://statistics.data.gov.uk/id/local-authority/38,Oxfordshire County Council,SCS Pooled Budgets,PD CS Purch Budget - Health S28a JC,Other Agency and Contracted Services,57401,Direct Payments,08/06/2011,3301286143,1429.77,REDACTED PERSONAL DATA
http://statistics.data.gov.uk/id/local-authority/38,Oxfordshire County Council,SCS Pooled Budgets,Community Support Budget - Banbury,Other Agency and Contracted Services,57401,Direct Payments,08/06/2011,3301286144,1004,REDACTED PERSONAL DATA
http://statistics.data.gov.uk/id/local-authority/38,Oxfordshire County Council,SCS Pooled Budgets,Community Support Budget - Banbury,Other Agency and Contracted Services,57401,Direct Payments,08/06/2011,3301286144,-501.43,REDACTED PERSONAL DATA
http://statistics.data.gov.uk/id/local-authority/38,Oxfordshire County Council,SCS Pooled Budgets,Community Support Budget - Banbury,Other Agency and Contracted Services,57401,Direct Payments,08/06/2011,3301286144,968.14,REDACTED PERSONAL DATA
http://statistics.data.gov.uk/id/local-authority/38,Oxfordshire County Council,SCS Pooled Budgets,Direct Payments South Team,Other Agency and Contracted Services,57401,Direct Payments,08/06/2011,3301286145,800,REDACTED PERSONAL DATA
http://statistics.data.gov.uk/id/local-authority/38,Oxfordshire County Council,SCS Pooled Budgets,Direct Payments South Team,Other Agency and Contracted Services,57401,Direct Payments,08/06/2011,3301286146,1720.2,REDACTED PERSONAL DATA
http://statistics.data.gov.uk/id/local-authority/38,Oxfordshire County Council,SCS Pooled Budgets,PD Comm Supp Purchasg Budget - City,Other Agency and Contracted Services,57401,Direct Payments,08/06/2011,3301286147,1302,REDACTED PERSONAL DATA
http://statistics.data.gov.uk/id/local-authority/38,Oxfordshire County Council,SCS Pooled Budgets,Direct Payments South Team,Other Agency and Contracted Services,57401,Direct Payments,08/06/2011,3301286148,1168,REDACTED PERSONAL DATA
http://statistics.data.gov.uk/id/local-authority/38,Oxfordshire County Council,SCS Pooled Budgets,OP Pool Continuing Care Delegated Health,Other Agency and Contracted Services,57401,Direct Payments,08/06/2011,3301286149,1498.34,REDACTED PERSONAL DATA
http://statistics.data.gov.uk/id/local-authority/38,Oxfordshire County Council,SCS Pooled Budgets,Community Support Budget - City,Other Agency and Contracted Services,57401,Direct Payments,08/06/2011,3301286149,998.9,REDACTED PERSONAL DATA
http://statistics.data.gov.uk/id/local-authority/38,Oxfordshire County Council,SCS Pooled Budgets,Direct Payments North Team,Other Agency and Contracted Services,57401,Direct Payments,08/06/2011,3301286151,996.6,A4e Management Ltd Week 4
http://statistics.data.gov.uk/id/local-authority/38,Oxfordshire County Council,SCS Pooled Budgets,Community Support Budget - Bicester,Other Agency and Contracted Services,57401,Direct Payments,08/06/2011,3301286152,1028,A4e Management Ltd Week 4
http://statistics.data.gov.uk/id/local-authority/38,Oxfordshire County Council,SCS Pooled Budgets,Community Support Budget - Banbury,Other Agency and Contracted Services,57401,Direct Payments,08/06/2011,3301286153,1269.92,A4e Management Ltd Week 4
http://statistics.data.gov.uk/id/local-authority/38,Oxfordshire County Council,SCS Pooled Budgets,PD Comm Supp Purchasg Budget - City,Other Agency and Contracted Services,57401,Direct Payments,08/06/2011,3301286154,904,A4e Management Ltd Week 4
http://statistics.data.gov.uk/id/local-authority/38,Oxfordshire County Council,SCS Pooled Budgets,Community Support Budget - Banbury,Other Agency and Contracted Services,57401,Direct Payments,08/06/2011,3301286157,772,A4e Management Ltd Week 4
http://statistics.data.gov.uk/id/local-authority/38,Oxfordshire County Council,SCS Pooled Budgets,PD Comm Supp Purchasg Budget - City,Other Agency and Contracted Services,57401,Direct Payments,08/06/2011,3301286158,1063.3,A4e Management Ltd Week 4
http://statistics.data.gov.uk/id/local-authority/38,Oxfordshire County Council,SCS Pooled Budgets,Community Support Budget - Abingdon,Other Agency and Contracted Services,57401,Direct Payments,08/06/2011,3301286159,633.85,A4e Management Ltd Week 4
http://statistics.data.gov.uk/id/local-authority/38,Oxfordshire County Council,SCS Pooled Budgets,PD Comm Supp Purchasg Budget - Henley,Other Agency and Contracted Services,57401,Direct Payments,08/06/2011,3301286162,1959.64,A4e Management Ltd Week 4
http://statistics.data.gov.uk/id/local-authority/38,Oxfordshire County Council,SCS Pooled Budgets,PD Community Support Budget - Kidlington,Other Agency and Contracted Services,57401,Direct Payments,08/06/2011,3301286163,818.87,A4e Management Ltd Week 4
http://statistics.data.gov.uk/id/local-authority/38,Oxfordshire County Council,SCS Pooled Budgets,PD CS Purch Budget - Health S28a JC,Other Agency and Contracted Services,57401,Direct Payments,08/06/2011,3301286163,718.99,A4e Management Ltd Week 4
http://statistics.data.gov.uk/id/local-authority/38,Oxfordshire County Council,SCS Pooled Budgets,Community Support Budget - Abingdon,Other Agency and Contracted Services,57401,Direct Payments,08/06/2011,3301286164,1375.6,A4e Management Ltd Week 4
http://statistics.data.gov.uk/id/local-authority/38,Oxfordshire County Council,SCS Pooled Budgets,Community Support Budget - Banbury,Other Agency and Contracted Services,57401,Direct Payments,08/06/2011,3301286165,1168,A4e Management Ltd Week 4
http://statistics.data.gov.uk/id/local-authority/38,Oxfordshire County Council,SCS Pooled Budgets,Direct Payments North Team,Other Agency and Contracted Services,57401,Direct Payments,08/06/2011,3301286167,2000,A4e Management Ltd Week 4
http://statistics.data.gov.uk/id/local-authority/38,Oxfordshire County Council,SCS Pooled Budgets,PD Comm Supp Purchasg Budget - Witney,Other Agency and Contracted Services,57401,Direct Payments,08/06/2011,3301286168,500,A4e Management Ltd Week 4
http://statistics.data.gov.uk/id/local-authority/38,Oxfordshire County Council,SCS Pooled Budgets,PD Comm Supp Budget - Banbury,Other Agency and Contracted Services,57401,Direct Payments,08/06/2011,3301286169,759.5,A4e Management Ltd Week 4
http://statistics.data.gov.uk/id/local-authority/38,Oxfordshire County Council,SCS Pooled Budgets,PD Comm Supp Purchasg Budget - Abingdon,Other Agency and Contracted Services,57401,Direct Payments,08/06/2011,3301286170,1287.88,A4e Management Ltd Week 4
http://statistics.data.gov.uk/id/local-authority/38,Oxfordshire County Council,SCS Pooled Budgets,PD Comm Supp Purchasg Budget - Wantage,Other Agency and Contracted Services,57401,Direct Payments,08/06/2011,3301286171,1086.76,A4e Management Ltd Week 4
http://statistics.data.gov.uk/id/local-authority/38,Oxfordshire County Council,SCS Pooled Budgets,Community Support Budget - Chipping Nort,Other Agency and Contracted Services,57401,Direct Payments,08/06/2011,3301286173,1120,A4e Management Ltd Week 4
http://statistics.data.gov.uk/id/local-authority/38,Oxfordshire County Council,SCS Pooled Budgets,Direct Payments South Team,Other Agency and Contracted Services,57401,Direct Payments,08/06/2011,3301286174,1150.1,A4e Management Ltd Week 4
http://statistics.data.gov.uk/id/local-authority/38,Oxfordshire County Council,SCS Pooled Budgets,PD Comm Supp Budget - Banbury,Other Agency and Contracted Services,57401,Direct Payments,08/06/2011,3301286175,1243.2,A4e Management Ltd Week 4
http://statistics.data.gov.uk/id/local-authority/38,Oxfordshire County Council,SCS Pooled Budgets,PD CS Purch Budget - Health S28a JC,Other Agency and Contracted Services,57401,Direct Payments,08/06/2011,3301286175,738.56,A4e Management Ltd Week 4
http://statistics.data.gov.uk/id/local-authority/38,Oxfordshire County Council,SCS Pooled Budgets,Community Support Budget - Banbury,Other Agency and Contracted Services,57401,Direct Payments,08/06/2011,3301286176,1432.2,A4e Management Ltd Week 4
http://statistics.data.gov.uk/id/local-authority/38,Oxfordshire County Council,SCS Pooled Budgets,Direct Payments South Team,Other Agency and Contracted Services,57401,Direct Payments,08/06/2011,3301286177,661.8,A4e Management Ltd Week 4
http://statistics.data.gov.uk/id/local-authority/38,Oxfordshire County Council,SCS Pooled Budgets,Community Support Budget - Bicester,Other Agency and Contracted Services,57401,Direct Payments,08/06/2011,3301286178,760,A4e Management Ltd Week 4
http://statistics.data.gov.uk/id/local-authority/38,Oxfordshire County Council,SCS Pooled Budgets,Direct Payments South Team,Other Agency and Contracted Services,57401,Direct Payments,08/06/2011,3301286179,550.4,A4e Management Ltd Week 4
http://statistics.data.gov.uk/id/local-authority/38,Oxfordshire County Council,SCS Pooled Budgets,Community Support Budget - Banbury,Other Agency and Contracted Services,57401,Direct Payments,08/06/2011,3301286181,1260,A4e Management Ltd Week 4
http://statistics.data.gov.uk/id/local-authority/38,Oxfordshire County Council,SCS Pooled Budgets,PD Comm Supp Purchasg Budget - City,Other Agency and Contracted Services,57401,Direct Payments,08/06/2011,3301286182,1321.68,A4e Management Ltd Week 4
http://statistics.data.gov.uk/id/local-authority/38,Oxfordshire County Council,SCS Pooled Budgets,Community Support Budget - Abingdon,Other Agency and Contracted Services,57401,Direct Payments,08/06/2011,3301286183,552.64,A4e Management Ltd Week 4
http://statistics.data.gov.uk/id/local-authority/38,Oxfordshire County Council,SCS Pooled Budgets,Community Support Budget - Bicester,Other Agency and Contracted Services,57401,Direct Payments,08/06/2011,3301286187,2048.6,A4e Management Ltd Week 4
http://statistics.data.gov.uk/id/local-authority/38,Oxfordshire County Council,SCS Pooled Budgets,Community Support Budget - Wantage,Other Agency and Contracted Services,57401,Direct Payments,08/06/2011,3301286190,632.28,A4e Management Ltd Week 4
http://statistics.data.gov.uk/id/local-authority/38,Oxfordshire County Council,SCS Pooled Budgets,Community Support Budget - Witney,Other Agency and Contracted Services,57401,Direct Payments,08/06/2011,3301286192,976.48,A4e Management Ltd Week 4
http://statistics.data.gov.uk/id/local-authority/38,Oxfordshire County Council,SCS Pooled Budgets,Community Support Budget - Kidlington,Other Agency and Contracted Services,57401,Direct Payments,08/06/2011,3301286193,560,A4e Management Ltd Week 4
http://statistics.data.gov.uk/id/local-authority/38,Oxfordshire County Council,SCS Pooled Budgets,PD CS Purch Budget - Health S28a JC,Other Agency and Contracted Services,57401,Direct Payments,08/06/2011,3301286194,775.52,A4e Management Ltd Week 4
http://statistics.data.gov.uk/id/local-authority/38,Oxfordshire County Council,SCS Pooled Budgets,PD Comm Supp Purchasg Budget - Didcot,Other Agency and Contracted Services,57401,Direct Payments,08/06/2011,3301286194,808.48,A4e Management Ltd Week 4
http://statistics.data.gov.uk/id/local-authority/38,Oxfordshire County Council,SCS Pooled Budgets,Direct Payments City Team,Other Agency and Contracted Services,57401,Direct Payments,08/06/2011,3301286195,837.12,A4e Management Ltd Week 4
http://statistics.data.gov.uk/id/local-authority/38,Oxfordshire County Council,SCS Pooled Budgets,Direct Payments South Team,Other Agency and Contracted Services,57401,Direct Payments,08/06/2011,3301286196,3172.12,A4e Management Ltd Week 4
http://statistics.data.gov.uk/id/local-authority/38,Oxfordshire County Council,SCS Pooled Budgets,Direct Payments South Team,Other Agency and Contracted Services,57401,Direct Payments,08/06/2011,3301286199,1014.16,A4e Management Ltd Week 4
http://statistics.data.gov.uk/id/local-authority/38,Oxfordshire County Council,SCS Pooled Budgets,Community Support Budget - Abingdon,Other Agency and Contracted Services,57401,Direct Payments,08/06/2011,3301286200,708,A4e Management Ltd Week 4
http://statistics.data.gov.uk/id/local-authority/38,Oxfordshire County Council,SCS Pooled Budgets,Community Support Budget - Bicester,Other Agency and Contracted Services,57401,Direct Payments,08/06/2011,3301286202,1069.4,A4e Management Ltd Week 4
http://statistics.data.gov.uk/id/local-authority/38,Oxfordshire County Council,SCS Pooled Budgets,Community Support Budget - Chipping Nort,Other Agency and Contracted Services,57401,Direct Payments,08/06/2011,3301286206,1307.2,A4e Management Ltd Week 4
http://statistics.data.gov.uk/id/local-authority/38,Oxfordshire County Council,SCS Pooled Budgets,OP Pool Continuing Care Delegated Health,Other Agency and Contracted Services,57401,Direct Payments,08/06/2011,3301286206,900.8,A4e Management Ltd Week 4
http://statistics.data.gov.uk/id/local-authority/38,Oxfordshire County Council,SCS Pooled Budgets,PD Community Support Budget - Kidlington,Other Agency and Contracted Services,57401,Direct Payments,08/06/2011,3301286207,1774.78,A4e Management Ltd Week 4
http://statistics.data.gov.uk/id/local-authority/38,Oxfordshire County Council,SCS Pooled Budgets,PD Comm Supp Purchasg Budget - Didcot,Other Agency and Contracted Services,57401,Direct Payments,08/06/2011,3301286208,607.6,A4e Management Ltd Week 4
http://statistics.data.gov.uk/id/local-authority/38,Oxfordshire County Council,SCS Pooled Budgets,Community Support Budget - Chipping Nort,Other Agency and Contracted Services,57401,Direct Payments,08/06/2011,3301286209,972,A4e Management Ltd Week 4
http://statistics.data.gov.uk/id/local-authority/38,Oxfordshire County Council,SCS Pooled Budgets,Community Support Budget - Witney,Other Agency and Contracted Services,57401,Direct Payments,08/06/2011,3301286210,541.68,A4e Management Ltd Week 4
http://statistics.data.gov.uk/id/local-authority/38,Oxfordshire County Council,SCS Pooled Budgets,PD Comm Supp Purchasg Budget - Witney,Other Agency and Contracted Services,57401,Direct Payments,08/06/2011,3301286211,508,A4e Management Ltd Week 4
http://statistics.data.gov.uk/id/local-authority/38,Oxfordshire County Council,SCS Pooled Budgets,Community Support Budget - Witney,Other Agency and Contracted Services,57401,Direct Payments,08/06/2011,3301286213,1822.48,A4e Management Ltd Week 4
http://statistics.data.gov.uk/id/local-authority/38,Oxfordshire County Council,SCS Pooled Budgets,Community Support Budget - Witney,Other Agency and Contracted Services,57401,Direct Payments,08/06/2011,3301286214,508,A4e Management Ltd Week 4
http://statistics.data.gov.uk/id/local-authority/38,Oxfordshire County Council,SCS Pooled Budgets,PD Comm Supp Purchasg Budget - Didcot,Other Agency and Contracted Services,57401,Direct Payments,08/06/2011,3301286216,504.5,A4e Management Ltd Week 4
http://statistics.data.gov.uk/id/local-authority/38,Oxfordshire County Council,SCS Pooled Budgets,PD Comm Supp Purchasg Budget - Abingdon,Other Agency and Contracted Services,57401,Direct Payments,08/06/2011,3301286219,572.4,A4e Management Ltd Week 4
http://statistics.data.gov.uk/id/local-authority/38,Oxfordshire County Council,SCS Pooled Budgets,PD Comm Supp Purchasg Budget - City,Other Agency and Contracted Services,57401,Direct Payments,08/06/2011,3301286220,911.4,A4e Management Ltd Week 4
http://statistics.data.gov.uk/id/local-authority/38,Oxfordshire County Council,SCS Pooled Budgets,Community Support Budget - Banbury,Other Agency and Contracted Services,57401,Direct Payments,08/06/2011,3301286224,764,A4e Management Ltd Week 4
http://statistics.data.gov.uk/id/local-authority/38,Oxfordshire County Council,SCS Pooled Budgets,PD Comm Supp Purchasg Budget - Witney,Other Agency and Contracted Services,57401,Direct Payments,08/06/2011,3301286225,1215.2,A4e Management Ltd Week 4
http://statistics.data.gov.uk/id/local-authority/38,Oxfordshire County Council,SCS Pooled Budgets,PD Comm Supp Purchasg Budget - Witney,Other Agency and Contracted Services,57401,Direct Payments,08/06/2011,3301286226,1388.8,A4e Management Ltd Week 4
http://statistics.data.gov.uk/id/local-authority/38,Oxfordshire County Council,SCS Pooled Budgets,Direct Payments South Team,Other Agency and Contracted Services,57401,Direct Payments,08/06/2011,3301286227,802.9,A4e Management Ltd Week 4
http://statistics.data.gov.uk/id/local-authority/38,Oxfordshire County Council,SCS Pooled Budgets,Community Support Budget - Banbury,Other Agency and Contracted Services,57401,Direct Payments,08/06/2011,3301286228,1712,A4e Management Ltd Week 4
http://statistics.data.gov.uk/id/local-authority/38,Oxfordshire County Council,SCS Pooled Budgets,Direct Payments City Team,Other Agency and Contracted Services,57401,Direct Payments,08/06/2011,3301286229,1428.72,A4e Management Ltd Week 4
http://statistics.data.gov.uk/id/local-authority/38,Oxfordshire County Council,SCS Pooled Budgets,Community Support Budget - Kidlington,Other Agency and Contracted Services,57401,Direct Payments,08/06/2011,3301286230,1548.48,A4e Management Ltd Week 4
http://statistics.data.gov.uk/id/local-authority/38,Oxfordshire County Council,SCS Pooled Budgets,Community Support Budget - Bicester,Other Agency and Contracted Services,57401,Direct Payments,08/06/2011,3301286231,636,A4e Management Ltd Week 4
http://statistics.data.gov.uk/id/local-authority/38,Oxfordshire County Council,SCS Pooled Budgets,PD Comm Supp Purchasg Budget - Wantage,Other Agency and Contracted Services,57401,Direct Payments,08/06/2011,3301286233,524,A4e Management Ltd Week 4
http://statistics.data.gov.uk/id/local-authority/38,Oxfordshire County Council,SCS Pooled Budgets,PD Community Support Budget - Faringdon,Other Agency and Contracted Services,57401,Direct Payments,08/06/2011,3301286234,1215.2,A4e Management Ltd Week 4
http://statistics.data.gov.uk/id/local-authority/38,Oxfordshire County Council,SCS Pooled Budgets,Community Support Budget - Banbury,Other Agency and Contracted Services,57401,Direct Payments,08/06/2011,3301286235,683.68,A4e Management Ltd Week 4
http://statistics.data.gov.uk/id/local-authority/38,Oxfordshire County Council,SCS Pooled Budgets,PD Comm Supp Purchasg Budget - City,Other Agency and Contracted Services,57401,Direct Payments,08/06/2011,3301286236,781.2,A4e Management Ltd Week 4
http://statistics.data.gov.uk/id/local-authority/38,Oxfordshire County Council,SCS Pooled Budgets,Direct Payments City Team,Other Agency and Contracted Services,57401,Direct Payments,08/06/2011,3301286237,6348.24,A4e Management Ltd Week 4
http://statistics.data.gov.uk/id/local-authority/38,Oxfordshire County Council,SCS Pooled Budgets,Community Support Budget - Witney,Other Agency and Contracted Services,57401,Direct Payments,08/06/2011,3301286238,576,A4e Management Ltd Week 4
http://statistics.data.gov.uk/id/local-authority/38,Oxfordshire County Council,SCS Pooled Budgets,Community Support Budget - Witney,Other Agency and Contracted Services,57401,Direct Payments,08/06/2011,3301286239,984,A4e Management Ltd Week 4
http://statistics.data.gov.uk/id/local-authority/38,Oxfordshire County Council,SCS Pooled Budgets,Direct Payments North Team,Other Agency and Contracted Services,57401,Direct Payments,08/06/2011,3301286240,1117.44,A4e Management Ltd Week 4
http://statistics.data.gov.uk/id/local-authority/38,Oxfordshire County Council,SCS Pooled Budgets,Direct Payments North Team,Other Agency and Contracted Services,57401,Direct Payments,08/06/2011,3301286241,587.16,A4e Management Ltd Week 4
http://statistics.data.gov.uk/id/local-authority/38,Oxfordshire County Council,SCS Pooled Budgets,Community Support Budget - Banbury,Other Agency and Contracted Services,57401,Direct Payments,08/06/2011,3301286244,887.24,A4e Management Ltd Week 4
http://statistics.data.gov.uk/id/local-authority/38,Oxfordshire County Council,SCS Pooled Budgets,Community Support Budget - Kidlington,Other Agency and Contracted Services,57401,Direct Payments,08/06/2011,3301286245,632,A4e Management Ltd Week 4
http://statistics.data.gov.uk/id/local-authority/38,Oxfordshire County Council,SCS Pooled Budgets,Community Support Budget - Kidlington,Other Agency and Contracted Services,57401,Direct Payments,08/06/2011,3301286245,629.3,A4e Management Ltd Week 4
http://statistics.data.gov.uk/id/local-authority/38,Oxfordshire County Council,SCS Pooled Budgets,Community Support Budget - Didcot,Other Agency and Contracted Services,57401,Direct Payments,08/06/2011,3301286246,2832,A4e Management Ltd Week 4
http://statistics.data.gov.uk/id/local-authority/38,Oxfordshire County Council,SCS Pooled Budgets,Community Support Budget - City,Other Agency and Contracted Services,57401,Direct Payments,08/06/2011,3301286247,658.04,A4e Management Ltd Week 4
http://statistics.data.gov.uk/id/local-authority/38,Oxfordshire County Council,SCS Pooled Budgets,Community Support Budget - Abingdon,Other Agency and Contracted Services,57401,Direct Payments,08/06/2011,3301286250,619.6,A4e Management Ltd Week 4
http://statistics.data.gov.uk/id/local-authority/38,Oxfordshire County Council,SCS Pooled Budgets,Direct Payments North Team,Other Agency and Contracted Services,57401,Direct Payments,08/06/2011,3301286251,1037.4,A4e Management Ltd Week 4
http://statistics.data.gov.uk/id/local-authority/38,Oxfordshire County Council,SCS Pooled Budgets,Community Support Budget - Witney,Other Agency and Contracted Services,57401,Direct Payments,08/06/2011,3301286252,616.4,A4e Management Ltd Week 4
http://statistics.data.gov.uk/id/local-authority/38,Oxfordshire County Council,SCS Pooled Budgets,Direct Payments City Team,Other Agency and Contracted Services,57401,Direct Payments,08/06/2011,3301286253,1681.4,HOLD Ltd
http://statistics.data.gov.uk/id/local-authority/38,Oxfordshire County Council,SCS Pooled Budgets,PD Comm Supp Purchasg Budget - City,Other Agency and Contracted Services,57401,Direct Payments,08/06/2011,3301286254,760.62,REDACTED PERSONAL DATA
http://statistics.data.gov.uk/id/local-authority/38,Oxfordshire County Council,Education & Early Intervention,Zone 2 - East,Contract Hire/Leasing,33101,Home to School Trans,08/06/2011,3301286267,1064,Airport Transfers Banbury
http://statistics.data.gov.uk/id/local-authority/38,Oxfordshire County Council,Education & Early Intervention,Zone 2 - East,Contract Hire/Leasing,33101,Home to School Trans,08/06/2011,3301286268,1045,Airport Transfers Banbury
http://statistics.data.gov.uk/id/local-authority/38,Oxfordshire County Council,Education & Early Intervention,Zone 1 - North,Contract Hire/Leasing,33101,Home to School Trans,08/06/2011,3301286269,941.07,Airport Transfers Banbury
http://statistics.data.gov.uk/id/local-authority/38,Oxfordshire County Council,Education & Early Intervention,Zone 2 - East,Contract Hire/Leasing,33101,Home to School Trans,08/06/2011,3301286270,1353.75,Airport Transfers Banbury
http://statistics.data.gov.uk/id/local-authority/38,Oxfordshire County Council,Education & Early Intervention,Zone 1 - North,Contract Hire/Leasing,33101,Home to School Trans,08/06/2011,3301286271,1703.73,Airport Transfers Banbury
http://statistics.data.gov.uk/id/local-authority/38,Oxfordshire County Council,Education & Early Intervention,Zone 1 - North,Contract Hire/Leasing,33101,Home to School Trans,08/06/2011,3301286272,1322.59,Airport Transfers Banbury
http://statistics.data.gov.uk/id/local-authority/38,Oxfordshire County Council,Education & Early Intervention,Zone 1 - North,Contract Hire/Leasing,33101,Home to School Trans,08/06/2011,3301286273,1899.62,Airport Transfers Banbury
http://statistics.data.gov.uk/id/local-authority/38,Oxfordshire County Council,Education & Early Intervention,Oxford Sth SEN Trans,Contract Hire/Leasing,33101,Home to School Trans,08/06/2011,3301286274,1566.9,J.Dhanjal Transport Ltd
http://statistics.data.gov.uk/id/local-authority/38,Oxfordshire County Council,Education & Early Intervention,Oxford Sth SEN Trans,Contract Hire/Leasing,33300,Transport (General),08/06/2011,3301286275,489.6,J.Dhanjal Transport Ltd
http://statistics.data.gov.uk/id/local-authority/38,Oxfordshire County Council,Education & Early Intervention,Zone 5 - South,Contract Hire/Leasing,33101,Home to School Trans,08/06/2011,3301286276,3266.67,J.Dhanjal Transport Ltd
http://statistics.data.gov.uk/id/local-authority/38,Oxfordshire County Council,Education & Early Intervention,Zone 5 - South,Contract Hire/Leasing,33101,Home to School Trans,08/06/2011,3301286277,3659.21,J.Dhanjal Transport Ltd
http://statistics.data.gov.uk/id/local-authority/38,Oxfordshire County Council,Education & Early Intervention,Zone 3 - West,Contract Hire/Leasing,33101,Home to School Trans,08/06/2011,3301286278,2963.05,J.Dhanjal Transport Ltd
http://statistics.data.gov.uk/id/local-authority/38,Oxfordshire County Council,Education & Early Intervention,Zone 3 - West,Contract Hire/Leasing,33101,Home to School Trans,08/06/2011,3301286279,2992.5,J.Dhanjal Transport Ltd
http://statistics.data.gov.uk/id/local-authority/38,Oxfordshire County Council,Education & Early Intervention,Zone 4 - Vale,Contract Hire/Leasing,33101,Home to School Trans,08/06/2011,3301286280,3325,J.Dhanjal Transport Ltd
http://statistics.data.gov.uk/id/local-authority/38,Oxfordshire County Council,Education & Early Intervention,Zone 4 - Vale,Contract Hire/Leasing,33101,Home to School Trans,08/06/2011,3301286281,3114.1,J.Dhanjal Transport Ltd
http://statistics.data.gov.uk/id/local-authority/38,Oxfordshire County Council,SCS Pooled Budgets,LD CMPB - South Transport,Public Transport,34200,Client Journeys,08/06/2011,3301286282,438.13,Thame & Chinnor Taxis Ltd
http://statistics.data.gov.uk/id/local-authority/38,Oxfordshire County Council,SCS Pooled Budgets,LD CMPB - South Transport,Public Transport,34200,Client Journeys,08/06/2011,3301286283,938.85,Thame & Chinnor Taxis Ltd
http://statistics.data.gov.uk/id/local-authority/38,Oxfordshire County Council,Education & Early Intervention,Oxford Nth SEN Trans,Contract Hire/Leasing,33101,Home to School Trans,08/06/2011,3301286284,3171.29,WOODSTOCK TRAVEL
http://statistics.data.gov.uk/id/local-authority/38,Oxfordshire County Council,Education & Early Intervention,Oxford Nth SEN Trans,Contract Hire/Leasing,33300,Transport (General),08/06/2011,3301286285,445.93,WOODSTOCK TRAVEL
http://statistics.data.gov.uk/id/local-authority/38,Oxfordshire County Council,Education & Early Intervention,Oxford Nth SEN Trans,Contract Hire/Leasing,33101,Home to School Trans,08/06/2011,3301286286,2556.83,WOODSTOCK TRAVEL
http://statistics.data.gov.uk/id/local-authority/38,Oxfordshire County Council,Education & Early Intervention,Oxford Nth SEN Trans,Contract Hire/Leasing,33101,Home to School Trans,08/06/2011,3301286287,792,WOODSTOCK TRAVEL
http://statistics.data.gov.uk/id/local-authority/38,Oxfordshire County Council,Education & Early Intervention,Oxford Sth SEN Trans,Contract Hire/Leasing,33101,Home to School Trans,08/06/2011,3301286290,938.8,Monarch Oxford
http://statistics.data.gov.uk/id/local-authority/38,Oxfordshire County Council,Education & Early Intervention,FE Special Trans,Contract Hire/Leasing,33101,Home to School Trans,08/06/2011,3301286291,500,Monarch Oxford
http://statistics.data.gov.uk/id/local-authority/38,Oxfordshire County Council,Education & Early Intervention,Out of County,Contract Hire/Leasing,33101,Home to School Trans,08/06/2011,3301286294,826.96,Ken's Taxis
http://statistics.data.gov.uk/id/local-authority/38,Oxfordshire County Council,Education & Early Intervention,Zone 4 - Vale,Contract Hire/Leasing,33101,Home to School Trans,08/06/2011,3301286295,1090.22,Ken's Taxis
http://statistics.data.gov.uk/id/local-authority/38,Oxfordshire County Council,Education & Early Intervention,Bicester SEN Trans,Contract Hire/Leasing,33101,Home to School Trans,08/06/2011,3301286300,747.5,ABC Radio Cars
http://statistics.data.gov.uk/id/local-authority/38,Oxfordshire County Council,Education & Early Intervention,Zone 2 - East,Contract Hire/Leasing,33101,Home to School Trans,08/06/2011,3301286303,1035,Whites Coaches Ltd
http://statistics.data.gov.uk/id/local-authority/38,Oxfordshire County Council,Education & Early Intervention,Zone 4 - Vale,Contract Hire/Leasing,33101,Home to School Trans,08/06/2011,3301286304,1248.66,Whites Coaches Ltd
http://statistics.data.gov.uk/id/local-authority/38,Oxfordshire County Council,Education & Early Intervention,Zone 4 - Vale,Contract Hire/Leasing,33101,Home to School Trans,08/06/2011,3301286305,1076.48,Whites Coaches Ltd
http://statistics.data.gov.uk/id/local-authority/38,Oxfordshire County Council,Education & Early Intervention,Zone 2 - East,Contract Hire/Leasing,33101,Home to School Trans,08/06/2011,3301286306,945,Whites Coaches Ltd
http://statistics.data.gov.uk/id/local-authority/38,Oxfordshire County Council,Education & Early Intervention,Zone 2 - East,Contract Hire/Leasing,33101,Home to School Trans,08/06/2011,3301286307,2185,Whites Coaches Ltd
http://statistics.data.gov.uk/id/local-authority/38,Oxfordshire County Council,Education & Early Intervention,Zone 4 - Vale,Contract Hire/Leasing,33101,Home to School Trans,08/06/2011,3301286308,2556.64,Whites Coaches Ltd
http://statistics.data.gov.uk/id/local-authority/38,Oxfordshire County Council,Education & Early Intervention,Zone 4 - Vale,Contract Hire/Leasing,33101,Home to School Trans,08/06/2011,3301286309,2636.06,Whites Coaches Ltd
http://statistics.data.gov.uk/id/local-authority/38,Oxfordshire County Council,Education & Early Intervention,Zone 2 - East,Contract Hire/Leasing,33101,Home to School Trans,08/06/2011,3301286310,1995,Whites Coaches Ltd
http://statistics.data.gov.uk/id/local-authority/38,Oxfordshire County Council,Education & Early Intervention,Oxford Sth SEN Trans,Contract Hire/Leasing,33101,Home to School Trans,08/06/2011,3301286311,2304.13,Lynkcabs
http://statistics.data.gov.uk/id/local-authority/38,Oxfordshire County Council,Education & Early Intervention,Oxford Sth SEN Trans,Contract Hire/Leasing,33300,Transport (General),08/06/2011,3301286312,501.03,Lynkcabs
http://statistics.data.gov.uk/id/local-authority/38,Oxfordshire County Council,Education & Early Intervention,Zone 3 - West,Contract Hire/Leasing,33101,Home to School Trans,08/06/2011,3301286313,1843,Lynkcabs
http://statistics.data.gov.uk/id/local-authority/38,Oxfordshire County Council,Education & Early Intervention,Zone 5 - South,Contract Hire/Leasing,33101,Home to School Trans,08/06/2011,3301286314,1411.32,Lynkcabs
http://statistics.data.gov.uk/id/local-authority/38,Oxfordshire County Council,Education & Early Intervention,Zone 4 - Vale,Contract Hire/Leasing,33101,Home to School Trans,08/06/2011,3301286315,1945.6,Lynkcabs
http://statistics.data.gov.uk/id/local-authority/38,Oxfordshire County Council,Education & Early Intervention,Zone 2 - East,Contract Hire/Leasing,33101,Home to School Trans,08/06/2011,3301286316,1420.82,Lynkcabs
http://statistics.data.gov.uk/id/local-authority/38,Oxfordshire County Council,Education & Early Intervention,Zone 2 - East,Contract Hire/Leasing,33101,Home to School Trans,08/06/2011,3301286317,1460.72,Lynkcabs
http://statistics.data.gov.uk/id/local-authority/38,Oxfordshire County Council,Education & Early Intervention,Zone 2 - East,Contract Hire/Leasing,33300,Transport (General),08/06/2011,3301286318,566.96,Lynkcabs
http://statistics.data.gov.uk/id/local-authority/38,Oxfordshire County Council,Education & Early Intervention,Zone 2 - East,Contract Hire/Leasing,33101,Home to School Trans,08/06/2011,3301286319,1321.64,Lynkcabs
http://statistics.data.gov.uk/id/local-authority/38,Oxfordshire County Council,Education & Early Intervention,Zone 5 - South,Contract Hire/Leasing,33101,Home to School Trans,08/06/2011,3301286320,1887.08,Lynkcabs
http://statistics.data.gov.uk/id/local-authority/38,Oxfordshire County Council,Education & Early Intervention,Zone 5 - South,Contract Hire/Leasing,33101,Home to School Trans,08/06/2011,3301286321,2219.2,Lynkcabs
http://statistics.data.gov.uk/id/local-authority/38,Oxfordshire County Council,Education & Early Intervention,Zone 5 - South,Contract Hire/Leasing,33101,Home to School Trans,08/06/2011,3301286322,2061.5,Lynkcabs
http://statistics.data.gov.uk/id/local-authority/38,Oxfordshire County Council,Education & Early Intervention,Oxford Nth SEN Trans,Contract Hire/Leasing,33101,Home to School Trans,08/06/2011,3301286323,1856.3,Angela's Travel
http://statistics.data.gov.uk/id/local-authority/38,Oxfordshire County Council,Education & Early Intervention,Oxford Nth SEN Trans,Contract Hire/Leasing,33300,Transport (General),08/06/2011,3301286324,495.52,Angela's Travel
http://statistics.data.gov.uk/id/local-authority/38,Oxfordshire County Council,Education & Early Intervention,Oxford Nth SEN Trans,Contract Hire/Leasing,33101,Home to School Trans,08/06/2011,3301286325,1440.77,Angela's Travel
http://statistics.data.gov.uk/id/local-authority/38,Oxfordshire County Council,Education & Early Intervention,Oxford Nth SEN Trans,Contract Hire/Leasing,33300,Transport (General),08/06/2011,3301286326,620.54,Angela's Travel
http://statistics.data.gov.uk/id/local-authority/38,Oxfordshire County Council,Education & Early Intervention,Zone 3 - West,Contract Hire/Leasing,33101,Home to School Trans,08/06/2011,3301286329,1140,Angela's Travel
http://statistics.data.gov.uk/id/local-authority/38,Oxfordshire County Council,Education & Early Intervention,Zone 3 - West,Contract Hire/Leasing,33101,Home to School Trans,08/06/2011,3301286330,465.5,Angela's Travel
http://statistics.data.gov.uk/id/local-authority/38,Oxfordshire County Council,Education & Early Intervention,Oxford Nth SEN Trans,Contract Hire/Leasing,33101,Home to School Trans,08/06/2011,3301286331,988,Angela's Travel
http://statistics.data.gov.uk/id/local-authority/38,Oxfordshire County Council,Education & Early Intervention,Oxford Nth SEN Trans,Contract Hire/Leasing,33101,Home to School Trans,08/06/2011,3301286333,874,Angela's Travel
http://statistics.data.gov.uk/id/local-authority/38,Oxfordshire County Council,Education & Early Intervention,S'Common SEN Trans,Contract Hire/Leasing,33101,Home to School Trans,08/06/2011,3301286335,1118.15,Hills Taxis
http://statistics.data.gov.uk/id/local-authority/38,Oxfordshire County Council,Education & Early Intervention,S'Common SEN Trans,Contract Hire/Leasing,33300,Transport (General),08/06/2011,3301286336,555.75,Hills Taxis
http://statistics.data.gov.uk/id/local-authority/38,Oxfordshire County Council,Education & Early Intervention,S'Common SEN Trans,Contract Hire/Leasing,33101,Home to School Trans,08/06/2011,3301286337,600,Hills Taxis
http://statistics.data.gov.uk/id/local-authority/38,Oxfordshire County Council,Education & Early Intervention,Out of County,Contract Hire/Leasing,33101,Home to School Trans,08/06/2011,3301286339,1140,Hills Taxis
http://statistics.data.gov.uk/id/local-authority/38,Oxfordshire County Council,Education & Early Intervention,Out of County,Contract Hire/Leasing,33300,Transport (General),08/06/2011,3301286340,570,Hills Taxis
http://statistics.data.gov.uk/id/local-authority/38,Oxfordshire County Council,Education & Early Intervention,S'Common SEN Trans,Contract Hire/Leasing,33101,Home to School Trans,08/06/2011,3301286341,900,Hills Taxis
http://statistics.data.gov.uk/id/local-authority/38,Oxfordshire County Council,Education & Early Intervention,Abingdon SEN Trans,Contract Hire/Leasing,33101,Home to School Trans,08/06/2011,3301286343,836,Hills Taxis
http://statistics.data.gov.uk/id/local-authority/38,Oxfordshire County Council,Education & Early Intervention,Abingdon SEN Trans,Contract Hire/Leasing,33300,Transport (General),08/06/2011,3301286344,475,Hills Taxis
http://statistics.data.gov.uk/id/local-authority/38,Oxfordshire County Council,Education & Early Intervention,Oxford Sth SEN Trans,Contract Hire/Leasing,33101,Home to School Trans,08/06/2011,3301286345,1735.27,Hills Taxis
http://statistics.data.gov.uk/id/local-authority/38,Oxfordshire County Council,Education & Early Intervention,Out of County,Contract Hire/Leasing,33101,Home to School Trans,08/06/2011,3301286347,880,Hills Taxis
http://statistics.data.gov.uk/id/local-authority/38,Oxfordshire County Council,Education & Early Intervention,Oxford Sth SEN Trans,Contract Hire/Leasing,33101,Home to School Trans,08/06/2011,3301286350,1447.04,Hills Taxis
http://statistics.data.gov.uk/id/local-authority/38,Oxfordshire County Council,Education & Early Intervention,Oxford Sth SEN Trans,Contract Hire/Leasing,33300,Transport (General),08/06/2011,3301286351,455.05,Hills Taxis
http://statistics.data.gov.uk/id/local-authority/38,Oxfordshire County Council,Education & Early Intervention,S'Common SEN Trans,Contract Hire/Leasing,33101,Home to School Trans,08/06/2011,3301286352,1258.92,Hills Taxis
http://statistics.data.gov.uk/id/local-authority/38,Oxfordshire County Council,Education & Early Intervention,S'Common SEN Trans,Contract Hire/Leasing,33300,Transport (General),08/06/2011,3301286353,594.51,Hills Taxis
http://statistics.data.gov.uk/id/local-authority/38,Oxfordshire County Council,Education & Early Intervention,Zone 5 - South,Contract Hire/Leasing,33101,Home to School Trans,08/06/2011,3301286356,1100.48,Hills Taxis
http://statistics.data.gov.uk/id/local-authority/38,Oxfordshire County Council,Education & Early Intervention,Zone 5 - South,Contract Hire/Leasing,33101,Home to School Trans,08/06/2011,3301286357,991.04,Hills Taxis
http://statistics.data.gov.uk/id/local-authority/38,Oxfordshire County Council,Education & Early Intervention,FE Special Trans,Contract Hire/Leasing,33101,Home to School Trans,08/06/2011,3301286358,1026,Hills Taxis
http://statistics.data.gov.uk/id/local-authority/38,Oxfordshire County Council,Education & Early Intervention,FE Special Trans,Contract Hire/Leasing,33101,Home to School Trans,08/06/2011,3301286359,1012.5,Hills Taxis
http://statistics.data.gov.uk/id/local-authority/38,Oxfordshire County Council,Education & Early Intervention,Zone 5 - South,Contract Hire/Leasing,33101,Home to School Trans,08/06/2011,3301286360,521.54,Hills Taxis
http://statistics.data.gov.uk/id/local-authority/38,Oxfordshire County Council,SCS Pooled Budgets,Community Support Budget - Abingdon,Other Agency and Contracted Services,57300,Home Support (Ext) OS&HCD,08/06/2011,3301286396,1630.85,Home Choice Care
http://statistics.data.gov.uk/id/local-authority/38,Oxfordshire County Council,SCS Pooled Budgets,Community Support Budget - Abingdon,Other Agency and Contracted Services,57300,Home Support (Ext) OS&HCD,08/06/2011,3301286397,3618.28,Oxford Private Care
http://statistics.data.gov.uk/id/local-authority/38,Oxfordshire County Council,SCS Pooled Budgets,Community Support Budget - Wantage,Other Agency and Contracted Services,57300,Home Support (Ext) OS&HCD,08/06/2011,3301286401,964.96,Oxford Private Care
http://statistics.data.gov.uk/id/local-authority/38,Oxfordshire County Council,SCS Pooled Budgets,Community Support Budget - Abingdon,Other Agency and Contracted Services,57300,Home Support (Ext) OS&HCD,08/06/2011,3301286403,931.72,Sevacare (UK) Ltd
http://statistics.data.gov.uk/id/local-authority/38,Oxfordshire County Council,SCS Pooled Budgets,Community Support Budget - Thame,Other Agency and Contracted Services,57300,Home Support (Ext) OS&HCD,08/06/2011,3301286404,1206.36,Risborough Carers Ltd
http://statistics.data.gov.uk/id/local-authority/38,Oxfordshire County Council,SCS Pooled Budgets,Community Support Budget - Chipping Nort,Other Agency and Contracted Services,57300,Home Support (Ext) OS&HCD,08/06/2011,3301286405,1874.84,Bright Yellow Group Plc
http://statistics.data.gov.uk/id/local-authority/38,Oxfordshire County Council,SCS Pooled Budgets,OP Pool Continuing Care Delegated Health,Other Agency and Contracted Services,57300,Home Support (Ext) OS&HCD,08/06/2011,3301286407,658,Radis Community Care
http://statistics.data.gov.uk/id/local-authority/38,Oxfordshire County Council,SCS Pooled Budgets,Community Support Budget - Abingdon,Other Agency and Contracted Services,57300,Home Support (Ext) OS&HCD,08/06/2011,3301286409,3667.87,PLL CARE
http://statistics.data.gov.uk/id/local-authority/38,Oxfordshire County Council,SCS Pooled Budgets,Life Of Your Own Grant City,Other Agency and Contracted Services,57401,Direct Payments,08/06/2011,3301286723,600,REDACTED PERSONAL DATA
http://statistics.data.gov.uk/id/local-authority/38,Oxfordshire County Council,SCS Pooled Budgets,Community Support Budget - Didcot,Other Agency and Contracted Services,57401,Direct Payments,08/06/2011,3301286724,1500,REDACTED PERSONAL DATA
http://statistics.data.gov.uk/id/local-authority/38,Oxfordshire County Council,Education & Early Intervention,Zone 5 - South,Contract Hire/Leasing,33101,Home to School Trans,09/06/2011,3301287497,792.68,Henley Taxis Ltd
http://statistics.data.gov.uk/id/local-authority/38,Oxfordshire County Council,Education & Early Intervention,Zone 5 - South,Contract Hire/Leasing,33101,Home to School Trans,09/06/2011,3301287498,812.63,Henley Taxis Ltd
http://statistics.data.gov.uk/id/local-authority/38,Oxfordshire County Council,Education & Early Intervention,Zone 5 - South,Contract Hire/Leasing,33101,Home to School Trans,09/06/2011,3301287499,655.5,Henley Taxis Ltd
http://statistics.data.gov.uk/id/local-authority/38,Oxfordshire County Council,Education & Early Intervention,Zone 5 - South,Contract Hire/Leasing,33101,Home to School Trans,09/06/2011,3301287501,991.04,Henley Taxis Ltd
http://statistics.data.gov.uk/id/local-authority/38,Oxfordshire County Council,Education & Early Intervention,Zone 5 - South,Contract Hire/Leasing,33101,Home to School Trans,09/06/2011,3301287502,2249.6,Henley Taxis Ltd
http://statistics.data.gov.uk/id/local-authority/38,Oxfordshire County Council,Education & Early Intervention,FE Special Trans,Contract Hire/Leasing,33101,Home to School Trans,09/06/2011,3301287503,586.48,Compass Cars
http://statistics.data.gov.uk/id/local-authority/38,Oxfordshire County Council,SCS Pooled Budgets,LD CMPB - South Transport,Public Transport,34200,Client Journeys,09/06/2011,3301287504,573.02,Compass Cars
http://statistics.data.gov.uk/id/local-authority/38,Oxfordshire County Council,Education & Early Intervention,Zone 1 - North,Contract Hire/Leasing,33101,Home to School Trans,09/06/2011,3301287505,3171.29,Tex Cars Chauffeur Hire
http://statistics.data.gov.uk/id/local-authority/38,Oxfordshire County Council,Education & Early Intervention,Zone 1 - North,Contract Hire/Leasing,33101,Home to School Trans,09/06/2011,3301287506,3171.29,Tex Cars Chauffeur Hire
http://statistics.data.gov.uk/id/local-authority/38,Oxfordshire County Council,Education & Early Intervention,Zone 1 - North,Contract Hire/Leasing,33101,Home to School Trans,09/06/2011,3301287507,3171.29,Tex Cars Chauffeur Hire
http://statistics.data.gov.uk/id/local-authority/38,Oxfordshire County Council,Education & Early Intervention,Oxford Sth SEN Trans,Contract Hire/Leasing,33101,Home to School Trans,09/06/2011,3301287510,2226.61,Mills Transport Ltd
http://statistics.data.gov.uk/id/local-authority/38,Oxfordshire County Council,Education & Early Intervention,Oxford Sth SEN Trans,Contract Hire/Leasing,33101,Home to School Trans,09/06/2011,3301287512,1882.9,Mills Transport Ltd
http://statistics.data.gov.uk/id/local-authority/38,Oxfordshire County Council,Education & Early Intervention,Oxford Sth SEN Trans,Contract Hire/Leasing,33101,Home to School Trans,09/06/2011,3301287514,1486.56,Mills Transport Ltd
http://statistics.data.gov.uk/id/local-authority/38,Oxfordshire County Council,Education & Early Intervention,Oxford Sth SEN Trans,Contract Hire/Leasing,33101,Home to School Trans,09/06/2011,3301287516,2180.25,Mills Transport Ltd
http://statistics.data.gov.uk/id/local-authority/38,Oxfordshire County Council,Education & Early Intervention,Oxford Sth SEN Trans,Contract Hire/Leasing,33101,Home to School Trans,09/06/2011,3301287518,1783.91,Mills Transport Ltd
http://statistics.data.gov.uk/id/local-authority/38,Oxfordshire County Council,Education & Early Intervention,Oxford Sth SEN Trans,Contract Hire/Leasing,33101,Home to School Trans,09/06/2011,3301287520,1585.74,Mills Transport Ltd
http://statistics.data.gov.uk/id/local-authority/38,Oxfordshire County Council,Education & Early Intervention,Zone 3 - West,Contract Hire/Leasing,33101,Home to School Trans,09/06/2011,3301287522,950,Charlie's Taxis Ltd
http://statistics.data.gov.uk/id/local-authority/38,Oxfordshire County Council,Education & Early Intervention,Oxford Nth SEN Trans,Contract Hire/Leasing,33101,Home to School Trans,09/06/2011,3301287523,1538.81,Charlie's Taxis Ltd
http://statistics.data.gov.uk/id/local-authority/38,Oxfordshire County Council,Education & Early Intervention,Zone 3 - West,Contract Hire/Leasing,33101,Home to School Trans,09/06/2011,3301287524,570,Charlie's Taxis Ltd
http://statistics.data.gov.uk/id/local-authority/38,Oxfordshire County Council,Education & Early Intervention,Oxford Nth SEN Trans,Contract Hire/Leasing,33101,Home to School Trans,09/06/2011,3301287526,2176.64,001 TAXIS
http://statistics.data.gov.uk/id/local-authority/38,Oxfordshire County Council,Education & Early Intervention,Oxford Nth SEN Trans,Contract Hire/Leasing,33101,Home to School Trans,09/06/2011,3301287528,1248.68,001 TAXIS
http://statistics.data.gov.uk/id/local-authority/38,Oxfordshire County Council,Education & Early Intervention,Oxford Nth SEN Trans,Contract Hire/Leasing,33101,Home to School Trans,09/06/2011,3301287530,1070.27,001 TAXIS
http://statistics.data.gov.uk/id/local-authority/38,Oxfordshire County Council,Education & Early Intervention,Oxford Sth SEN Trans,Contract Hire/Leasing,33101,Home to School Trans,09/06/2011,3301287532,836,001 TAXIS
http://statistics.data.gov.uk/id/local-authority/38,Oxfordshire County Council,Education & Early Intervention,Oxford Nth SEN Trans,Contract Hire/Leasing,33101,Home to School Trans,09/06/2011,3301287533,1189.21,001 TAXIS
http://statistics.data.gov.uk/id/local-authority/38,Oxfordshire County Council,Education & Early Intervention,Oxford Nth SEN Trans,Contract Hire/Leasing,33101,Home to School Trans,09/06/2011,3301287535,1268.44,001 TAXIS
http://statistics.data.gov.uk/id/local-authority/38,Oxfordshire County Council,Education & Early Intervention,Oxford Sth SEN Trans,Contract Hire/Leasing,33101,Home to School Trans,09/06/2011,3301287538,1308.15,001 TAXIS
http://statistics.data.gov.uk/id/local-authority/38,Oxfordshire County Council,Education & Early Intervention,Oxford Nth SEN Trans,Contract Hire/Leasing,33101,Home to School Trans,09/06/2011,3301287539,1178,001 TAXIS
http://statistics.data.gov.uk/id/local-authority/38,Oxfordshire County Council,Education & Early Intervention,Oxford Nth SEN Trans,Contract Hire/Leasing,33101,Home to School Trans,09/06/2011,3301287540,792.87,001 TAXIS
http://statistics.data.gov.uk/id/local-authority/38,Oxfordshire County Council,Education & Early Intervention,Oxford Nth SEN Trans,Contract Hire/Leasing,33101,Home to School Trans,09/06/2011,3301287541,1387.38,001 TAXIS
http://statistics.data.gov.uk/id/local-authority/38,Oxfordshire County Council,Education & Early Intervention,Oxford Nth SEN Trans,Contract Hire/Leasing,33101,Home to School Trans,09/06/2011,3301287542,1982.08,001 TAXIS
http://statistics.data.gov.uk/id/local-authority/38,Oxfordshire County Council,Education & Early Intervention,Oxford Sth SEN Trans,Contract Hire/Leasing,33101,Home to School Trans,09/06/2011,3301287543,938.88,001 TAXIS
http://statistics.data.gov.uk/id/local-authority/38,Oxfordshire County Council,Education & Early Intervention,Oxford Sth SEN Trans,Contract Hire/Leasing,33101,Home to School Trans,09/06/2011,3301287544,1772.38,001 TAXIS
http://statistics.data.gov.uk/id/local-authority/38,Oxfordshire County Council,Education & Early Intervention,Oxford Sth SEN Trans,Contract Hire/Leasing,33101,Home to School Trans,09/06/2011,3301287545,1518.48,001 TAXIS
http://statistics.data.gov.uk/id/local-authority/38,Oxfordshire County Council,Education & Early Intervention,FE Special Trans,Contract Hire/Leasing,33101,Home to School Trans,09/06/2011,3301287546,690,001 TAXIS
http://statistics.data.gov.uk/id/local-authority/38,Oxfordshire County Council,Education & Early Intervention,Oxford Sth SEN Trans,Contract Hire/Leasing,33101,Home to School Trans,09/06/2011,3301287547,2695.53,001 TAXIS
http://statistics.data.gov.uk/id/local-authority/38,Oxfordshire County Council,Education & Early Intervention,Oxford Sth SEN Trans,Contract Hire/Leasing,33300,Transport (General),09/06/2011,3301287548,634.22,001 TAXIS
http://statistics.data.gov.uk/id/local-authority/38,Oxfordshire County Council,Education & Early Intervention,Oxford Sth SEN Trans,Contract Hire/Leasing,33101,Home to School Trans,09/06/2011,3301287549,813.6,001 TAXIS
http://statistics.data.gov.uk/id/local-authority/38,Oxfordshire County Council,Education & Early Intervention,Out of County,Contract Hire/Leasing,33101,Home to School Trans,09/06/2011,3301287550,717.12,001 TAXIS
http://statistics.data.gov.uk/id/local-authority/38,Oxfordshire County Council,Education & Early Intervention,Oxford Nth SEN Trans,Contract Hire/Leasing,33101,Home to School Trans,09/06/2011,3301287552,570,001 TAXIS
http://statistics.data.gov.uk/id/local-authority/38,Oxfordshire County Council,Education & Early Intervention,Oxford Nth SEN Trans,Contract Hire/Leasing,33101,Home to School Trans,09/06/2011,3301287553,1026,001 TAXIS
http://statistics.data.gov.uk/id/local-authority/38,Oxfordshire County Council,Education & Early Intervention,Oxford Nth SEN Trans,Contract Hire/Leasing,33101,Home to School Trans,09/06/2011,3301287554,1620,001 TAXIS
http://statistics.data.gov.uk/id/local-authority/38,Oxfordshire County Council,Education & Early Intervention,Oxford Nth SEN Trans,Contract Hire/Leasing,33101,Home to School Trans,09/06/2011,3301287559,648,001 TAXIS
http://statistics.data.gov.uk/id/local-authority/38,Oxfordshire County Council,Education & Early Intervention,Oxford Sth SEN Trans,Contract Hire/Leasing,33101,Home to School Trans,09/06/2011,3301287562,630,001 TAXIS
http://statistics.data.gov.uk/id/local-authority/38,Oxfordshire County Council,Education & Early Intervention,Oxford Sth SEN Trans,Contract Hire/Leasing,33101,Home to School Trans,09/06/2011,3301287565,699,001 TAXIS
http://statistics.data.gov.uk/id/local-authority/38,Oxfordshire County Council,Education & Early Intervention,Witney SEN Trans,Contract Hire/Leasing,33101,Home to School Trans,09/06/2011,3301287567,2279.43,Windrush Transport Ltd
http://statistics.data.gov.uk/id/local-authority/38,Oxfordshire County Council,Education & Early Intervention,Witney SEN Trans,Contract Hire/Leasing,33300,Transport (General),09/06/2011,3301287568,991.04,Windrush Transport Ltd
http://statistics.data.gov.uk/id/local-authority/38,Oxfordshire County Council,Education & Early Intervention,Banbury SEN Trans,Contract Hire/Leasing,33101,Home to School Trans,09/06/2011,3301287569,3072.3,Windrush Transport Ltd
http://statistics.data.gov.uk/id/local-authority/38,Oxfordshire County Council,Education & Early Intervention,Banbury SEN Trans,Contract Hire/Leasing,33300,Transport (General),09/06/2011,3301287570,792.87,Windrush Transport Ltd
http://statistics.data.gov.uk/id/local-authority/38,Oxfordshire County Council,Education & Early Intervention,Witney SEN Trans,Contract Hire/Leasing,33101,Home to School Trans,09/06/2011,3301287571,2180.25,Windrush Transport Ltd
http://statistics.data.gov.uk/id/local-authority/38,Oxfordshire County Council,Education & Early Intervention,Witney SEN Trans,Contract Hire/Leasing,33300,Transport (General),09/06/2011,3301287572,693.69,Windrush Transport Ltd
http://statistics.data.gov.uk/id/local-authority/38,Oxfordshire County Council,Education & Early Intervention,Witney SEN Trans,Contract Hire/Leasing,33101,Home to School Trans,09/06/2011,3301287573,2001.84,Windrush Transport Ltd
http://statistics.data.gov.uk/id/local-authority/38,Oxfordshire County Council,Education & Early Intervention,Witney SEN Trans,Contract Hire/Leasing,33300,Transport (General),09/06/2011,3301287574,693.69,Windrush Transport Ltd
http://statistics.data.gov.uk/id/local-authority/38,Oxfordshire County Council,Education & Early Intervention,Zone 3 - West,Contract Hire/Leasing,33101,Home to School Trans,09/06/2011,3301287575,1775.93,Windrush Transport Ltd
http://statistics.data.gov.uk/id/local-authority/38,Oxfordshire County Council,Education & Early Intervention,Zone 4 - Vale,Contract Hire/Leasing,33101,Home to School Trans,09/06/2011,3301287576,1746.48,Windrush Transport Ltd
http://statistics.data.gov.uk/id/local-authority/38,Oxfordshire County Council,Education & Early Intervention,Wantage SEN Trans,Contract Hire/Leasing,33101,Home to School Trans,09/06/2011,3301287578,1915.38,Webb's of Wantage Ltd
http://statistics.data.gov.uk/id/local-authority/38,Oxfordshire County Council,Education & Early Intervention,Wantage SEN Trans,Contract Hire/Leasing,33300,Transport (General),09/06/2011,3301287579,474.48,Webb's of Wantage Ltd
http://statistics.data.gov.uk/id/local-authority/38,Oxfordshire County Council,Education & Early Intervention,Wantage SEN Trans,Contract Hire/Leasing,33101,Home to School Trans,09/06/2011,3301287580,1652.4,Webb's of Wantage Ltd
http://statistics.data.gov.uk/id/local-authority/38,Oxfordshire County Council,Education & Early Intervention,Wantage SEN Trans,Contract Hire/Leasing,33300,Transport (General),09/06/2011,3301287581,569.52,Webb's of Wantage Ltd
http://statistics.data.gov.uk/id/local-authority/38,Oxfordshire County Council,Education & Early Intervention,Oxford Nth SEN Trans,Contract Hire/Leasing,33101,Home to School Trans,09/06/2011,3301287582,2180.25,Webb's of Wantage Ltd
http://statistics.data.gov.uk/id/local-authority/38,Oxfordshire County Council,Education & Early Intervention,Oxford Nth SEN Trans,Contract Hire/Leasing,33300,Transport (General),09/06/2011,3301287583,594.7,Webb's of Wantage Ltd
http://statistics.data.gov.uk/id/local-authority/38,Oxfordshire County Council,Education & Early Intervention,Zone 4 - Vale,Contract Hire/Leasing,33101,Home to School Trans,09/06/2011,3301287584,570,Webb's of Wantage Ltd
http://statistics.data.gov.uk/id/local-authority/38,Oxfordshire County Council,Education & Early Intervention,Oxford Nth SEN Trans,Contract Hire/Leasing,33101,Home to School Trans,09/06/2011,3301287585,1710,Webb's of Wantage Ltd
http://statistics.data.gov.uk/id/local-authority/38,Oxfordshire County Council,Education & Early Intervention,Oxford Nth SEN Trans,Contract Hire/Leasing,33101,Home to School Trans,09/06/2011,3301287587,1350,C S Comley
http://statistics.data.gov.uk/id/local-authority/38,Oxfordshire County Council,Education & Early Intervention,Oxford Nth SEN Trans,Contract Hire/Leasing,33300,Transport (General),09/06/2011,3301287588,522,C S Comley
http://statistics.data.gov.uk/id/local-authority/38,Oxfordshire County Council,Education & Early Intervention,Wantage SEN Trans,Contract Hire/Leasing,33101,Home to School Trans,09/06/2011,3301287589,1072.5,C S Comley
http://statistics.data.gov.uk/id/local-authority/38,Oxfordshire County Council,Education & Early Intervention,Wantage SEN Trans,Contract Hire/Leasing,33101,Home to School Trans,09/06/2011,3301287591,673,C S Comley
http://statistics.data.gov.uk/id/local-authority/38,Oxfordshire County Council,Education & Early Intervention,Abingdon SEN Trans,Contract Hire/Leasing,33101,Home to School Trans,09/06/2011,3301287593,1045,C S Comley
http://statistics.data.gov.uk/id/local-authority/38,Oxfordshire County Council,Education & Early Intervention,Meadowbrook Transprt,Contract Hire/Leasing,33101,Home to School Trans,09/06/2011,3301287601,1544,C S Comley
http://statistics.data.gov.uk/id/local-authority/38,Oxfordshire County Council,SCS Pooled Budgets,Community Support Budget - Didcot,Other Agency and Contracted Services,57401,Direct Payments,09/06/2011,3301287694,945.75,REDACTED PERSONAL DATA
http://statistics.data.gov.uk/id/local-authority/38,Oxfordshire County Council,SCS Pooled Budgets,Community Support Budget - City,Other Agency and Contracted Services,57401,Direct Payments,09/06/2011,3301287990,5670,A4e Management Ltd Week 4
http://statistics.data.gov.uk/id/local-authority/38,Oxfordshire County Council,SCS Pooled Budgets,Community Support Budget - Abingdon,Other Agency and Contracted Services,57401,Direct Payments,09/06/2011,3301287999,2105.74,REDACTED PERSONAL DATA
http://statistics.data.gov.uk/id/local-authority/38,Oxfordshire County Council,SCS Pooled Budgets,Community Support Budget - Abingdon,Other Agency and Contracted Services,57401,Direct Payments,09/06/2011,3301287999,2549,REDACTED PERSONAL DATA
http://statistics.data.gov.uk/id/local-authority/38,Oxfordshire County Council,Oxfordshire Customer Services,"Orchard Meadow, Oxford",Catering,42106,CFM Catering Food & Consumables,09/06/2011,3301288117,550.04,3663 CARD ACCOUNT
http://statistics.data.gov.uk/id/local-authority/38,Oxfordshire County Council,Oxfordshire Customer Services,"Orchard Meadow, Oxford",Catering,42106,CFM Catering Food & Consumables,09/06/2011,3301288155,603.92,3663 CARD ACCOUNT
http://statistics.data.gov.uk/id/local-authority/38,Oxfordshire County Council,SCS Other Cost Centres,Control Account Trojan Residential Care,Balance Sheet General,B2040,ABACUS Accounts Payable Control A/c,13/06/2011,3301289892,27661.93,2 CARE SALES LTD The Knowl Abingdon
http://statistics.data.gov.uk/id/local-authority/38,Oxfordshire County Council,SCS Other Cost Centres,Control Account Trojan Residential Care,Balance Sheet General,B2040,ABACUS Accounts Payable Control A/c,13/06/2011,3301289893,14697.36,Abbey Crest Nursing Home
http://statistics.data.gov.uk/id/local-authority/38,Oxfordshire County Council,SCS Other Cost Centres,Control Account Trojan Residential Care,Balance Sheet General,B2040,ABACUS Accounts Payable Control A/c,13/06/2011,3301289894,92811.78,Carebase (Abingdon) Limited
http://statistics.data.gov.uk/id/local-authority/38,Oxfordshire County Council,SCS Other Cost Centres,Control Account Trojan Residential Care,Balance Sheet General,B2040,ABACUS Accounts Payable Control A/c,13/06/2011,3301289895,37998.55,ACACIA LODGE
http://statistics.data.gov.uk/id/local-authority/38,Oxfordshire County Council,SCS Other Cost Centres,Control Account Trojan Residential Care,Balance Sheet General,B2040,ABACUS Accounts Payable Control A/c,13/06/2011,3301289896,21364.1,Advance Housing & Support Ltd
http://statistics.data.gov.uk/id/local-authority/38,Oxfordshire County Council,SCS Other Cost Centres,Control Account Trojan Residential Care,Balance Sheet General,B2040,ABACUS Accounts Payable Control A/c,13/06/2011,3301289898,2637.29,REDACTED PERSONAL DATA
http://statistics.data.gov.uk/id/local-authority/38,Oxfordshire County Council,SCS Other Cost Centres,Control Account Trojan Residential Care,Balance Sheet General,B2040,ABACUS Accounts Payable Control A/c,13/06/2011,3301289899,991.23,REDACTED PERSONAL DATA
